Workbook

Sheet CAMP PILOTO EVOL
A1: ATUALIZADA EM: 15/12/23 09:40:35 | D1: OK | F1: OK | H1: DIF. LIDER | I1: DIF. 5º | J1: DIF. PRÓXIMO | K1: OK | M1: OK | O1: OK | Q1: OK | S1: OK | U1: OK | W1: OK | Y1: DIF. LIDER | Z1: DIF. 5º | AA1: DIF. PRÓXIMO | AB1: OK | AD1: DIF. LIDER | AE1: DIF. 5º | AF1: DIF. PRÓXIMO | AG1: OK | AI1: DIF. LIDER | AJ1: DIF. 5º | AK1: DIF. PRÓXIMO | AL1: OK | AN1: DIF. LIDER | AO1: DIF. 5º | AP1: DIF. PRÓXIMO
D2: 1ª etapa | F2: 2ª etapa | K2: 3ª etapa | M2: 4ª etapa | O2: 5ª etapa | Q2: 6ª etapa | S2: 7ª etapa | U2: 8ª etapa | W2: 9ª etapa | AB2: 10ª etapa | AG2: 11ª etapa | AL2: 12ª etapa
B4: Nome do (a) Piloto (a) | D4: PILOTO | E4: PONTOS | F4: PILOTO | G4: PONTOS | K4: PILOTO | L4: PONTOS | M4: PILOTO | N4: PONTOS | O4: PILOTO | P4: PONTOS | Q4: PILOTO | R4: PONTOS | S4: PILOTO | T4: PONTOS | U4: PILOTO | V4: PONTOS | W4: PILOTO | X4: PONTOS | AB4: PILOTO | AC4: PONTOS | AG4: PILOTO | AH4: PONTOS | AL4: PILOTO | AM4: PONTOS
A5: X | B5: Marcelo Clemente | C5: 1 | D5: Guilherme Janot | E5: 25 | F5: Alexandre Melillo | G5: 39 | H5: - | I5: - | J5: - | K5: Claudio Junqueira | L5: 46 | M5: Claudio Junqueira | N5: 46 | O5: Claudio Junqueira | P5: 61 | Q5: Marcelo Clemente | R5: 80 | S5: Marcelo Sant'anna | T5: 97 | U5: Guilherme Janot | V5: 118 | W5: Marcelo Clemente | X5: 140 | Y5: - | Z5: - | AA5: - | AB5: Marcelo Sant'anna | AC5: 150 | AD5: - | AE5: - | AF5: - | AG5: Marcelo Sant'anna | AH5: 164 | AI5: - | AJ5: - | AK5: - | AL5: Marcelo Clemente | AM5: 182 | AN5: - | AO5: - | AP5: -
A6: X | B6: Marcelo Sant'anna | C6: 2 | D6: Alexandre Melillo | E6: 23 | F6: Marcelo Sant'anna | G6: 38 | H6: =G$5-G6 -> 1 | I6: - | J6: =G5-G6 -> 1 | K6: Marcelo Sant'anna | L6: 38 | M6: Marcelo Mizrahy | N6: 42 | O6: Marcelo Mizrahy | P6: 60 | Q6: Marcelo Sant'anna | R6: 77 | S6: Guilherme Janot | T6: 96 | U6: Marcelo Clemente | V6: 117 | W6: Marcelo Sant'anna | X6: 130 | Y6: =X$5-X6 -> 10 | Z6: - | AA6: =X5-X6 -> 10 | AB6: Alexandre Melillo | AC6: 149 | AD6: =AC$5-AC6 -> 1 | AE6: - | AF6: =AC5-AC6 -> 1 | AG6: Alexandre Melillo | AH6: 162 | AI6: =AH$5-AH6 -> 2 | AJ6: - | AK6: =AH5-AH6 -> 2 | AL6: Marcelo Sant'anna | AM6: 177 | AN6: =AM$5-AM6 -> 5 | AO6: - | AP6: =AM5-AM6 -> 5
A7: X | B7: Alexandre Melillo | C7: 3 | D7: Claudio Junqueira | E7: 20 | F7: Marcelo Mizrahy | G7: 38 | H7: =G$5-G7 -> 1 | I7: - | J7: =G6-G7 -> 0 | K7: Marcelo Mizrahy | L7: 38 | M7: Marcelo Sant'anna | N7: 41 | O7: Marcelo Sant'anna | P7: 59 | Q7: Marcelo Mizrahy | R7: 77 | S7: Alexandre Melillo | T7: 93 | U7: Alexandre Melillo | V7: 111 | W7: Alexandre Melillo | X7: 127 | Y7: =X$5-X7 -> 13 | Z7: - | AA7: =X6-X7 -> 3 | AB7: Marcelo Clemente | AC7: 140 | AD7: =AC$5-AC7 -> 10 | AE7: - | AF7: =AC6-AC7 -> 9 | AG7: Marcelo Clemente | AH7: 160 | AI7: =AH$5-AH7 -> 4 | AJ7: - | AK7: =AH6-AH7 -> 2 | AL7: Alexandre Melillo | AM7: 176 | AN7: =AM$5-AM7 -> 6 | AO7: - | AP7: =AM6-AM7 -> 1
A8: X | B8: Rodrigo Mercadante | C8: 4 | D8: Marcelo Mizrahy | E8: 18 | F8: Guilherme Janot | G8: 35 | H8: =G$5-G8 -> 4 | I8: - | J8: =G7-G8 -> 3 | K8: Carlos Eduardo | L8: 37 | M8: Marcelo Clemente | N8: 40 | O8: Guilherme Janot | P8: 56 | Q8: Claudio Junqueira | R8: 76 | S8: Marcelo Clemente | T8: 91 | U8: Marcelo Sant'anna | V8: 110 | W8: Guilherme Janot | X8: 118 | Y8: =X$5-X8 -> 22 | Z8: - | AA8: =X7-X8 -> 9 | AB8: Rodrigo Mercadante | AC8: 138 | AD8: =AC$5-AC8 -> 12 | AE8: - | AF8: =AC7-AC8 -> 2 | AG8: Rodrigo Mercadante | AH8: 154 | AI8: =AH$5-AH8 -> 10 | AJ8: - | AK8: =AH7-AH8 -> 6 | AL8: Rodrigo Mercadante | AM8: 166 | AN8: =AM$5-AM8 -> 16 | AO8: - | AP8: =AM7-AM8 -> 10
A9: X | B9: Marcelo Mizrahy | C9: 5 | D9: Jarbas Reis | E9: 16 | F9: Claudio Junqueira | G9: 33 | H9: =G$5-G9 -> 6 | I9: - | J9: =G8-G9 -> 2 | K9: Cláudio Dumont | L9: 37 | M9: Carlos Eduardo | N9: 37 | O9: Marcelo Clemente | P9: 55 | Q9: Alexandre Melillo | R9: 75 | S9: Claudio Junqueira | T9: 89 | U9: Marcelo Mizrahy | V9: 98 | W9: Marcelo Mizrahy | X9: 116 | Y9: =X$5-X9 -> 24 | Z9: - | AA9: =X8-X9 -> 2 | AB9: Marcelo Mizrahy | AC9: 130 | AD9: =AC$5-AC9 -> 20 | AE9: - | AF9: =AC8-AC9 -> 8 | AG9: Jarbas Reis | AH9: 144 | AI9: =AH$5-AH9 -> 20 | AJ9: - | AK9: =AH8-AH9 -> 10 | AL9: Marcelo Mizrahy | AM9: 164 | AN9: =AM$5-AM9 -> 18 | AO9: - | AP9: =AM8-AM9 -> 2
B10: Jarbas Reis | C10: 6 | D10: Marcelo Clemente | E10: 15 | F10: Jarbas Reis | G10: 30 | H10: =G$5-G10 -> 9 | I10: =G$9-G10 -> 3 | J10: =G9-G10 -> 3 | K10: Guilherme Janot | L10: 35 | M10: Cláudio Dumont | N10: 37 | O10: Alexandre Melillo | P10: 53 | Q10: Guilherme Janot | R10: 71 | S10: Marcelo Surerus | T10: 82 | U10: Rodrigo Mercadante | V10: 98 | W10: Rodrigo Mercadante | X10: 113 | Y10: =X$5-X10 -> 27 | Z10: =X$9-X10 -> 3 | AA10: =X9-X10 -> 3 | AB10: Guilherme Janot | AC10: 118 | AD10: =AC$5-AC10 -> 32 | AE10: =AC$9-AC10 -> 12 | AF10: =AC9-AC10 -> 12 | AG10: Marcelo Mizrahy | AH10: 143 | AI10: =AH$5-AH10 -> 21 | AJ10: =AH$9-AH10 -> 1 | AK10: =AH9-AH10 -> 1 | AL10: Jarbas Reis | AM10: 160 | AN10: =AM$5-AM10 -> 22 | AO10: =AM$9-AM10 -> 4 | AP10: =AM9-AM10 -> 4
B11: Marcelo Surerus | C11: 7 | D11: Rodrigo Mercadante | E11: 14 | F11: Marcelo Clemente | G11: 26 | H11: =G$5-G11 -> 13 | I11: =G$9-G11 -> 7 | J11: =G10-G11 -> 4 | K11: Jarbas Reis | L11: 32 | M11: Guilherme Janot | N11: 36 | O11: Marcelo Surerus | P11: 52 | Q11: Rodrigo Mercadante | R11: 67 | S11: Rodrigo Mercadante | T11: 80 | U11: Jarbas Reis | V11: 91 | W11: Jarbas Reis | X11: 105 | Y11: =X$5-X11 -> 35 | Z11: =X$9-X11 -> 11 | AA11: =X10-X11 -> 8 | AB11: Jarbas Reis | AC11: 118 | AD11: =AC$5-AC11 -> 32 | AE11: =AC$9-AC11 -> 12 | AF11: =AC10-AC11 -> 0 | AG11: Euclides Almeida | AH11: 124 | AI11: =AH$5-AH11 -> 40 | AJ11: =AH$9-AH11 -> 20 | AK11: =AH10-AH11 -> 19 | AL11: Marcelo Surerus | AM11: 132 | AN11: =AM$5-AM11 -> 50 | AO11: =AM$9-AM11 -> 32 | AP11: =AM10-AM11 -> 28
B12: Guilherme Janot | C12: 8 | D12: Marcelo Sant'anna | E12: 13 | F12: Carlos Eduardo | G12: 25 | H12: =G$5-G12 -> 14 | I12: =G$9-G12 -> 8 | J12: =G11-G12 -> 1 | K12: Marcelo Clemente | L12: 30 | M12: Jarbas Reis | N12: 32 | O12: Cláudio Dumont | P12: 51 | Q12: Jarbas Reis | R12: 62 | S12: Marcelo Mizrahy | T12: 78 | U12: Claudio Junqueira | V12: 89 | W12: Claudio Junqueira | X12: 99 | Y12: =X$5-X12 -> 41 | Z12: =X$9-X12 -> 17 | AA12: =X11-X12 -> 6 | AB12: Euclides Almeida | AC12: 106 | AD12: =AC$5-AC12 -> 44 | AE12: =AC$9-AC12 -> 24 | AF12: =AC11-AC12 -> 12 | AG12: Guilherme Janot | AH12: 119 | AI12: =AH$5-AH12 -> 45 | AJ12: =AH$9-AH12 -> 25 | AK12: =AH11-AH12 -> 5 | AL12: Guilherme Janot | AM12: 128 | AN12: =AM$5-AM12 -> 54 | AO12: =AM$9-AM12 -> 36 | AP12: =AM11-AM12 -> 4
B13: Euclides Almeida | C13: 9 | D13: Lucio Chequer | E13: 12 | F13: Lucio Chequer | G13: 24 | H13: =G$5-G13 -> 15 | I13: =G$9-G13 -> 9 | J13: =G12-G13 -> 1 | K13: Euclides Almeida | L13: 28 | M13: Marcelo Surerus | N13: 30 | O13: Carlos Eduardo | P13: 49 | Q13: Marcelo Surerus | R13: 60 | S13: Jarbas Reis | T13: 76 | U13: Marcelo Surerus | V13: 82 | W13: Euclides Almeida | X13: 94 | Y13: =X$5-X13 -> 46 | Z13: =X$9-X13 -> 22 | AA13: =X12-X13 -> 5 | AB13: Claudio Junqueira | AC13: 99 | AD13: =AC$5-AC13 -> 51 | AE13: =AC$9-AC13 -> 31 | AF13: =AC12-AC13 -> 7 | AG13: Marcelo Surerus | AH13: 114 | AI13: =AH$5-AH13 -> 50 | AJ13: =AH$9-AH13 -> 30 | AK13: =AH12-AH13 -> 5 | AL13: Euclides Almeida | AM13: 124 | AN13: =AM$5-AM13 -> 58 | AO13: =AM$9-AM13 -> 40 | AP13: =AM12-AM13 -> 4
B14: Lucio Chequer | C14: 10 | D14: Morvan | E14: 11 | F14: Cláudio Dumont | G14: 23 | H14: =G$5-G14 -> 16 | I14: =G$9-G14 -> 10 | J14: =G13-G14 -> 1 | K14: Alexandre Melillo | L14: 27 | M14: Euclides Almeida | N14: 28 | O14: Jarbas Reis | P14: 48 | Q14: Carlos Eduardo | R14: 60 | S14: Euclides Almeida | T14: 68 | U14: Euclides Almeida | V14: 82 | W14: Marcelo Surerus | X14: 77 | Y14: =X$5-X14 -> 63 | Z14: =X$9-X14 -> 39 | AA14: =X13-X14 -> 17 | AB14: Marcelo Surerus | AC14: 92 | AD14: =AC$5-AC14 -> 58 | AE14: =AC$9-AC14 -> 38 | AF14: =AC13-AC14 -> 7 | AG14: Lucio Chequer | AH14: 95 | AI14: =AH$5-AH14 -> 69 | AJ14: =AH$9-AH14 -> 49 | AK14: =AH13-AH14 -> 19 | AL14: Lucio Chequer | AM14: 120 | AN14: =AM$5-AM14 -> 62 | AO14: =AM$9-AM14 -> 44 | AP14: =AM13-AM14 -> 4
B15: Claudio Junqueira | C15: 11 | D15: Carlos Eduardo | E15: 10 | F15: Morvan | G15: 20 | H15: =G$5-G15 -> 19 | I15: =G$9-G15 -> 13 | J15: =G14-G15 -> 3 | K15: Rodrigo Mercadante | L15: 27 | M15: Alexandre Melillo | N15: 27 | O15: Rodrigo Mercadante | P15: 47 | Q15: Euclides Almeida | R15: 53 | S15: Carlos Eduardo | T15: 61 | U15: Carlos Eduardo | V15: 66 | W15: Lucio Chequer | X15: 73 | Y15: =X$5-X15 -> 67 | Z15: =X$9-X15 -> 43 | AA15: =X14-X15 -> 4 | AB15: Lucio Chequer | AC15: 87 | AD15: =AC$5-AC15 -> 63 | AE15: =AC$9-AC15 -> 43 | AF15: =AC14-AC15 -> 5 | AG15: Claudio Junqueira | AH15: 94 | AI15: =AH$5-AH15 -> 70 | AJ15: =AH$9-AH15 -> 50 | AK15: =AH14-AH15 -> 1 | AL15: Claudio Junqueira | AM15: 89 | AN15: =AM$5-AM15 -> 93 | AO15: =AM$9-AM15 -> 75 | AP15: =AM14-AM15 -> 31
B16: Gijo | C16: 12 | D16: Gijo | E16: 1 | F16: Euclides Almeida | G16: 18 | H16: =G$5-G16 -> 21 | I16: =G$9-G16 -> 15 | J16: =G15-G16 -> 2 | K16: Lucio Chequer | L16: 24 | M16: Rodrigo Mercadante | N16: 27 | O16: Euclides Almeida | P16: 39 | Q16: Cláudio Dumont | R16: 46 | S16: Lucio Chequer | T16: 52 | U16: Lucio Chequer | V16: 63 | W16: Carlos Eduardo | X16: 68 | Y16: =X$5-X16 -> 72 | Z16: =X$9-X16 -> 48 | AA16: =X15-X16 -> 5 | AB16: Gijo | AC16: 68 | AD16: =AC$5-AC16 -> 82 | AE16: =AC$9-AC16 -> 62 | AF16: =AC15-AC16 -> 19 | AG16: Gijo | AH16: 78 | AI16: =AH$5-AH16 -> 86 | AJ16: =AH$9-AH16 -> 66 | AK16: =AH15-AH16 -> 16 | AL16: Gijo | AM16: 88 | AN16: =AM$5-AM16 -> 94 | AO16: =AM$9-AM16 -> 76 | AP16: =AM15-AM16 -> 1
B17: Morvan | C17: 13 | D17: Cláudio Dumont | E17: 0 | F17: Rodrigo Mercadante | G17: 14 | H17: =G$5-G17 -> 25 | I17: =G$9-G17 -> 19 | J17: =G16-G17 -> 4 | K17: Morvan | L17: 22 | M17: Lucio Chequer | N17: 24 | O17: Morvan | P17: 35 | Q17: Morvan | R17: 44 | S17: Morvan | T17: 45 | U17: Morvan | V17: 55 | W17: Gijo | X17: 57 | Y17: =X$5-X17 -> 83 | Z17: =X$9-X17 -> 59 | AA17: =X16-X17 -> 11 | AB17: Morvan | AC17: 66 | AD17: =AC$5-AC17 -> 84 | AE17: =AC$9-AC17 -> 64 | AF17: =AC16-AC17 -> 2 | AG17: Morvan | AH17: 78 | AI17: =AH$5-AH17 -> 86 | AJ17: =AH$9-AH17 -> 66 | AK17: =AH16-AH17 -> 0 | AL17: Morvan | AM17: 88 | AN17: =AM$5-AM17 -> 94 | AO17: =AM$9-AM17 -> 76 | AP17: =AM16-AM17 -> 0
B18: Roberto Veloso | C18: 14 | D18: Euclides Almeida | E18: 0 | F18: Roberto Veloso | G18: 8 | H18: =G$5-G18 -> 31 | I18: =G$9-G18 -> 25 | J18: =G17-G18 -> 6 | K18: Marcelo Surerus | L18: 18 | M18: Morvan | N18: 22 | O18: Lucio Chequer | P18: 29 | Q18: Lucio Chequer | R18: 41 | S18: Cláudio Dumont | T18: 41 | U18: Gijo | V18: 41 | W18: Morvan | X18: 55 | Y18: =X$5-X18 -> 85 | Z18: =X$9-X18 -> 61 | AA18: =X17-X18 -> 2 | AB18: Carlos Eduardo | AC18: 63 | AD18: =AC$5-AC18 -> 87 | AE18: =AC$9-AC18 -> 67 | AF18: =AC17-AC18 -> 3 | AG18: Carlos Eduardo | AH18: 58 | AI18: =AH$5-AH18 -> 106 | AJ18: =AH$9-AH18 -> 86 | AK18: =AH17-AH18 -> 20 | AL18: Roberto Veloso | AM18: 66 | AN18: =AM$5-AM18 -> 116 | AO18: =AM$9-AM18 -> 98 | AP18: =AM17-AM18 -> 22
B19: Carlos Eduardo | C19: 15 | D19: Ivan Renault | E19: 0 | F19: Gijo | G19: 1 | H19: =G$5-G19 -> 38 | I19: =G$9-G19 -> 32 | J19: =G18-G19 -> 7 | K19: Roberto Veloso | L19: 15 | M19: Roberto Veloso | N19: 15 | O19: Roberto Veloso | P19: 15 | Q19: Roberto Veloso | R19: 15 | S19: Gijo | T19: 25 | U19: Cláudio Dumont | V19: 36 | W19: Roberto Veloso | X19: 44 | Y19: =X$5-X19 -> 96 | Z19: =X$9-X19 -> 72 | AA19: =X18-X19 -> 11 | AB19: Roberto Veloso | AC19: 62 | AD19: =AC$5-AC19 -> 88 | AE19: =AC$9-AC19 -> 68 | AF19: =AC18-AC19 -> 1 | AG19: Roberto Veloso | AH19: 57 | AI19: =AH$5-AH19 -> 107 | AJ19: =AH$9-AH19 -> 87 | AK19: =AH18-AH19 -> 1 | AL19: Carlos Eduardo | AM19: 53 | AN19: =AM$5-AM19 -> 129 | AO19: =AM$9-AM19 -> 111 | AP19: =AM18-AM19 -> 13
B20: Cláudio Dumont | C20: 16 | D20: Marcelo Surerus | E20: 0 | F20: Ivan Renault | G20: 0 | H20: =G$5-G20 -> 39 | I20: =G$9-G20 -> 33 | J20: =G19-G20 -> 1 | K20: Gijo | L20: 1 | M20: Gijo | N20: 1 | O20: Gijo | P20: 5 | Q20: Gijo | R20: 9 | S20: Roberto Veloso | T20: 10 | U20: Roberto Veloso | V20: 19 | W20: Cláudio Dumont | X20: 31 | Y20: =X$5-X20 -> 109 | Z20: =X$9-X20 -> 85 | AA20: =X19-X20 -> 13 | AB20: Cláudio Dumont | AC20: 26 | AD20: =AC$5-AC20 -> 124 | AE20: =AC$9-AC20 -> 104 | AF20: =AC19-AC20 -> 36 | AG20: Cláudio Dumont | AH20: 21 | AI20: =AH$5-AH20 -> 143 | AJ20: =AH$9-AH20 -> 123 | AK20: =AH19-AH20 -> 36 | AL20: Cláudio Dumont | AM20: 16 | AN20: =AM$5-AM20 -> 166 | AO20: =AM$9-AM20 -> 148 | AP20: =AM19-AM20 -> 37
B21: Ivan Renault | C21: 17 | D21: Roberto Veloso | E21: 0 | F21: Marcelo Surerus | G21: 0 | H21: =G$5-G21 -> 39 | I21: =G$9-G21 -> 33 | J21: =G20-G21 -> 0 | K21: Ivan Renault | L21: 0 | M21: Ivan Renault | N21: 0 | O21: Ivan Renault | P21: 0 | Q21: Ivan Renault | R21: 0 | S21: Ivan Renault | T21: 0 | U21: Ivan Renault | V21: 0 | W21: Ivan Renault | X21: 6 | Y21: =X$5-X21 -> 134 | Z21: =X$9-X21 -> 110 | AA21: =X20-X21 -> 25 | AB21: Ivan Renault | AC21: 6 | AD21: =AC$5-AC21 -> 144 | AE21: =AC$9-AC21 -> 124 | AF21: =AC20-AC21 -> 20 | AG21: Ivan Renault | AH21: 1 | AI21: =AH$5-AH21 -> 163 | AJ21: =AH$9-AH21 -> 143 | AK21: =AH20-AH21 -> 20 | AL21: Ivan Renault | AM21: 12 | AN21: =AM$5-AM21 -> 170 | AO21: =AM$9-AM21 -> 152 | AP21: =AM20-AM21 -> 4
C22: 18 | H22: =G$5-G22 -> 39 | I22: =G$9-G22 -> 33 | J22: =G21-G22 -> 0 | R22: 0 | Y22: =X$5-X22 -> 140 | Z22: =X$9-X22 -> 116 | AA22: =X21-X22 -> 6 | AD22: =AC$5-AC22 -> 150 | AE22: =AC$9-AC22 -> 130 | AF22: =AC21-AC22 -> 6 | AI22: =AH$5-AH22 -> 164 | AJ22: =AH$9-AH22 -> 144 | AK22: =AH21-AH22 -> 1 | AN22: =AM$5-AM22 -> 182 | AO22: =AM$9-AM22 -> 164 | AP22: =AM21-AM22 -> 12
C23: 19 | H23: =G$5-G23 -> 39 | I23: =G$9-G23 -> 33 | J23: =G22-G23 -> 0 | Y23: =X$5-X23 -> 140 | Z23: =X$9-X23 -> 116 | AA23: =X22-X23 -> 0 | AD23: =AC$5-AC23 -> 150 | AE23: =AC$9-AC23 -> 130 | AF23: =AC22-AC23 -> 0 | AI23: =AH$5-AH23 -> 164 | AJ23: =AH$9-AH23 -> 144 | AK23: =AH22-AH23 -> 0 | AN23: =AM$5-AM23 -> 182 | AO23: =AM$9-AM23 -> 164 | AP23: =AM22-AM23 -> 0
C24: 20 | H24: =G$5-G24 -> 39 | I24: =G$9-G24 -> 33 | J24: =G23-G24 -> 0 | Y24: =X$5-X24 -> 140 | Z24: =X$9-X24 -> 116 | AA24: =X23-X24 -> 0 | AD24: =AC$5-AC24 -> 150 | AE24: =AC$9-AC24 -> 130 | AF24: =AC23-AC24 -> 0 | AI24: =AH$5-AH24 -> 164 | AJ24: =AH$9-AH24 -> 144 | AK24: =AH23-AH24 -> 0 | AN24: =AM$5-AM24 -> 182 | AO24: =AM$9-AM24 -> 164 | AP24: =AM23-AM24 -> 0
C25: 21 | H25: =G$5-G25 -> 39 | I25: =G$9-G25 -> 33 | J25: =G24-G25 -> 0 | Y25: =X$5-X25 -> 140 | Z25: =X$9-X25 -> 116 | AA25: =X24-X25 -> 0 | AD25: =AC$5-AC25 -> 150 | AE25: =AC$9-AC25 -> 130 | AF25: =AC24-AC25 -> 0 | AI25: =AH$5-AH25 -> 164 | AJ25: =AH$9-AH25 -> 144 | AK25: =AH24-AH25 -> 0 | AN25: =AM$5-AM25 -> 182 | AO25: =AM$9-AM25 -> 164 | AP25: =AM24-AM25 -> 0
C26: 22 | H26: =G$5-G26 -> 39 | I26: =G$9-G26 -> 33 | J26: =G25-G26 -> 0 | Y26: =X$5-X26 -> 140 | Z26: =X$9-X26 -> 116 | AA26: =X25-X26 -> 0 | AD26: =AC$5-AC26 -> 150 | AE26: =AC$9-AC26 -> 130 | AF26: =AC25-AC26 -> 0 | AI26: =AH$5-AH26 -> 164 | AJ26: =AH$9-AH26 -> 144 | AK26: =AH25-AH26 -> 0 | AN26: =AM$5-AM26 -> 182 | AO26: =AM$9-AM26 -> 164 | AP26: =AM25-AM26 -> 0
C27: 23 | H27: =G$5-G27 -> 39 | I27: =G$9-G27 -> 33 | J27: =G26-G27 -> 0 | Y27: =X$5-X27 -> 140 | Z27: =X$9-X27 -> 116 | AA27: =X26-X27 -> 0 | AD27: =AC$5-AC27 -> 150 | AE27: =AC$9-AC27 -> 130 | AF27: =AC26-AC27 -> 0 | AI27: =AH$5-AH27 -> 164 | AJ27: =AH$9-AH27 -> 144 | AK27: =AH26-AH27 -> 0 | AN27: =AM$5-AM27 -> 182 | AO27: =AM$9-AM27 -> 164 | AP27: =AM26-AM27 -> 0
C28: 24 | H28: =G$5-G28 -> 39 | I28: =G$9-G28 -> 33 | J28: =G27-G28 -> 0 | Y28: =X$5-X28 -> 140 | Z28: =X$9-X28 -> 116 | AA28: =X27-X28 -> 0 | AD28: =AC$5-AC28 -> 150 | AE28: =AC$9-AC28 -> 130 | AF28: =AC27-AC28 -> 0 | AI28: =AH$5-AH28 -> 164 | AJ28: =AH$9-AH28 -> 144 | AK28: =AH27-AH28 -> 0 | AN28: =AM$5-AM28 -> 182 | AO28: =AM$9-AM28 -> 164 | AP28: =AM27-AM28 -> 0
C29: 25 | H29: =G$5-G29 -> 39 | I29: =G$9-G29 -> 33 | J29: =G28-G29 -> 0 | Y29: =X$5-X29 -> 140 | Z29: =X$9-X29 -> 116 | AA29: =X28-X29 -> 0 | AD29: =AC$5-AC29 -> 150 | AE29: =AC$9-AC29 -> 130 | AF29: =AC28-AC29 -> 0 | AI29: =AH$5-AH29 -> 164 | AJ29: =AH$9-AH29 -> 144 | AK29: =AH28-AH29 -> 0 | AN29: =AM$5-AM29 -> 182 | AO29: =AM$9-AM29 -> 164 | AP29: =AM28-AM29 -> 0
C30: 26 | H30: =G$5-G30 -> 39 | I30: =G$9-G30 -> 33 | J30: =G29-G30 -> 0 | Y30: =X$5-X30 -> 140 | Z30: =X$9-X30 -> 116 | AA30: =X29-X30 -> 0 | AD30: =AC$5-AC30 -> 150 | AE30: =AC$9-AC30 -> 130 | AF30: =AC29-AC30 -> 0 | AI30: =AH$5-AH30 -> 164 | AJ30: =AH$9-AH30 -> 144 | AK30: =AH29-AH30 -> 0 | AN30: =AM$5-AM30 -> 182 | AO30: =AM$9-AM30 -> 164 | AP30: =AM29-AM30 -> 0
C31: 27 | H31: =G$5-G31 -> 39 | I31: =G$9-G31 -> 33 | J31: =G30-G31 -> 0 | Y31: =X$5-X31 -> 140 | Z31: =X$9-X31 -> 116 | AA31: =X30-X31 -> 0 | AD31: =AC$5-AC31 -> 150 | AE31: =AC$9-AC31 -> 130 | AF31: =AC30-AC31 -> 0 | AI31: =AH$5-AH31 -> 164 | AJ31: =AH$9-AH31 -> 144 | AK31: =AH30-AH31 -> 0 | AN31: =AM$5-AM31 -> 182 | AO31: =AM$9-AM31 -> 164 | AP31: =AM30-AM31 -> 0
C32: 28 | H32: =G$5-G32 -> 39 | I32: =G$9-G32 -> 33 | J32: =G31-G32 -> 0 | Y32: =X$5-X32 -> 140 | Z32: =X$9-X32 -> 116 | AA32: =X31-X32 -> 0 | AD32: =AC$5-AC32 -> 150 | AE32: =AC$9-AC32 -> 130 | AF32: =AC31-AC32 -> 0 | AI32: =AH$5-AH32 -> 164 | AJ32: =AH$9-AH32 -> 144 | AK32: =AH31-AH32 -> 0 | AN32: =AM$5-AM32 -> 182 | AO32: =AM$9-AM32 -> 164 | AP32: =AM31-AM32 -> 0
C33: 29 | H33: =G$5-G33 -> 39 | I33: =G$9-G33 -> 33 | J33: =G32-G33 -> 0 | Y33: =X$5-X33 -> 140 | Z33: =X$9-X33 -> 116 | AA33: =X32-X33 -> 0 | AD33: =AC$5-AC33 -> 150 | AE33: =AC$9-AC33 -> 130 | AF33: =AC32-AC33 -> 0 | AI33: =AH$5-AH33 -> 164 | AJ33: =AH$9-AH33 -> 144 | AK33: =AH32-AH33 -> 0 | AN33: =AM$5-AM33 -> 182 | AO33: =AM$9-AM33 -> 164 | AP33: =AM32-AM33 -> 0
C34: 30 | H34: =G$5-G34 -> 39 | I34: =G$9-G34 -> 33 | J34: =G33-G34 -> 0 | Y34: =X$5-X34 -> 140 | Z34: =X$9-X34 -> 116 | AA34: =X33-X34 -> 0 | AD34: =AC$5-AC34 -> 150 | AE34: =AC$9-AC34 -> 130 | AF34: =AC33-AC34 -> 0 | AI34: =AH$5-AH34 -> 164 | AJ34: =AH$9-AH34 -> 144 | AK34: =AH33-AH34 -> 0 | AN34: =AM$5-AM34 -> 182 | AO34: =AM$9-AM34 -> 164 | AP34: =AM33-AM34 -> 0
C35: 31 | H35: =G$5-G35 -> 39 | I35: =G$9-G35 -> 33 | J35: =G34-G35 -> 0 | Y35: =X$5-X35 -> 140 | Z35: =X$9-X35 -> 116 | AA35: =X34-X35 -> 0 | AD35: =AC$5-AC35 -> 150 | AE35: =AC$9-AC35 -> 130 | AF35: =AC34-AC35 -> 0 | AI35: =AH$5-AH35 -> 164 | AJ35: =AH$9-AH35 -> 144 | AK35: =AH34-AH35 -> 0 | AN35: =AM$5-AM35 -> 182 | AO35: =AM$9-AM35 -> 164 | AP35: =AM34-AM35 -> 0
C36: 32 | H36: =G$5-G36 -> 39 | I36: =G$9-G36 -> 33 | J36: =G35-G36 -> 0 | Y36: =X$5-X36 -> 140 | Z36: =X$9-X36 -> 116 | AA36: =X35-X36 -> 0 | AD36: =AC$5-AC36 -> 150 | AE36: =AC$9-AC36 -> 130 | AF36: =AC35-AC36 -> 0 | AI36: =AH$5-AH36 -> 164 | AJ36: =AH$9-AH36 -> 144 | AK36: =AH35-AH36 -> 0 | AN36: =AM$5-AM36 -> 182 | AO36: =AM$9-AM36 -> 164 | AP36: =AM35-AM36 -> 0
C37: 33 | H37: =G$5-G37 -> 39 | I37: =G$9-G37 -> 33 | J37: =G36-G37 -> 0 | Y37: =X$5-X37 -> 140 | Z37: =X$9-X37 -> 116 | AA37: =X36-X37 -> 0 | AD37: =AC$5-AC37 -> 150 | AE37: =AC$9-AC37 -> 130 | AF37: =AC36-AC37 -> 0 | AI37: =AH$5-AH37 -> 164 | AJ37: =AH$9-AH37 -> 144 | AK37: =AH36-AH37 -> 0 | AN37: =AM$5-AM37 -> 182 | AO37: =AM$9-AM37 -> 164 | AP37: =AM36-AM37 -> 0
C38: 34 | H38: =G$5-G38 -> 39 | I38: =G$9-G38 -> 33 | J38: =G37-G38 -> 0 | Y38: =X$5-X38 -> 140 | Z38: =X$9-X38 -> 116 | AA38: =X37-X38 -> 0 | AD38: =AC$5-AC38 -> 150 | AE38: =AC$9-AC38 -> 130 | AF38: =AC37-AC38 -> 0 | AI38: =AH$5-AH38 -> 164 | AJ38: =AH$9-AH38 -> 144 | AK38: =AH37-AH38 -> 0 | AN38: =AM$5-AM38 -> 182 | AO38: =AM$9-AM38 -> 164 | AP38: =AM37-AM38 -> 0
C39: 35 | H39: =G$5-G39 -> 39 | I39: =G$9-G39 -> 33 | J39: =G38-G39 -> 0 | Y39: =X$5-X39 -> 140 | Z39: =X$9-X39 -> 116 | AA39: =X38-X39 -> 0 | AD39: =AC$5-AC39 -> 150 | AE39: =AC$9-AC39 -> 130 | AF39: =AC38-AC39 -> 0 | AI39: =AH$5-AH39 -> 164 | AJ39: =AH$9-AH39 -> 144 | AK39: =AH38-AH39 -> 0 | AN39: =AM$5-AM39 -> 182 | AO39: =AM$9-AM39 -> 164 | AP39: =AM38-AM39 -> 0
C40: 36 | H40: =G$5-G40 -> 39 | I40: =G$9-G40 -> 33 | J40: =G39-G40 -> 0 | Y40: =X$5-X40 -> 140 | Z40: =X$9-X40 -> 116 | AA40: =X39-X40 -> 0 | AD40: =AC$5-AC40 -> 150 | AE40: =AC$9-AC40 -> 130 | AF40: =AC39-AC40 -> 0 | AI40: =AH$5-AH40 -> 164 | AJ40: =AH$9-AH40 -> 144 | AK40: =AH39-AH40 -> 0 | AN40: =AM$5-AM40 -> 182 | AO40: =AM$9-AM40 -> 164 | AP40: =AM39-AM40 -> 0
C41: 37 | H41: =G$5-G41 -> 39 | I41: =G$9-G41 -> 33 | J41: =G40-G41 -> 0 | Y41: =X$5-X41 -> 140 | Z41: =X$9-X41 -> 116 | AA41: =X40-X41 -> 0 | AD41: =AC$5-AC41 -> 150 | AE41: =AC$9-AC41 -> 130 | AF41: =AC40-AC41 -> 0 | AI41: =AH$5-AH41 -> 164 | AJ41: =AH$9-AH41 -> 144 | AK41: =AH40-AH41 -> 0 | AN41: =AM$5-AM41 -> 182 | AO41: =AM$9-AM41 -> 164 | AP41: =AM40-AM41 -> 0
C42: 38 | H42: =G$5-G42 -> 39 | I42: =G$9-G42 -> 33 | J42: =G41-G42 -> 0 | Y42: =X$5-X42 -> 140 | Z42: =X$9-X42 -> 116 | AA42: =X41-X42 -> 0 | AD42: =AC$5-AC42 -> 150 | AE42: =AC$9-AC42 -> 130 | AF42: =AC41-AC42 -> 0 | AI42: =AH$5-AH42 -> 164 | AJ42: =AH$9-AH42 -> 144 | AK42: =AH41-AH42 -> 0 | AN42: =AM$5-AM42 -> 182 | AO42: =AM$9-AM42 -> 164 | AP42: =AM41-AM42 -> 0
C43: 39 | H43: =G$5-G43 -> 39 | I43: =G$9-G43 -> 33 | J43: =G42-G43 -> 0 | Q43: ADWEQSXC35 | R43: 22 | Y43: =X$5-X43 -> 140 | Z43: =X$9-X43 -> 116 | AA43: =X42-X43 -> 0 | AC43: 0 | AD43: =AC$5-AC43 -> 150 | AE43: =AC$9-AC43 -> 130 | AF43: =AC42-AC43 -> 0 | AI43: =AH$5-AH43 -> 164 | AJ43: =AH$9-AH43 -> 144 | AK43: =AH42-AH43 -> 0 | AN43: =AM$5-AM43 -> 182 | AO43: =AM$9-AM43 -> 164 | AP43: =AM42-AM43 -> 0
C44: 40 | H44: =G$5-G44 -> 39 | I44: =G$9-G44 -> 33 | J44: =G43-G44 -> 0 | Q44: ADWEQSXC20 | R44: 21 | Y44: =X$5-X44 -> 140 | Z44: =X$9-X44 -> 116 | AA44: =X43-X44 -> 0 | AC44: 0 | AD44: =AC$5-AC44 -> 150 | AE44: =AC$9-AC44 -> 130 | AF44: =AC43-AC44 -> 0 | AI44: =AH$5-AH44 -> 164 | AJ44: =AH$9-AH44 -> 144 | AK44: =AH43-AH44 -> 0 | AN44: =AM$5-AM44 -> 182 | AO44: =AM$9-AM44 -> 164 | AP44: =AM43-AM44 -> 0
C45: 41 | H45: =G$5-G45 -> 39 | I45: =G$9-G45 -> 33 | J45: =G44-G45 -> 0 | Q45: ADWEQSXC1 | R45: 19 | Y45: =X$5-X45 -> 140 | Z45: =X$9-X45 -> 116 | AA45: =X44-X45 -> 0 | AC45: 0 | AD45: =AC$5-AC45 -> 150 | AE45: =AC$9-AC45 -> 130 | AF45: =AC44-AC45 -> 0 | AI45: =AH$5-AH45 -> 164 | AJ45: =AH$9-AH45 -> 144 | AK45: =AH44-AH45 -> 0 | AN45: =AM$5-AM45 -> 182 | AO45: =AM$9-AM45 -> 164 | AP45: =AM44-AM45 -> 0
C46: 42 | H46: =G$5-G46 -> 39 | I46: =G$9-G46 -> 33 | J46: =G45-G46 -> 0 | Q46: ADWEQSXC29 | R46: 17 | Y46: =X$5-X46 -> 140 | Z46: =X$9-X46 -> 116 | AA46: =X45-X46 -> 0 | AC46: 0 | AD46: =AC$5-AC46 -> 150 | AE46: =AC$9-AC46 -> 130 | AF46: =AC45-AC46 -> 0 | AI46: =AH$5-AH46 -> 164 | AJ46: =AH$9-AH46 -> 144 | AK46: =AH45-AH46 -> 0 | AN46: =AM$5-AM46 -> 182 | AO46: =AM$9-AM46 -> 164 | AP46: =AM45-AM46 -> 0
C47: 43 | H47: =G$5-G47 -> 39 | I47: =G$9-G47 -> 33 | J47: =G46-G47 -> 0 | Q47: ADWEQSXC18 | R47: 15 | Y47: =X$5-X47 -> 140 | Z47: =X$9-X47 -> 116 | AA47: =X46-X47 -> 0 | AC47: 0 | AD47: =AC$5-AC47 -> 150 | AE47: =AC$9-AC47 -> 130 | AF47: =AC46-AC47 -> 0 | AI47: =AH$5-AH47 -> 164 | AJ47: =AH$9-AH47 -> 144 | AK47: =AH46-AH47 -> 0 | AN47: =AM$5-AM47 -> 182 | AO47: =AM$9-AM47 -> 164 | AP47: =AM46-AM47 -> 0
C48: 44 | H48: =G$5-G48 -> 39 | I48: =G$9-G48 -> 33 | J48: =G47-G48 -> 0 | Q48: ADWEQSXC17 | R48: 0 | Y48: =X$5-X48 -> 140 | Z48: =X$9-X48 -> 116 | AA48: =X47-X48 -> 0 | AC48: 0 | AD48: =AC$5-AC48 -> 150 | AE48: =AC$9-AC48 -> 130 | AF48: =AC47-AC48 -> 0 | AI48: =AH$5-AH48 -> 164 | AJ48: =AH$9-AH48 -> 144 | AK48: =AH47-AH48 -> 0 | AN48: =AM$5-AM48 -> 182 | AO48: =AM$9-AM48 -> 164 | AP48: =AM47-AM48 -> 0
C49: 45 | H49: =G$5-G49 -> 39 | I49: =G$9-G49 -> 33 | J49: =G48-G49 -> 0 | Y49: =X$5-X49 -> 140 | Z49: =X$9-X49 -> 116 | AA49: =X48-X49 -> 0 | AC49: 0 | AD49: =AC$5-AC49 -> 150 | AE49: =AC$9-AC49 -> 130 | AF49: =AC48-AC49 -> 0 | AI49: =AH$5-AH49 -> 164 | AJ49: =AH$9-AH49 -> 144 | AK49: =AH48-AH49 -> 0 | AN49: =AM$5-AM49 -> 182 | AO49: =AM$9-AM49 -> 164 | AP49: =AM48-AM49 -> 0

Sheet TROCA KART
A1: PILOTO | B1: 1 ETAPA | C1: 2 ETAPA | D1: 3 ETAPA | E1: 4 ETAPA | F1: 5 ETAPA | G1: 6 ETAPA | H1: 7 ETAPA | I1: 8 ETAPA | J1: 9 ETAPA | K1: 10 ETAPA | L1: 11 ETAPA | M1: 12 ETAPA | N1: Troca
A2: Alexandre Melillo | N2: 0
A3: Carlos Eduardo | N3: 0
A4: Cláudio Dumont | N4: 0
A5: Claudio Junqueira | B5: TROCA | N5: 1
A6: Marcelo Clemente | E6: TROCA | N6: 1
A7: Euclides Almeida | L7: TROCA | N7: 1
A8: Guilherme Janot | N8: 0
A9: Ivan Renault | N9: 0
A10: Jarbas Reis | B10: TROCA | N10: 1
A11: Lucio Chequer | N11: 0
A12: Marcelo Mizrahy | N12: 0
A13: Marcelo Sant'anna | N13: 0
A14: Marcelo Surerus | N14: 0
A15: Morvan | C15: TROCA | F15: TROCA | N15: 2
A16: Roberto Veloso | N16: 0
A17: Rodrigo Mercadante | B17: TROCA | N17: 1
A18: Gijo | N18: 0
A19: 0 | N19: 0
A20: 0 | N20: 0
A21: 0 | N21: 0
A22: 0 | N22: 0
A23: 0 | N23: 0
A24: 0 | N24: 0
A25: 0 | N25: 0
A26: 0 | N26: 0
A27: 0 | N27: 0
A28: 0 | N28: 0
A29: 0 | N29: 0
A30: 0 | N30: 0
A31: 0 | N31: 0
A32: 0 | N32: 0
A33: 0 | N33: 0
A34: 0 | N34: 0
A35: 0 | N35: 0
A36: 0 | N36: 0
A37: 0 | N37: 0
A38: 0 | N38: 0
A39: 0 | N39: 0
N40: 0
N41: 0
N42: 0
N43: 0
N44: 0
N45: 0
N46: 0

Sheet PRESENÇAS
A1: PILOTO | B1: 1 ETAPA | C1: 2 ETAPA | D1: 3 ETAPA | E1: 4 ETAPA | F1: 5 ETAPA | G1: 6 ETAPA | H1: 7 ETAPA | I1: 8 ETAPA | J1: 9 ETAPA | K1: 10 ETAPA | L1: 11 ETAPA | M1: 12 ETAPA | N1: Faltou | O1: PUNIÇÕES
A2: Alexandre Melillo | B2: ok | C2: ok | D2: ok | E2: ok | F2: ok | G2: ok | H2: ok | I2: ok | J2: ok | K2: ok | L2: Faltou | M2: ok | N2: 1 | O2: 1
A3: Carlos Eduardo | B3: ok | C3: ok | D3: ok | E3: ok | F3: ok | G3: ok | H3: ok | I3: Faltou | J3: Faltou | K3: Faltou | L3: Faltou | M3: Faltou | N3: 5 | O3: 1
A4: Cláudio Dumont | B4: Faltou | C4: ok | D4: ok | E4: ok | F4: Faltou | G4: Faltou | H4: Faltou | I4: Faltou | J4: Faltou | K4: Faltou | L4: Faltou | M4: Faltou | N4: 9 | O4: 0
A5: Claudio Junqueira | B5: ok | C5: ok | D5: ok | E5: ok | F5: ok | G5: ok | H5: Faltou | I5: ok | J5: Faltou | K5: Faltou | L5: Faltou | M5: Faltou | N5: 5 | O5: 1
A6: Marcelo Clemente | B6: ok | C6: ok | D6: ok | E6: ok | F6: ok | G6: ok | H6: ok | I6: ok | J6: ok | K6: ok | L6: ok | M6: ok | N6: 0 | O6: 2
A7: Euclides Almeida | B7: Faltou | C7: ok | D7: ok | E7: Faltou | F7: ok | G7: ok | H7: ok | I7: ok | J7: ok | K7: ok | L7: ok | M7: Faltou | N7: 3 | O7: 0
A8: Guilherme Janot | B8: ok | C8: ok | D8: ok | E8: ok | F8: ok | G8: ok | H8: ok | I8: ok | J8: ok | K8: ok | L8: ok | M8: Faltou | N8: 1 | O8: 4
A9: Ivan Renault | B9: Faltou | C9: Faltou | D9: Faltou | E9: Faltou | F9: Faltou | G9: Faltou | H9: Faltou | I9: Faltou | J9: ok | K9: Faltou | L9: Faltou | M9: ok | N9: 10 | O9: 0
A10: Jarbas Reis | B10: ok | C10: ok | D10: ok | E10: ok | F10: ok | G10: ok | H10: ok | I10: ok | J10: ok | K10: Faltou | L10: ok | M10: ok | N10: 1 | O10: 0
A11: Lucio Chequer | B11: ok | C11: ok | D11: ok | E11: ok | F11: ok | G11: ok | H11: Faltou | I11: ok | J11: ok | K11: ok | L11: Faltou | M11: ok | N11: 2 | O11: 1
A12: Marcelo Mizrahy | B12: ok | C12: ok | D12: ok | E12: ok | F12: Faltou | G12: ok | H12: ok | I12: ok | J12: ok | K12: ok | L12: ok | M12: ok | N12: 1 | O12: 1
A13: Marcelo Sant'anna | B13: ok | C13: ok | D13: Faltou | E13: ok | F13: ok | G13: ok | H13: ok | I13: ok | J13: ok | K13: ok | L13: ok | M13: ok | N13: 1 | O13: 0
A14: Marcelo Surerus | B14: Faltou | C14: Faltou | D14: ok | E14: ok | F14: ok | G14: ok | H14: ok | I14: Faltou | J14: Faltou | K14: ok | L14: ok | M14: ok | N14: 4 | O14: 0
A15: Morvan | B15: ok | C15: ok | D15: ok | E15: ok | F15: ok | G15: ok | H15: ok | I15: ok | J15: ok | K15: ok | L15: ok | M15: ok | N15: 0 | O15: 2
A16: Roberto Veloso | B16: Faltou | C16: ok | D16: ok | E16: Faltou | F16: Faltou | G16: Faltou | H16: Faltou | I16: ok | J16: ok | K16: ok | L16: Faltou | M16: ok | N16: 6 | O16: 0
A17: Rodrigo Mercadante | B17: ok | C17: Faltou | D17: ok | E17: ok | F17: ok | G17: ok | H17: ok | I17: ok | J17: ok | K17: ok | L17: ok | M17: ok | N17: 1 | O17: 0
A18: Gijo | B18: ok | C18: ok | D18: ok | E18: ok | F18: Faltou | G18: ok | H18: ok | I18: ok | J18: ok | K18: ok | L18: ok | M18: ok | N18: 1 | O18: 2
N19: 0 | O19: 0
N20: 0 | O20: 0
N21: 0 | O21: 0
N22: 0 | O22: 0
N23: 0 | O23: 0
N24: 0 | O24: 0
N25: 0 | O25: 0
N26: 0 | O26: 0
N27: 0 | O27: 0
N28: 0 | O28: 0
N29: 0 | O29: 0
N30: 0 | O30: 0
N31: 0 | O31: 0
N32: 0 | O32: 0
N33: 0 | O33: 0
N34: 0 | O34: 0
N35: 0 | O35: 0
N36: 0 | O36: 0
N37: 0 | O37: 0
N38: 0 | O38: 0
N39: 0 | O39: 0
N40: 0 | O40: 0
N41: 0 | O41: 0
N42: 0 | O42: 0
N43: 0 | O43: 0
N44: 0 | O44: 0
N45: 0 | O45: 0
N46: 0.25

Sheet TABELA
A1: 2023 | E1: OK | I1: OK | M1: OK | Q1: OK | U1: OK | Y1: OK | AC1: OK | AG1: OK | AK1: OK | AO1: OK | AS1: OK | AW1: OK
D2: 1ª etapa | H2: 2ª etapa | L2: 3ª etapa | P2: 4ª etapa | T2: 5ª etapa | X2: 6ª etapa | AB2: 7ª etapa | AF2: 8ª etapa | AJ2: 9ª etapa | AN2: 10ª etapa | AR2: 11ª etapa | AV2: 12ª etapa
B4: Nome do (a) Piloto (a) | C4: Pontuação Geral | D4: Posição | E4: Pontos | F4: Bônus | G4: Penalidade | H4: Posição | I4: Pontos | J4: Bônus | K4: Penalidade | L4: Posição | M4: Pontos | N4: Bônus | O4: Penalidade | P4: Posição | Q4: Pontos | R4: Bônus | S4: Penalidade | T4: Posição | U4: Pontos | V4: Bônus | W4: Penalidade | X4: Posição | Y4: Pontos | Z4: Bônus | AA4: Penalidade | AB4: Posição | AC4: Pontos | AD4: Bônus | AE4: Penalidade | AF4: Posição | AG4: Pontos | AH4: Bônus | AI4: Penalidade | AJ4: Posição | AK4: Pontos | AL4: Bônus | AM4: Penalidade | AN4: Posição | AO4: Pontos | AP4: Bônus | AQ4: Penalidade | AR4: Posição | AS4: Pontos | AT4: Bônus | AU4: Penalidade | AV4: Posição | AW4: Pontos | AX4: Bônus | AY4: Penalidade | AZ4: 1º LUGAR | BA4: 2º LUGAR | BB4: 3º LUGAR | BC4: 4º LUGAR | BD4: 5º LUGAR | BE4: 6º LUGAR | BF4: 7º LUGAR | BG4: 8º LUGAR | BH4: 9º LUGAR | BI4: 10º LUGAR | BJ4: 11º LUGAR | BK4: 12º LUGAR | BL4: 13º LUGAR | BM4: 14º LUGAR | BN4: 15º LUGAR | BO4: 16º LUGAR | BP4: 17º LUGAR | BQ4: 18º LUGAR | BR4: 19º LUGAR | BS4: 20º LUGAR | BT4: 21º LUGAR | BU4: 22º LUGAR | BV4: 23º LUGAR | BW4: 24º LUGAR | BX4: 25º LUGAR | BY4: 26º LUGAR | BZ4: 27º LUGAR | CA4: 28º LUGAR | CB4: 29º LUGAR | CC4: 30º LUGAR | CD4: 31º LUGAR | CE4: 32º LUGAR | CF4: 33º LUGAR | CG4: 34º LUGAR | CH4: 35º LUGAR | CI4: 36º LUGAR | CJ4: 37º LUGAR | CK4: 38º LUGAR | CL4: 39º LUGAR | CM4: 40º LUGAR | CN4: 41º LUGAR
A5: 1 | B5: Alexandre Melillo | C5: 189 | D5: 2 | E5: 22 | F5: 1 | H5: 5 | I5: 16 | J5: 0 | L5: 17 | M5: 4 | O5: SIM | P5: 4 | Q5: 18 | T5: 1 | U5: 25 | V5: 1 | X5: 2 | Y5: 22 | AB5: 4 | AC5: 18 | AF5: 8 | AG5: 13 | AJ5: 8 | AK5: 13 | AN5: 2 | AO5: 22 | AS5: 0 | AV5: 7 | AW5: 14 | AZ5: 1 | BA5: 3 | BB5: 0 | BC5: 2 | BD5: 1 | BE5: 0 | BF5: 1 | BG5: 2 | BH5: 0 | BI5: 0 | BJ5: 0 | BK5: 0 | BL5: 0 | BM5: 0 | BN5: 0 | BO5: 0 | BP5: 1 | BQ5: 0 | BR5: 0 | BS5: 0 | BT5: 0 | BU5: 0 | BV5: 0 | BW5: 0 | BX5: 0 | BY5: 0 | BZ5: 0 | CA5: 0 | CB5: 0 | CC5: 0 | CD5: 0 | CE5: 0 | CF5: 0 | CG5: 0 | CH5: 0 | CI5: 0 | CJ5: 0 | CK5: 0 | CL5: 0 | CM5: 0 | CN5: 0
A6: 2 | B6: Carlos Eduardo | C6: 53 | D6: 11 | E6: 10 | F6: 0 | H6: 6 | I6: 15 | J6: 0 | L6: 2 | M6: 22 | P6: 14 | Q6: 7 | T6: 9 | U6: 12 | X6: 10 | Y6: 11 | AB6: 22 | AC6: 1 | AE6: SIM | AG6: 0 | AI6: -5 | AK6: 0 | AM6: -5 | AO6: 0 | AQ6: -5 | AS6: 0 | AU6: -5 | AW6: 0 | AY6: -5 | AZ6: 0 | BA6: 1 | BB6: 0 | BC6: 0 | BD6: 0 | BE6: 1 | BF6: 0 | BG6: 0 | BH6: 1 | BI6: 1 | BJ6: 1 | BK6: 0 | BL6: 0 | BM6: 1 | BN6: 0 | BO6: 0 | BP6: 0 | BQ6: 0 | BR6: 0 | BS6: 0 | BT6: 0 | BU6: 1 | BV6: 0 | BW6: 0 | BX6: 0 | BY6: 0 | BZ6: 0 | CA6: 0 | CB6: 0 | CC6: 0 | CD6: 0 | CE6: 0 | CF6: 0 | CG6: 0 | CH6: 0 | CI6: 0 | CJ6: 0 | CK6: 0 | CL6: 0 | CM6: 0 | CN6: 0
A7: 3 | B7: Cláudio Dumont | C7: 16 | E7: 0 | H7: 2 | I7: 22 | J7: 1 | L7: 7 | M7: 14 | P7: 7 | Q7: 14 | U7: 0 | Y7: 0 | AA7: -5 | AC7: 0 | AE7: -5 | AG7: 0 | AI7: -5 | AK7: 0 | AM7: -5 | AO7: 0 | AQ7: -5 | AS7: 0 | AU7: -5 | AW7: 0 | AY7: -5 | AZ7: 0 | BA7: 1 | BB7: 0 | BC7: 0 | BD7: 0 | BE7: 0 | BF7: 2 | BG7: 0 | BH7: 0 | BI7: 0 | BJ7: 0 | BK7: 0 | BL7: 0 | BM7: 0 | BN7: 0 | BO7: 0 | BP7: 0 | BQ7: 0 | BR7: 0 | BS7: 0 | BT7: 0 | BU7: 0 | BV7: 0 | BW7: 0 | BX7: 0 | BY7: 0 | BZ7: 0 | CA7: 0 | CB7: 0 | CC7: 0 | CD7: 0 | CE7: 0 | CF7: 0 | CG7: 0 | CH7: 0 | CI7: 0 | CJ7: 0 | CK7: 0 | CL7: 0 | CM7: 0 | CN7: 0
A8: 4 | B8: Claudio Junqueira | C8: 89 | D8: 3 | E8: 20 | F8: 0 | H8: 8 | I8: 13 | J8: 0 | L8: 1 | M8: 25 | N8: 1 | P8: 3 | Q8: 20 | T8: 11 | U8: 10 | W8: -5 | X8: 6 | Y8: 15 | AC8: 0 | AF8: 0 | AG8: 0 | AI8: SIM | AK8: 0 | AO8: 0 | AS8: 0 | AU8: -5 | AW8: 0 | AY8: -5 | AZ8: 1 | BA8: 0 | BB8: 2 | BC8: 0 | BD8: 0 | BE8: 1 | BF8: 0 | BG8: 1 | BH8: 0 | BI8: 0 | BJ8: 1 | BK8: 0 | BL8: 0 | BM8: 0 | BN8: 0 | BO8: 0 | BP8: 0 | BQ8: 0 | BR8: 0 | BS8: 0 | BT8: 0 | BU8: 0 | BV8: 0 | BW8: 0 | BX8: 0 | BY8: 0 | BZ8: 0 | CA8: 0 | CB8: 0 | CC8: 0 | CD8: 0 | CE8: 0 | CF8: 0 | CG8: 0 | CH8: 0 | CI8: 0 | CJ8: 0 | CK8: 0 | CL8: 0 | CM8: 0 | CN8: 0
A9: 5 | B9: Marcelo Clemente | C9: 208 | D9: 6 | E9: 15 | F9: 0 | H9: 10 | I9: 11 | J9: 0 | L9: 6 | M9: 15 | P9: 1 | Q9: 25 | T9: 6 | U9: 15 | X9: 1 | Y9: 25 | AB9: 11 | AC9: 10 | AD9: 1 | AE9: SIM | AF9: 1 | AG9: 25 | AH9: 1 | AJ9: 2 | AK9: 22 | AL9: 1 | AN9: 31 | AO9: 0 | AQ9: SIM | AR9: 3 | AS9: 20 | AV9: 2 | AW9: 22 | AZ9: 3 | BA9: 2 | BB9: 1 | BC9: 0 | BD9: 0 | BE9: 3 | BF9: 0 | BG9: 0 | BH9: 0 | BI9: 1 | BJ9: 1 | BK9: 0 | BL9: 0 | BM9: 0 | BN9: 0 | BO9: 0 | BP9: 0 | BQ9: 0 | BR9: 0 | BS9: 0 | BT9: 0 | BU9: 0 | BV9: 0 | BW9: 0 | BX9: 0 | BY9: 0 | BZ9: 0 | CA9: 0 | CB9: 0 | CC9: 0 | CD9: 1 | CE9: 0 | CF9: 0 | CG9: 0 | CH9: 0 | CI9: 0 | CJ9: 0 | CK9: 0 | CL9: 0 | CM9: 0 | CN9: 0
A10: 6 | B10: Euclides Almeida | C10: 124 | E10: 0 | H10: 4 | I10: 18 | J10: 0 | L10: 11 | M10: 10 | Q10: 0 | T10: 10 | U10: 11 | X10: 7 | Y10: 14 | AB10: 6 | AC10: 15 | AF10: 7 | AG10: 14 | AJ10: 9 | AK10: 12 | AN10: 9 | AO10: 12 | AR10: 4 | AS10: 18 | AW10: 0 | AZ10: 0 | BA10: 0 | BB10: 0 | BC10: 2 | BD10: 0 | BE10: 1 | BF10: 2 | BG10: 0 | BH10: 2 | BI10: 1 | BJ10: 1 | BK10: 0 | BL10: 0 | BM10: 0 | BN10: 0 | BO10: 0 | BP10: 0 | BQ10: 0 | BR10: 0 | BS10: 0 | BT10: 0 | BU10: 0 | BV10: 0 | BW10: 0 | BX10: 0 | BY10: 0 | BZ10: 0 | CA10: 0 | CB10: 0 | CC10: 0 | CD10: 0 | CE10: 0 | CF10: 0 | CG10: 0 | CH10: 0 | CI10: 0 | CJ10: 0 | CK10: 0 | CL10: 0 | CM10: 0 | CN10: 0
A11: 7 | B11: Guilherme Janot | C11: 138 | D11: 1 | E11: 25 | F11: 0 | H11: 11 | I11: 10 | J11: 0 | K11: SIM | L11: 3 | M11: 20 | P11: 6 | Q11: 15 | R11: 1 | T11: 7 | U11: 14 | X11: 11 | Y11: 10 | AB11: 1 | AC11: 25 | AF11: 2 | AG11: 22 | AJ11: 26 | AK11: 0 | AM11: SIM | AN11: 0 | AO11: 0 | AQ11: SIM | AR11: 23 | AS11: 1 | AU11: SIM | AW11: 0 | AY11: -5 | AZ11: 2 | BA11: 1 | BB11: 1 | BC11: 0 | BD11: 0 | BE11: 1 | BF11: 1 | BG11: 0 | BH11: 0 | BI11: 0 | BJ11: 2 | BK11: 0 | BL11: 0 | BM11: 0 | BN11: 0 | BO11: 0 | BP11: 0 | BQ11: 0 | BR11: 0 | BS11: 0 | BT11: 0 | BU11: 0 | BV11: 1 | BW11: 0 | BX11: 0 | BY11: 1 | BZ11: 0 | CA11: 0 | CB11: 0 | CC11: 0 | CD11: 0 | CE11: 0 | CF11: 0 | CG11: 0 | CH11: 0 | CI11: 0 | CJ11: 0 | CK11: 0 | CL11: 0 | CM11: 0 | CN11: 0
A12: 8 | B12: Ivan Renault | C12: 12 | E12: 0 | I12: 0 | M12: 0 | Q12: 0 | U12: 0 | Y12: 0 | AC12: 0 | AE12: -5 | AG12: 0 | AJ12: 10 | AK12: 11 | AO12: 0 | AS12: 0 | AU12: -5 | AV12: 10 | AW12: 11 | AZ12: 0 | BA12: 0 | BB12: 0 | BC12: 0 | BD12: 0 | BE12: 0 | BF12: 0 | BG12: 0 | BH12: 0 | BI12: 2 | BJ12: 0 | BK12: 0 | BL12: 0 | BM12: 0 | BN12: 0 | BO12: 0 | BP12: 0 | BQ12: 0 | BR12: 0 | BS12: 0 | BT12: 0 | BU12: 0 | BV12: 0 | BW12: 0 | BX12: 0 | BY12: 0 | BZ12: 0 | CA12: 0 | CB12: 0 | CC12: 0 | CD12: 0 | CE12: 0 | CF12: 0 | CG12: 0 | CH12: 0 | CI12: 0 | CJ12: 0 | CK12: 0 | CL12: 0 | CM12: 0 | CN12: 0
A13: 9 | B13: Jarbas Reis | C13: 173 | D13: 5 | E13: 16 | F13: 0 | H13: 7 | I13: 14 | J13: 0 | L13: 5 | M13: 16 | P13: 8 | Q13: 13 | T13: 5 | U13: 16 | X13: 8 | Y13: 13 | AB13: 7 | AC13: 14 | AF13: 6 | AG13: 15 | AJ13: 7 | AK13: 14 | AO13: 0 | AR13: 1 | AS13: 25 | AT13: 1 | AV13: 5 | AW13: 16 | AZ13: 1 | BA13: 0 | BB13: 0 | BC13: 0 | BD13: 4 | BE13: 1 | BF13: 3 | BG13: 2 | BH13: 0 | BI13: 0 | BJ13: 0 | BK13: 0 | BL13: 0 | BM13: 0 | BN13: 0 | BO13: 0 | BP13: 0 | BQ13: 0 | BR13: 0 | BS13: 0 | BT13: 0 | BU13: 0 | BV13: 0 | BW13: 0 | BX13: 0 | BY13: 0 | BZ13: 0 | CA13: 0 | CB13: 0 | CC13: 0 | CD13: 0 | CE13: 0 | CF13: 0 | CG13: 0 | CH13: 0 | CI13: 0 | CJ13: 0 | CK13: 0 | CL13: 0 | CM13: 0 | CN13: 0
A14: 10 | B14: Lucio Chequer | C14: 120 | D14: 9 | E14: 12 | F14: 0 | H14: 9 | I14: 12 | J14: 0 | L14: 13 | M14: 8 | P14: 10 | Q14: 11 | T14: 16 | U14: 5 | W14: SIM | X14: 9 | Y14: 12 | AC14: 0 | AF14: 10 | AG14: 11 | AJ14: 11 | AK14: 10 | AN14: 7 | AO14: 14 | AS14: 0 | AV14: 1 | AW14: 25 | AZ14: 1 | BA14: 0 | BB14: 0 | BC14: 0 | BD14: 0 | BE14: 0 | BF14: 1 | BG14: 0 | BH14: 3 | BI14: 2 | BJ14: 1 | BK14: 0 | BL14: 1 | BM14: 0 | BN14: 0 | BO14: 1 | BP14: 0 | BQ14: 0 | BR14: 0 | BS14: 0 | BT14: 0 | BU14: 0 | BV14: 0 | BW14: 0 | BX14: 0 | BY14: 0 | BZ14: 0 | CA14: 0 | CB14: 0 | CC14: 0 | CD14: 0 | CE14: 0 | CF14: 0 | CG14: 0 | CH14: 0 | CI14: 0 | CJ14: 0 | CK14: 0 | CL14: 0 | CM14: 0 | CN14: 0
A15: 11 | B15: Marcelo Mizrahy | C15: 176 | D15: 4 | E15: 18 | F15: 0 | H15: 3 | I15: 20 | J15: 0 | L15: 9 | M15: 12 | P15: 2 | Q15: 22 | U15: 0 | X15: 5 | Y15: 16 | Z15: 1 | AB15: 20 | AC15: 1 | AE15: SIM | AF15: 3 | AG15: 20 | AJ15: 4 | AK15: 18 | AN15: 8 | AO15: 13 | AP15: 1 | AR15: 8 | AS15: 13 | AV15: 3 | AW15: 20 | AX15: 1 | AZ15: 0 | BA15: 1 | BB15: 3 | BC15: 2 | BD15: 1 | BE15: 0 | BF15: 0 | BG15: 2 | BH15: 1 | BI15: 0 | BJ15: 0 | BK15: 0 | BL15: 0 | BM15: 0 | BN15: 0 | BO15: 0 | BP15: 0 | BQ15: 0 | BR15: 0 | BS15: 1 | BT15: 0 | BU15: 0 | BV15: 0 | BW15: 0 | BX15: 0 | BY15: 0 | BZ15: 0 | CA15: 0 | CB15: 0 | CC15: 0 | CD15: 0 | CE15: 0 | CF15: 0 | CG15: 0 | CH15: 0 | CI15: 0 | CJ15: 0 | CK15: 0 | CL15: 0 | CM15: 0 | CN15: 0
A16: 12 | B16: Marcelo Sant'anna | C16: 189 | D16: 8 | E16: 13 | F16: 0 | H16: 1 | I16: 25 | J16: 0 | M16: 0 | P16: 5 | Q16: 16 | T16: 4 | U16: 18 | X16: 4 | Y16: 18 | AB16: 3 | AC16: 20 | AF16: 9 | AG16: 12 | AJ16: 3 | AK16: 20 | AN16: 3 | AO16: 20 | AR16: 7 | AS16: 14 | AV16: 8 | AW16: 13 | AZ16: 1 | BA16: 0 | BB16: 3 | BC16: 2 | BD16: 1 | BE16: 0 | BF16: 1 | BG16: 2 | BH16: 1 | BI16: 0 | BJ16: 0 | BK16: 0 | BL16: 0 | BM16: 0 | BN16: 0 | BO16: 0 | BP16: 0 | BQ16: 0 | BR16: 0 | BS16: 0 | BT16: 0 | BU16: 0 | BV16: 0 | BW16: 0 | BX16: 0 | BY16: 0 | BZ16: 0 | CA16: 0 | CB16: 0 | CC16: 0 | CD16: 0 | CE16: 0 | CF16: 0 | CG16: 0 | CH16: 0 | CI16: 0 | CJ16: 0 | CK16: 0 | CL16: 0 | CM16: 0 | CN16: 0
A17: 13 | B17: Marcelo Surerus | C17: 132 | E17: 0 | I17: 0 | L17: 4 | M17: 18 | P17: 9 | Q17: 12 | T17: 2 | U17: 22 | X17: 13 | Y17: 8 | AB17: 2 | AC17: 22 | AG17: 0 | AK17: 0 | AM17: -5 | AN17: 6 | AO17: 15 | AR17: 2 | AS17: 22 | AV17: 4 | AW17: 18 | AZ17: 0 | BA17: 3 | BB17: 0 | BC17: 2 | BD17: 0 | BE17: 1 | BF17: 0 | BG17: 0 | BH17: 1 | BI17: 0 | BJ17: 0 | BK17: 0 | BL17: 1 | BM17: 0 | BN17: 0 | BO17: 0 | BP17: 0 | BQ17: 0 | BR17: 0 | BS17: 0 | BT17: 0 | BU17: 0 | BV17: 0 | BW17: 0 | BX17: 0 | BY17: 0 | BZ17: 0 | CA17: 0 | CB17: 0 | CC17: 0 | CD17: 0 | CE17: 0 | CF17: 0 | CG17: 0 | CH17: 0 | CI17: 0 | CJ17: 0 | CK17: 0 | CL17: 0 | CM17: 0 | CN17: 0
A18: 14 | B18: Morvan | C18: 104 | D18: 10 | E18: 11 | F18: 0 | H18: 12 | I18: 9 | J18: 0 | L18: 10 | M18: 11 | P18: 12 | Q18: 9 | T18: 8 | U18: 13 | X18: 14 | Y18: 7 | AB18: 21 | AC18: 1 | AE18: SIM | AF18: 11 | AG18: 10 | AJ18: 30 | AK18: 0 | AM18: SIM | AN18: 10 | AO18: 11 | AR18: 9 | AS18: 12 | AV18: 11 | AW18: 10 | AZ18: 0 | BA18: 0 | BB18: 0 | BC18: 0 | BD18: 0 | BE18: 0 | BF18: 0 | BG18: 1 | BH18: 1 | BI18: 3 | BJ18: 2 | BK18: 2 | BL18: 0 | BM18: 1 | BN18: 0 | BO18: 0 | BP18: 0 | BQ18: 0 | BR18: 0 | BS18: 0 | BT18: 1 | BU18: 0 | BV18: 0 | BW18: 0 | BX18: 0 | BY18: 0 | BZ18: 0 | CA18: 0 | CB18: 0 | CC18: 1 | CD18: 0 | CE18: 0 | CF18: 0 | CG18: 0 | CH18: 0 | CI18: 0 | CJ18: 0 | CK18: 0 | CL18: 0 | CM18: 0 | CN18: 0
A19: 15 | B19: Roberto Veloso | C19: 66 | E19: 0 | H19: 13 | I19: 8 | J19: 0 | L19: 14 | M19: 7 | Q19: 0 | U19: 0 | Y19: 0 | AC19: 0 | AE19: -5 | AF19: 12 | AG19: 9 | AJ19: 1 | AK19: 25 | AN19: 4 | AO19: 18 | AS19: 0 | AU19: -5 | AV19: 12 | AW19: 9 | AZ19: 1 | BA19: 0 | BB19: 0 | BC19: 1 | BD19: 0 | BE19: 0 | BF19: 0 | BG19: 0 | BH19: 0 | BI19: 0 | BJ19: 0 | BK19: 2 | BL19: 1 | BM19: 1 | BN19: 0 | BO19: 0 | BP19: 0 | BQ19: 0 | BR19: 0 | BS19: 0 | BT19: 0 | BU19: 0 | BV19: 0 | BW19: 0 | BX19: 0 | BY19: 0 | BZ19: 0 | CA19: 0 | CB19: 0 | CC19: 0 | CD19: 0 | CE19: 0 | CF19: 0 | CG19: 0 | CH19: 0 | CI19: 0 | CJ19: 0 | CK19: 0 | CL19: 0 | CM19: 0 | CN19: 0
A20: 16 | B20: Rodrigo Mercadante | C20: 176 | D20: 7 | E20: 14 | F20: 0 | I20: 0 | L20: 8 | M20: 13 | P20: 11 | Q20: 10 | T20: 3 | U20: 20 | X20: 3 | Y20: 20 | AB20: 8 | AC20: 13 | AF20: 4 | AG20: 18 | AJ20: 6 | AK20: 15 | AN20: 1 | AO20: 25 | AR20: 5 | AS20: 16 | AV20: 9 | AW20: 12 | AZ20: 1 | BA20: 0 | BB20: 2 | BC20: 1 | BD20: 1 | BE20: 1 | BF20: 1 | BG20: 2 | BH20: 1 | BI20: 0 | BJ20: 1 | BK20: 0 | BL20: 0 | BM20: 0 | BN20: 0 | BO20: 0 | BP20: 0 | BQ20: 0 | BR20: 0 | BS20: 0 | BT20: 0 | BU20: 0 | BV20: 0 | BW20: 0 | BX20: 0 | BY20: 0 | BZ20: 0 | CA20: 0 | CB20: 0 | CC20: 0 | CD20: 0 | CE20: 0 | CF20: 0 | CG20: 0 | CH20: 0 | CI20: 0 | CJ20: 0 | CK20: 0 | CL20: 0 | CM20: 0 | CN20: 0
A21: 17 | B21: Gijo | C21: 96 | D21: 22 | E21: 1 | F21: 0 | G21: SIM | H21: 29 | I21: 0 | J21: 0 | K21: SIM | L21: 12 | M21: 9 | P21: 13 | Q21: 8 | U21: 0 | W21: -5 | X21: 12 | Y21: 9 | AA21: -5 | AB21: 5 | AC21: 16 | AF21: 5 | AG21: 16 | AJ21: 5 | AK21: 16 | AN21: 5 | AO21: 16 | AQ21: -5 | AR21: 6 | AS21: 15 | AU21: -5 | AV21: 6 | AW21: 15 | AY21: -5 | AZ21: 0 | BA21: 0 | BB21: 0 | BC21: 0 | BD21: 4 | BE21: 2 | BF21: 0 | BG21: 0 | BH21: 0 | BI21: 0 | BJ21: 0 | BK21: 2 | BL21: 1 | BM21: 0 | BN21: 0 | BO21: 0 | BP21: 0 | BQ21: 0 | BR21: 0 | BS21: 0 | BT21: 0 | BU21: 1 | BV21: 0 | BW21: 0 | BX21: 0 | BY21: 0 | BZ21: 0 | CA21: 0 | CB21: 1 | CC21: 0 | CD21: 0 | CE21: 0 | CF21: 0 | CG21: 0 | CH21: 0 | CI21: 0 | CJ21: 0 | CK21: 0 | CL21: 0 | CM21: 0 | CN21: 0
A22: 18 | C22: 0 | E22: 0 | I22: 0 | M22: 0 | Q22: 0 | U22: 0 | Y22: 0 | AC22: 0 | AG22: 0 | AK22: 0 | AO22: 0 | AS22: 0 | AW22: 0 | AZ22: 0 | BA22: 0 | BB22: 0 | BC22: 0 | BD22: 0 | BE22: 0 | BF22: 0 | BG22: 0 | BH22: 0 | BI22: 0 | BJ22: 0 | BK22: 0 | BL22: 0 | BM22: 0 | BN22: 0 | BO22: 0 | BP22: 0 | BQ22: 0 | BR22: 0 | BS22: 0 | BT22: 0 | BU22: 0 | BV22: 0 | BW22: 0 | BX22: 0 | BY22: 0 | BZ22: 0 | CA22: 0 | CB22: 0 | CC22: 0 | CD22: 0 | CE22: 0 | CF22: 0 | CG22: 0 | CH22: 0 | CI22: 0 | CJ22: 0 | CK22: 0 | CL22: 0 | CM22: 0 | CN22: 0
A23: 19 | C23: 0 | E23: 0 | I23: 0 | M23: 0 | Q23: 0 | U23: 0 | Y23: 0 | AC23: 0 | AG23: 0 | AK23: 0 | AO23: 0 | AS23: 0 | AW23: 0 | AZ23: 0 | BA23: 0 | BB23: 0 | BC23: 0 | BD23: 0 | BE23: 0 | BF23: 0 | BG23: 0 | BH23: 0 | BI23: 0 | BJ23: 0 | BK23: 0 | BL23: 0 | BM23: 0 | BN23: 0 | BO23: 0 | BP23: 0 | BQ23: 0 | BR23: 0 | BS23: 0 | BT23: 0 | BU23: 0 | BV23: 0 | BW23: 0 | BX23: 0 | BY23: 0 | BZ23: 0 | CA23: 0 | CB23: 0 | CC23: 0 | CD23: 0 | CE23: 0 | CF23: 0 | CG23: 0 | CH23: 0 | CI23: 0 | CJ23: 0 | CK23: 0 | CL23: 0 | CM23: 0 | CN23: 0
A24: 20 | C24: 0 | E24: 0 | I24: 0 | M24: 0 | Q24: 0 | U24: 0 | Y24: 0 | AC24: 0 | AG24: 0 | AK24: 0 | AO24: 0 | AS24: 0 | AW24: 0 | AZ24: 0 | BA24: 0 | BB24: 0 | BC24: 0 | BD24: 0 | BE24: 0 | BF24: 0 | BG24: 0 | BH24: 0 | BI24: 0 | BJ24: 0 | BK24: 0 | BL24: 0 | BM24: 0 | BN24: 0 | BO24: 0 | BP24: 0 | BQ24: 0 | BR24: 0 | BS24: 0 | BT24: 0 | BU24: 0 | BV24: 0 | BW24: 0 | BX24: 0 | BY24: 0 | BZ24: 0 | CA24: 0 | CB24: 0 | CC24: 0 | CD24: 0 | CE24: 0 | CF24: 0 | CG24: 0 | CH24: 0 | CI24: 0 | CJ24: 0 | CK24: 0 | CL24: 0 | CM24: 0 | CN24: 0
A25: 21 | C25: 0 | E25: 0 | I25: 0 | M25: 0 | Q25: 0 | U25: 0 | Y25: 0 | AC25: 0 | AG25: 0 | AK25: 0 | AO25: 0 | AS25: 0 | AW25: 0 | AZ25: 0 | BA25: 0 | BB25: 0 | BC25: 0 | BD25: 0 | BE25: 0 | BF25: 0 | BG25: 0 | BH25: 0 | BI25: 0 | BJ25: 0 | BK25: 0 | BL25: 0 | BM25: 0 | BN25: 0 | BO25: 0 | BP25: 0 | BQ25: 0 | BR25: 0 | BS25: 0 | BT25: 0 | BU25: 0 | BV25: 0 | BW25: 0 | BX25: 0 | BY25: 0 | BZ25: 0 | CA25: 0 | CB25: 0 | CC25: 0 | CD25: 0 | CE25: 0 | CF25: 0 | CG25: 0 | CH25: 0 | CI25: 0 | CJ25: 0 | CK25: 0 | CL25: 0 | CM25: 0 | CN25: 0
A26: 22 | C26: 0 | E26: 0 | I26: 0 | M26: 0 | Q26: 0 | U26: 0 | Y26: 0 | AC26: 0 | AG26: 0 | AK26: 0 | AO26: 0 | AS26: 0 | AW26: 0 | AZ26: 0 | BA26: 0 | BB26: 0 | BC26: 0 | BD26: 0 | BE26: 0 | BF26: 0 | BG26: 0 | BH26: 0 | BI26: 0 | BJ26: 0 | BK26: 0 | BL26: 0 | BM26: 0 | BN26: 0 | BO26: 0 | BP26: 0 | BQ26: 0 | BR26: 0 | BS26: 0 | BT26: 0 | BU26: 0 | BV26: 0 | BW26: 0 | BX26: 0 | BY26: 0 | BZ26: 0 | CA26: 0 | CB26: 0 | CC26: 0 | CD26: 0 | CE26: 0 | CF26: 0 | CG26: 0 | CH26: 0 | CI26: 0 | CJ26: 0 | CK26: 0 | CL26: 0 | CM26: 0 | CN26: 0
A27: 23 | C27: 0 | E27: 0 | I27: 0 | M27: 0 | Q27: 0 | U27: 0 | Y27: 0 | AC27: 0 | AG27: 0 | AK27: 0 | AO27: 0 | AS27: 0 | AW27: 0 | AZ27: 0 | BA27: 0 | BB27: 0 | BC27: 0 | BD27: 0 | BE27: 0 | BF27: 0 | BG27: 0 | BH27: 0 | BI27: 0 | BJ27: 0 | BK27: 0 | BL27: 0 | BM27: 0 | BN27: 0 | BO27: 0 | BP27: 0 | BQ27: 0 | BR27: 0 | BS27: 0 | BT27: 0 | BU27: 0 | BV27: 0 | BW27: 0 | BX27: 0 | BY27: 0 | BZ27: 0 | CA27: 0 | CB27: 0 | CC27: 0 | CD27: 0 | CE27: 0 | CF27: 0 | CG27: 0 | CH27: 0 | CI27: 0 | CJ27: 0 | CK27: 0 | CL27: 0 | CM27: 0 | CN27: 0
A28: 24 | C28: 0 | E28: 0 | I28: 0 | M28: 0 | Q28: 0 | U28: 0 | Y28: 0 | AC28: 0 | AG28: 0 | AK28: 0 | AO28: 0 | AS28: 0 | AW28: 0 | AZ28: 0 | BA28: 0 | BB28: 0 | BC28: 0 | BD28: 0 | BE28: 0 | BF28: 0 | BG28: 0 | BH28: 0 | BI28: 0 | BJ28: 0 | BK28: 0 | BL28: 0 | BM28: 0 | BN28: 0 | BO28: 0 | BP28: 0 | BQ28: 0 | BR28: 0 | BS28: 0 | BT28: 0 | BU28: 0 | BV28: 0 | BW28: 0 | BX28: 0 | BY28: 0 | BZ28: 0 | CA28: 0 | CB28: 0 | CC28: 0 | CD28: 0 | CE28: 0 | CF28: 0 | CG28: 0 | CH28: 0 | CI28: 0 | CJ28: 0 | CK28: 0 | CL28: 0 | CM28: 0 | CN28: 0
A29: 25 | C29: 0 | E29: 0 | I29: 0 | M29: 0 | Q29: 0 | U29: 0 | Y29: 0 | AC29: 0 | AG29: 0 | AK29: 0 | AO29: 0 | AS29: 0 | AW29: 0 | AZ29: 0 | BA29: 0 | BB29: 0 | BC29: 0 | BD29: 0 | BE29: 0 | BF29: 0 | BG29: 0 | BH29: 0 | BI29: 0 | BJ29: 0 | BK29: 0 | BL29: 0 | BM29: 0 | BN29: 0 | BO29: 0 | BP29: 0 | BQ29: 0 | BR29: 0 | BS29: 0 | BT29: 0 | BU29: 0 | BV29: 0 | BW29: 0 | BX29: 0 | BY29: 0 | BZ29: 0 | CA29: 0 | CB29: 0 | CC29: 0 | CD29: 0 | CE29: 0 | CF29: 0 | CG29: 0 | CH29: 0 | CI29: 0 | CJ29: 0 | CK29: 0 | CL29: 0 | CM29: 0 | CN29: 0
A30: 26 | C30: 0 | E30: 0 | I30: 0 | M30: 0 | Q30: 0 | U30: 0 | Y30: 0 | AC30: 0 | AG30: 0 | AK30: 0 | AO30: 0 | AS30: 0 | AW30: 0 | AZ30: 0 | BA30: 0 | BB30: 0 | BC30: 0 | BD30: 0 | BE30: 0 | BF30: 0 | BG30: 0 | BH30: 0 | BI30: 0 | BJ30: 0 | BK30: 0 | BL30: 0 | BM30: 0 | BN30: 0 | BO30: 0 | BP30: 0 | BQ30: 0 | BR30: 0 | BS30: 0 | BT30: 0 | BU30: 0 | BV30: 0 | BW30: 0 | BX30: 0 | BY30: 0 | BZ30: 0 | CA30: 0 | CB30: 0 | CC30: 0 | CD30: 0 | CE30: 0 | CF30: 0 | CG30: 0 | CH30: 0 | CI30: 0 | CJ30: 0 | CK30: 0 | CL30: 0 | CM30: 0 | CN30: 0
A31: 27 | C31: 0 | E31: 0 | I31: 0 | M31: 0 | Q31: 0 | U31: 0 | Y31: 0 | AC31: 0 | AG31: 0 | AK31: 0 | AO31: 0 | AS31: 0 | AW31: 0 | AZ31: 0 | BA31: 0 | BB31: 0 | BC31: 0 | BD31: 0 | BE31: 0 | BF31: 0 | BG31: 0 | BH31: 0 | BI31: 0 | BJ31: 0 | BK31: 0 | BL31: 0 | BM31: 0 | BN31: 0 | BO31: 0 | BP31: 0 | BQ31: 0 | BR31: 0 | BS31: 0 | BT31: 0 | BU31: 0 | BV31: 0 | BW31: 0 | BX31: 0 | BY31: 0 | BZ31: 0 | CA31: 0 | CB31: 0 | CC31: 0 | CD31: 0 | CE31: 0 | CF31: 0 | CG31: 0 | CH31: 0 | CI31: 0 | CJ31: 0 | CK31: 0 | CL31: 0 | CM31: 0 | CN31: 0
A32: 28 | C32: 0 | E32: 0 | I32: 0 | M32: 0 | Q32: 0 | U32: 0 | Y32: 0 | AC32: 0 | AG32: 0 | AK32: 0 | AO32: 0 | AS32: 0 | AW32: 0 | AZ32: 0 | BA32: 0 | BB32: 0 | BC32: 0 | BD32: 0 | BE32: 0 | BF32: 0 | BG32: 0 | BH32: 0 | BI32: 0 | BJ32: 0 | BK32: 0 | BL32: 0 | BM32: 0 | BN32: 0 | BO32: 0 | BP32: 0 | BQ32: 0 | BR32: 0 | BS32: 0 | BT32: 0 | BU32: 0 | BV32: 0 | BW32: 0 | BX32: 0 | BY32: 0 | BZ32: 0 | CA32: 0 | CB32: 0 | CC32: 0 | CD32: 0 | CE32: 0 | CF32: 0 | CG32: 0 | CH32: 0 | CI32: 0 | CJ32: 0 | CK32: 0 | CL32: 0 | CM32: 0 | CN32: 0
A33: 29 | C33: 0 | E33: 0 | I33: 0 | M33: 0 | Q33: 0 | U33: 0 | Y33: 0 | AC33: 0 | AG33: 0 | AK33: 0 | AO33: 0 | AS33: 0 | AW33: 0 | AZ33: 0 | BA33: 0 | BB33: 0 | BC33: 0 | BD33: 0 | BE33: 0 | BF33: 0 | BG33: 0 | BH33: 0 | BI33: 0 | BJ33: 0 | BK33: 0 | BL33: 0 | BM33: 0 | BN33: 0 | BO33: 0 | BP33: 0 | BQ33: 0 | BR33: 0 | BS33: 0 | BT33: 0 | BU33: 0 | BV33: 0 | BW33: 0 | BX33: 0 | BY33: 0 | BZ33: 0 | CA33: 0 | CB33: 0 | CC33: 0 | CD33: 0 | CE33: 0 | CF33: 0 | CG33: 0 | CH33: 0 | CI33: 0 | CJ33: 0 | CK33: 0 | CL33: 0 | CM33: 0 | CN33: 0
A34: 30 | C34: 0 | E34: 0 | I34: 0 | M34: 0 | Q34: 0 | U34: 0 | Y34: 0 | AC34: 0 | AG34: 0 | AK34: 0 | AO34: 0 | AS34: 0 | AW34: 0 | AZ34: 0 | BA34: 0 | BB34: 0 | BC34: 0 | BD34: 0 | BE34: 0 | BF34: 0 | BG34: 0 | BH34: 0 | BI34: 0 | BJ34: 0 | BK34: 0 | BL34: 0 | BM34: 0 | BN34: 0 | BO34: 0 | BP34: 0 | BQ34: 0 | BR34: 0 | BS34: 0 | BT34: 0 | BU34: 0 | BV34: 0 | BW34: 0 | BX34: 0 | BY34: 0 | BZ34: 0 | CA34: 0 | CB34: 0 | CC34: 0 | CD34: 0 | CE34: 0 | CF34: 0 | CG34: 0 | CH34: 0 | CI34: 0 | CJ34: 0 | CK34: 0 | CL34: 0 | CM34: 0 | CN34: 0
A35: 31 | C35: 0 | E35: 0 | I35: 0 | M35: 0 | Q35: 0 | U35: 0 | Y35: 0 | AC35: 0 | AG35: 0 | AK35: 0 | AO35: 0 | AS35: 0 | AW35: 0 | AZ35: 0 | BA35: 0 | BB35: 0 | BC35: 0 | BD35: 0 | BE35: 0 | BF35: 0 | BG35: 0 | BH35: 0 | BI35: 0 | BJ35: 0 | BK35: 0 | BL35: 0 | BM35: 0 | BN35: 0 | BO35: 0 | BP35: 0 | BQ35: 0 | BR35: 0 | BS35: 0 | BT35: 0 | BU35: 0 | BV35: 0 | BW35: 0 | BX35: 0 | BY35: 0 | BZ35: 0 | CA35: 0 | CB35: 0 | CC35: 0 | CD35: 0 | CE35: 0 | CF35: 0 | CG35: 0 | CH35: 0 | CI35: 0 | CJ35: 0 | CK35: 0 | CL35: 0 | CM35: 0 | CN35: 0
A36: 32 | C36: 0 | E36: 0 | I36: 0 | M36: 0 | Q36: 0 | U36: 0 | Y36: 0 | AC36: 0 | AG36: 0 | AK36: 0 | AO36: 0 | AS36: 0 | AW36: 0 | AZ36: 0 | BA36: 0 | BB36: 0 | BC36: 0 | BD36: 0 | BE36: 0 | BF36: 0 | BG36: 0 | BH36: 0 | BI36: 0 | BJ36: 0 | BK36: 0 | BL36: 0 | BM36: 0 | BN36: 0 | BO36: 0 | BP36: 0 | BQ36: 0 | BR36: 0 | BS36: 0 | BT36: 0 | BU36: 0 | BV36: 0 | BW36: 0 | BX36: 0 | BY36: 0 | BZ36: 0 | CA36: 0 | CB36: 0 | CC36: 0 | CD36: 0 | CE36: 0 | CF36: 0 | CG36: 0 | CH36: 0 | CI36: 0 | CJ36: 0 | CK36: 0 | CL36: 0 | CM36: 0 | CN36: 0
A37: 33 | C37: 0 | E37: 0 | I37: 0 | M37: 0 | Q37: 0 | U37: 0 | Y37: 0 | AC37: 0 | AG37: 0 | AK37: 0 | AO37: 0 | AS37: 0 | AW37: 0 | AZ37: 0 | BA37: 0 | BB37: 0 | BC37: 0 | BD37: 0 | BE37: 0 | BF37: 0 | BG37: 0 | BH37: 0 | BI37: 0 | BJ37: 0 | BK37: 0 | BL37: 0 | BM37: 0 | BN37: 0 | BO37: 0 | BP37: 0 | BQ37: 0 | BR37: 0 | BS37: 0 | BT37: 0 | BU37: 0 | BV37: 0 | BW37: 0 | BX37: 0 | BY37: 0 | BZ37: 0 | CA37: 0 | CB37: 0 | CC37: 0 | CD37: 0 | CE37: 0 | CF37: 0 | CG37: 0 | CH37: 0 | CI37: 0 | CJ37: 0 | CK37: 0 | CL37: 0 | CM37: 0 | CN37: 0
A38: 34 | C38: 0 | E38: 0 | I38: 0 | M38: 0 | Q38: 0 | U38: 0 | Y38: 0 | AC38: 0 | AG38: 0 | AK38: 0 | AO38: 0 | AS38: 0 | AW38: 0 | AZ38: 0 | BA38: 0 | BB38: 0 | BC38: 0 | BD38: 0 | BE38: 0 | BF38: 0 | BG38: 0 | BH38: 0 | BI38: 0 | BJ38: 0 | BK38: 0 | BL38: 0 | BM38: 0 | BN38: 0 | BO38: 0 | BP38: 0 | BQ38: 0 | BR38: 0 | BS38: 0 | BT38: 0 | BU38: 0 | BV38: 0 | BW38: 0 | BX38: 0 | BY38: 0 | BZ38: 0 | CA38: 0 | CB38: 0 | CC38: 0 | CD38: 0 | CE38: 0 | CF38: 0 | CG38: 0 | CH38: 0 | CI38: 0 | CJ38: 0 | CK38: 0 | CL38: 0 | CM38: 0 | CN38: 0
A39: 35 | C39: 0 | E39: 0 | I39: 0 | M39: 0 | Q39: 0 | U39: 0 | Y39: 0 | AC39: 0 | AG39: 0 | AK39: 0 | AO39: 0 | AS39: 0 | AW39: 0 | AZ39: 0 | BA39: 0 | BB39: 0 | BC39: 0 | BD39: 0 | BE39: 0 | BF39: 0 | BG39: 0 | BH39: 0 | BI39: 0 | BJ39: 0 | BK39: 0 | BL39: 0 | BM39: 0 | BN39: 0 | BO39: 0 | BP39: 0 | BQ39: 0 | BR39: 0 | BS39: 0 | BT39: 0 | BU39: 0 | BV39: 0 | BW39: 0 | BX39: 0 | BY39: 0 | BZ39: 0 | CA39: 0 | CB39: 0 | CC39: 0 | CD39: 0 | CE39: 0 | CF39: 0 | CG39: 0 | CH39: 0 | CI39: 0 | CJ39: 0 | CK39: 0 | CL39: 0 | CM39: 0 | CN39: 0
A40: 36 | C40: 0 | E40: 0 | I40: 0 | M40: 0 | Q40: 0 | U40: 0 | Y40: 0 | AC40: 0 | AG40: 0 | AK40: 0 | AO40: 0 | AS40: 0 | AW40: 0 | AZ40: 0 | BA40: 0 | BB40: 0 | BC40: 0 | BD40: 0 | BE40: 0 | BF40: 0 | BG40: 0 | BH40: 0 | BI40: 0 | BJ40: 0 | BK40: 0 | BL40: 0 | BM40: 0 | BN40: 0 | BO40: 0 | BP40: 0 | BQ40: 0 | BR40: 0 | BS40: 0 | BT40: 0 | BU40: 0 | BV40: 0 | BW40: 0 | BX40: 0 | BY40: 0 | BZ40: 0 | CA40: 0 | CB40: 0 | CC40: 0 | CD40: 0 | CE40: 0 | CF40: 0 | CG40: 0 | CH40: 0 | CI40: 0 | CJ40: 0 | CK40: 0 | CL40: 0 | CM40: 0 | CN40: 0
A41: 37 | C41: 0 | E41: 0 | I41: 0 | M41: 0 | Q41: 0 | U41: 0 | Y41: 0 | AC41: 0 | AG41: 0 | AK41: 0 | AO41: 0 | AS41: 0 | AW41: 0 | AZ41: 0 | BA41: 0 | BB41: 0 | BC41: 0 | BD41: 0 | BE41: 0 | BF41: 0 | BG41: 0 | BH41: 0 | BI41: 0 | BJ41: 0 | BK41: 0 | BL41: 0 | BM41: 0 | BN41: 0 | BO41: 0 | BP41: 0 | BQ41: 0 | BR41: 0 | BS41: 0 | BT41: 0 | BU41: 0 | BV41: 0 | BW41: 0 | BX41: 0 | BY41: 0 | BZ41: 0 | CA41: 0 | CB41: 0 | CC41: 0 | CD41: 0 | CE41: 0 | CF41: 0 | CG41: 0 | CH41: 0 | CI41: 0 | CJ41: 0 | CK41: 0 | CL41: 0 | CM41: 0 | CN41: 0
A42: 38 | C42: 0 | E42: 0 | I42: 0 | M42: 0 | Q42: 0 | U42: 0 | Y42: 0 | AC42: 0 | AG42: 0 | AK42: 0 | AO42: 0 | AS42: 0 | AW42: 0 | AZ42: 0 | BA42: 0 | BB42: 0 | BC42: 0 | BD42: 0 | BE42: 0 | BF42: 0 | BG42: 0 | BH42: 0 | BI42: 0 | BJ42: 0 | BK42: 0 | BL42: 0 | BM42: 0 | BN42: 0 | BO42: 0 | BP42: 0 | BQ42: 0 | BR42: 0 | BS42: 0 | BT42: 0 | BU42: 0 | BV42: 0 | BW42: 0 | BX42: 0 | BY42: 0 | BZ42: 0 | CA42: 0 | CB42: 0 | CC42: 0 | CD42: 0 | CE42: 0 | CF42: 0 | CG42: 0 | CH42: 0 | CI42: 0 | CJ42: 0 | CK42: 0 | CL42: 0 | CM42: 0 | CN42: 0
A43: 39 | C43: 0 | E43: 0 | I43: 0 | M43: 0 | Q43: 0 | U43: 0 | Y43: 0 | AC43: 0 | AG43: 0 | AK43: 0 | AO43: 0 | AS43: 0 | AW43: 0 | AZ43: 0 | BA43: 0 | BB43: 0 | BC43: 0 | BD43: 0 | BE43: 0 | BF43: 0 | BG43: 0 | BH43: 0 | BI43: 0 | BJ43: 0 | BK43: 0 | BL43: 0 | BM43: 0 | BN43: 0 | BO43: 0 | BP43: 0 | BQ43: 0 | BR43: 0 | BS43: 0 | BT43: 0 | BU43: 0 | BV43: 0 | BW43: 0 | BX43: 0 | BY43: 0 | BZ43: 0 | CA43: 0 | CB43: 0 | CC43: 0 | CD43: 0 | CE43: 0 | CF43: 0 | CG43: 0 | CH43: 0 | CI43: 0 | CJ43: 0 | CK43: 0 | CL43: 0 | CM43: 0 | CN43: 0
A44: 40 | C44: 0 | E44: 0 | I44: 0 | M44: 0 | Q44: 0 | U44: 0 | Y44: 0 | AC44: 0 | AG44: 0 | AK44: 0 | AO44: 0 | AS44: 0 | AW44: 0 | AZ44: 0 | BA44: 0 | BB44: 0 | BC44: 0 | BD44: 0 | BE44: 0 | BF44: 0 | BG44: 0 | BH44: 0 | BI44: 0 | BJ44: 0 | BK44: 0 | BL44: 0 | BM44: 0 | BN44: 0 | BO44: 0 | BP44: 0 | BQ44: 0 | BR44: 0 | BS44: 0 | BT44: 0 | BU44: 0 | BV44: 0 | BW44: 0 | BX44: 0 | BY44: 0 | BZ44: 0 | CA44: 0 | CB44: 0 | CC44: 0 | CD44: 0 | CE44: 0 | CF44: 0 | CG44: 0 | CH44: 0 | CI44: 0 | CJ44: 0 | CK44: 0 | CL44: 0 | CM44: 0 | CN44: 0
A45: 41 | C45: 0 | E45: 0 | I45: 0 | M45: 0 | Q45: 0 | U45: 0 | Y45: 0 | AC45: 0 | AG45: 0 | AK45: 0 | AO45: 0 | AS45: 0 | AW45: 0 | AZ45: 0 | BA45: 0 | BB45: 0 | BC45: 0 | BD45: 0 | BE45: 0 | BF45: 0 | BG45: 0 | BH45: 0 | BI45: 0 | BJ45: 0 | BK45: 0 | BL45: 0 | BM45: 0 | BN45: 0 | BO45: 0 | BP45: 0 | BQ45: 0 | BR45: 0 | BS45: 0 | BT45: 0 | BU45: 0 | BV45: 0 | BW45: 0 | BX45: 0 | BY45: 0 | BZ45: 0 | CA45: 0 | CB45: 0 | CC45: 0 | CD45: 0 | CE45: 0 | CF45: 0 | CG45: 0 | CH45: 0 | CI45: 0 | CJ45: 0 | CK45: 0 | CL45: 0 | CM45: 0 | CN45: 0
A46: 42 | C46: 0 | E46: 0 | I46: 0 | M46: 0 | Q46: 0 | U46: 0 | Y46: 0 | AC46: 0 | AG46: 0 | AK46: 0 | AO46: 0 | AS46: 0 | AW46: 0 | AZ46: 0 | BA46: 0 | BB46: 0 | BC46: 0 | BD46: 0 | BE46: 0 | BF46: 0 | BG46: 0 | BH46: 0 | BI46: 0 | BJ46: 0 | BK46: 0 | BL46: 0 | BM46: 0 | BN46: 0 | BO46: 0 | BP46: 0 | BQ46: 0 | BR46: 0 | BS46: 0 | BT46: 0 | BU46: 0 | BV46: 0 | BW46: 0 | BX46: 0 | BY46: 0 | BZ46: 0 | CA46: 0 | CB46: 0 | CC46: 0 | CD46: 0 | CE46: 0 | CF46: 0 | CG46: 0 | CH46: 0 | CI46: 0 | CJ46: 0 | CK46: 0 | CL46: 0 | CM46: 0 | CN46: 0
A47: 43 | C47: 0 | E47: 0 | I47: 0 | M47: 0 | Q47: 0 | U47: 0 | Y47: 0 | AC47: 0 | AG47: 0 | AK47: 0 | AO47: 0 | AS47: 0 | AW47: 0 | AZ47: 0 | BA47: 0 | BB47: 0 | BC47: 0 | BD47: 0 | BE47: 0 | BF47: 0 | BG47: 0 | BH47: 0 | BI47: 0 | BJ47: 0 | BK47: 0 | BL47: 0 | BM47: 0 | BN47: 0 | BO47: 0 | BP47: 0 | BQ47: 0 | BR47: 0 | BS47: 0 | BT47: 0 | BU47: 0 | BV47: 0 | BW47: 0 | BX47: 0 | BY47: 0 | BZ47: 0 | CA47: 0 | CB47: 0 | CC47: 0 | CD47: 0 | CE47: 0 | CF47: 0 | CG47: 0 | CH47: 0 | CI47: 0 | CJ47: 0 | CK47: 0 | CL47: 0 | CM47: 0 | CN47: 0
A48: 44 | C48: 0 | E48: 0 | I48: 0 | M48: 0 | Q48: 0 | U48: 0 | Y48: 0 | AC48: 0 | AG48: 0 | AK48: 0 | AO48: 0 | AS48: 0 | AW48: 0 | AZ48: 0 | BA48: 0 | BB48: 0 | BC48: 0 | BD48: 0 | BE48: 0 | BF48: 0 | BG48: 0 | BH48: 0 | BI48: 0 | BJ48: 0 | BK48: 0 | BL48: 0 | BM48: 0 | BN48: 0 | BO48: 0 | BP48: 0 | BQ48: 0 | BR48: 0 | BS48: 0 | BT48: 0 | BU48: 0 | BV48: 0 | BW48: 0 | BX48: 0 | BY48: 0 | BZ48: 0 | CA48: 0 | CB48: 0 | CC48: 0 | CD48: 0 | CE48: 0 | CF48: 0 | CG48: 0 | CH48: 0 | CI48: 0 | CJ48: 0 | CK48: 0 | CL48: 0 | CM48: 0 | CN48: 0
A49: 45 | C49: 0 | E49: 0 | I49: 0 | M49: 0 | Q49: 0 | U49: 0 | Y49: 0 | AC49: 0 | AG49: 0 | AK49: 0 | AO49: 0 | AS49: 0 | AW49: 0 | AZ49: 0 | BA49: 0 | BB49: 0 | BC49: 0 | BD49: 0 | BE49: 0 | BF49: 0 | BG49: 0 | BH49: 0 | BI49: 0 | BJ49: 0 | BK49: 0 | BL49: 0 | BM49: 0 | BN49: 0 | BO49: 0 | BP49: 0 | BQ49: 0 | BR49: 0 | BS49: 0 | BT49: 0 | BU49: 0 | BV49: 0 | BW49: 0 | BX49: 0 | BY49: 0 | BZ49: 0 | CA49: 0 | CB49: 0 | CC49: 0 | CD49: 0 | CE49: 0 | CF49: 0 | CG49: 0 | CH49: 0 | CI49: 0 | CJ49: 0 | CK49: 0 | CL49: 0 | CM49: 0 | CN49: 0

Sheet Classificação Geral
A1: 2023 | E1: OK | I1: OK | M1: OK | Q1: OK | U1: OK | Y1: OK | AC1: OK | AG1: OK | AK1: OK | AO1: OK | AS1: OK | AW1: OK
D2: 1ª etapa | H2: 2ª etapa | L2: 3ª etapa | P2: 4ª etapa | T2: 5ª etapa | X2: 6ª etapa | AB2: 7ª etapa | AF2: 8ª etapa | AJ2: 9ª etapa | AN2: 10ª etapa | AR2: 11ª etapa | AV2: 12ª etapa
B4: Nome do (a) Piloto (a) | C4: Pontuação Geral | D4: Posição | E4: Pontos | F4: Bônus | G4: Penalidade | H4: Posição | I4: Pontos | J4: Bônus | K4: Penalidade | L4: Posição | M4: Pontos | N4: Bônus | O4: Penalidade | P4: Posição | Q4: Pontos | R4: Bônus | S4: Penalidade | T4: Posição | U4: Pontos | V4: Bônus | W4: Penalidade | X4: Posição | Y4: Pontos | Z4: Bônus | AA4: Penalidade | AB4: Posição | AC4: Pontos | AD4: Bônus | AE4: Penalidade | AF4: Posição | AG4: Pontos | AH4: Bônus | AI4: Penalidade | AJ4: Posição | AK4: Pontos | AL4: Bônus | AM4: Penalidade | AN4: Posição | AO4: Pontos | AP4: Bônus | AQ4: Penalidade | AR4: Posição | AS4: Pontos | AT4: Bônus | AU4: Penalidade | AV4: Posição | AW4: Pontos | AX4: Bônus | AY4: Penalidade | AZ4: 1º LUGAR | BA4: 2º LUGAR | BB4: 3º LUGAR | BC4: 4º LUGAR | BD4: 5º LUGAR | BE4: 6º LUGAR | BF4: 7º LUGAR | BG4: 8º LUGAR | BH4: 9º LUGAR | BI4: 10º LUGAR | BJ4: 11º LUGAR | BK4: 12º LUGAR | BL4: 13º LUGAR | BM4: 14º LUGAR | BN4: 15º LUGAR | BO4: 16º LUGAR | BP4: 17º LUGAR | BQ4: 18º LUGAR | BR4: 19º LUGAR | BS4: 20º LUGAR | BT4: 21º LUGAR | BU4: 22º LUGAR | BV4: 23º LUGAR | BW4: 24º LUGAR | BX4: 25º LUGAR | BY4: 26º LUGAR | BZ4: 27º LUGAR | CA4: 28º LUGAR | CB4: 29º LUGAR | CC4: 30º LUGAR | CD4: 31º LUGAR | CE4: 32º LUGAR | CF4: 33º LUGAR | CG4: 34º LUGAR | CH4: 35º LUGAR | CI4: 36º LUGAR | CJ4: 37º LUGAR | CK4: 38º LUGAR | CL4: 39º LUGAR | CM4: 40º LUGAR | CN4: 41º LUGAR
A5: 1 | B5: Marcelo Clemente | C5: 208 | D5: 6 | E5: 15 | F5: 0 | H5: 10 | I5: 11 | J5: 0 | L5: 6 | M5: 15 | P5: 1 | Q5: 25 | T5: 6 | U5: 15 | X5: 1 | Y5: 25 | AB5: 11 | AC5: 10 | AD5: 1 | AE5: SIM | AF5: 1 | AG5: 25 | AH5: 1 | AJ5: 2 | AK5: 22 | AL5: 1 | AN5: 31 | AO5: 0 | AQ5: SIM | AR5: 3 | AS5: 20 | AV5: 2 | AW5: 22 | AZ5: 3 | BA5: 2 | BB5: 1 | BC5: 0 | BD5: 0 | BE5: 3 | BF5: 0 | BG5: 0 | BH5: 0 | BI5: 1 | BJ5: 1 | BK5: 0 | BL5: 0 | BM5: 0 | BN5: 0 | BO5: 0 | BP5: 0 | BQ5: 0 | BR5: 0 | BS5: 0 | BT5: 0 | BU5: 0 | BV5: 0 | BW5: 0 | BX5: 0 | BY5: 0 | BZ5: 0 | CA5: 0 | CB5: 0 | CC5: 0 | CD5: 1 | CE5: 0 | CF5: 0 | CG5: 0 | CH5: 0 | CI5: 0 | CJ5: 0 | CK5: 0 | CL5: 0 | CM5: 0 | CN5: 0
A6: 2 | B6: Alexandre Melillo | C6: 189 | D6: 2 | E6: 22 | F6: 1 | H6: 5 | I6: 16 | J6: 0 | L6: 17 | M6: 4 | O6: SIM | P6: 4 | Q6: 18 | T6: 1 | U6: 25 | V6: 1 | X6: 2 | Y6: 22 | AB6: 4 | AC6: 18 | AF6: 8 | AG6: 13 | AJ6: 8 | AK6: 13 | AN6: 2 | AO6: 22 | AS6: 0 | AV6: 7 | AW6: 14 | AZ6: 1 | BA6: 3 | BB6: 0 | BC6: 2 | BD6: 1 | BE6: 0 | BF6: 1 | BG6: 2 | BH6: 0 | BI6: 0 | BJ6: 0 | BK6: 0 | BL6: 0 | BM6: 0 | BN6: 0 | BO6: 0 | BP6: 1 | BQ6: 0 | BR6: 0 | BS6: 0 | BT6: 0 | BU6: 0 | BV6: 0 | BW6: 0 | BX6: 0 | BY6: 0 | BZ6: 0 | CA6: 0 | CB6: 0 | CC6: 0 | CD6: 0 | CE6: 0 | CF6: 0 | CG6: 0 | CH6: 0 | CI6: 0 | CJ6: 0 | CK6: 0 | CL6: 0 | CM6: 0 | CN6: 0
A7: 3 | B7: Marcelo Sant'anna | C7: 189 | D7: 8 | E7: 13 | F7: 0 | H7: 1 | I7: 25 | J7: 0 | M7: 0 | P7: 5 | Q7: 16 | T7: 4 | U7: 18 | X7: 4 | Y7: 18 | AB7: 3 | AC7: 20 | AF7: 9 | AG7: 12 | AJ7: 3 | AK7: 20 | AN7: 3 | AO7: 20 | AR7: 7 | AS7: 14 | AV7: 8 | AW7: 13 | AZ7: 1 | BA7: 0 | BB7: 3 | BC7: 2 | BD7: 1 | BE7: 0 | BF7: 1 | BG7: 2 | BH7: 1 | BI7: 0 | BJ7: 0 | BK7: 0 | BL7: 0 | BM7: 0 | BN7: 0 | BO7: 0 | BP7: 0 | BQ7: 0 | BR7: 0 | BS7: 0 | BT7: 0 | BU7: 0 | BV7: 0 | BW7: 0 | BX7: 0 | BY7: 0 | BZ7: 0 | CA7: 0 | CB7: 0 | CC7: 0 | CD7: 0 | CE7: 0 | CF7: 0 | CG7: 0 | CH7: 0 | CI7: 0 | CJ7: 0 | CK7: 0 | CL7: 0 | CM7: 0 | CN7: 0
A8: 4 | B8: Rodrigo Mercadante | C8: 176 | D8: 7 | E8: 14 | F8: 0 | I8: 0 | L8: 8 | M8: 13 | P8: 11 | Q8: 10 | T8: 3 | U8: 20 | X8: 3 | Y8: 20 | AB8: 8 | AC8: 13 | AF8: 4 | AG8: 18 | AJ8: 6 | AK8: 15 | AN8: 1 | AO8: 25 | AR8: 5 | AS8: 16 | AV8: 9 | AW8: 12 | AZ8: 1 | BA8: 0 | BB8: 2 | BC8: 1 | BD8: 1 | BE8: 1 | BF8: 1 | BG8: 2 | BH8: 1 | BI8: 0 | BJ8: 1 | BK8: 0 | BL8: 0 | BM8: 0 | BN8: 0 | BO8: 0 | BP8: 0 | BQ8: 0 | BR8: 0 | BS8: 0 | BT8: 0 | BU8: 0 | BV8: 0 | BW8: 0 | BX8: 0 | BY8: 0 | BZ8: 0 | CA8: 0 | CB8: 0 | CC8: 0 | CD8: 0 | CE8: 0 | CF8: 0 | CG8: 0 | CH8: 0 | CI8: 0 | CJ8: 0 | CK8: 0 | CL8: 0 | CM8: 0 | CN8: 0
A9: 5 | B9: Marcelo Mizrahy | C9: 176 | D9: 4 | E9: 18 | F9: 0 | H9: 3 | I9: 20 | J9: 0 | L9: 9 | M9: 12 | P9: 2 | Q9: 22 | U9: 0 | X9: 5 | Y9: 16 | Z9: 1 | AB9: 20 | AC9: 1 | AE9: SIM | AF9: 3 | AG9: 20 | AJ9: 4 | AK9: 18 | AN9: 8 | AO9: 13 | AP9: 1 | AR9: 8 | AS9: 13 | AV9: 3 | AW9: 20 | AX9: 1 | AZ9: 0 | BA9: 1 | BB9: 3 | BC9: 2 | BD9: 1 | BE9: 0 | BF9: 0 | BG9: 2 | BH9: 1 | BI9: 0 | BJ9: 0 | BK9: 0 | BL9: 0 | BM9: 0 | BN9: 0 | BO9: 0 | BP9: 0 | BQ9: 0 | BR9: 0 | BS9: 1 | BT9: 0 | BU9: 0 | BV9: 0 | BW9: 0 | BX9: 0 | BY9: 0 | BZ9: 0 | CA9: 0 | CB9: 0 | CC9: 0 | CD9: 0 | CE9: 0 | CF9: 0 | CG9: 0 | CH9: 0 | CI9: 0 | CJ9: 0 | CK9: 0 | CL9: 0 | CM9: 0 | CN9: 0
A10: 6 | B10: Jarbas Reis | C10: 173 | D10: 5 | E10: 16 | F10: 0 | H10: 7 | I10: 14 | J10: 0 | L10: 5 | M10: 16 | P10: 8 | Q10: 13 | T10: 5 | U10: 16 | X10: 8 | Y10: 13 | AB10: 7 | AC10: 14 | AF10: 6 | AG10: 15 | AJ10: 7 | AK10: 14 | AO10: 0 | AR10: 1 | AS10: 25 | AT10: 1 | AV10: 5 | AW10: 16 | AZ10: 1 | BA10: 0 | BB10: 0 | BC10: 0 | BD10: 4 | BE10: 1 | BF10: 3 | BG10: 2 | BH10: 0 | BI10: 0 | BJ10: 0 | BK10: 0 | BL10: 0 | BM10: 0 | BN10: 0 | BO10: 0 | BP10: 0 | BQ10: 0 | BR10: 0 | BS10: 0 | BT10: 0 | BU10: 0 | BV10: 0 | BW10: 0 | BX10: 0 | BY10: 0 | BZ10: 0 | CA10: 0 | CB10: 0 | CC10: 0 | CD10: 0 | CE10: 0 | CF10: 0 | CG10: 0 | CH10: 0 | CI10: 0 | CJ10: 0 | CK10: 0 | CL10: 0 | CM10: 0 | CN10: 0
A11: 7 | B11: Guilherme Janot | C11: 138 | D11: 1 | E11: 25 | F11: 0 | H11: 11 | I11: 10 | J11: 0 | K11: SIM | L11: 3 | M11: 20 | P11: 6 | Q11: 15 | R11: 1 | T11: 7 | U11: 14 | X11: 11 | Y11: 10 | AB11: 1 | AC11: 25 | AF11: 2 | AG11: 22 | AJ11: 26 | AK11: 0 | AM11: SIM | AN11: 0 | AO11: 0 | AQ11: SIM | AR11: 23 | AS11: 1 | AU11: SIM | AW11: 0 | AY11: -5 | AZ11: 2 | BA11: 1 | BB11: 1 | BC11: 0 | BD11: 0 | BE11: 1 | BF11: 1 | BG11: 0 | BH11: 0 | BI11: 0 | BJ11: 2 | BK11: 0 | BL11: 0 | BM11: 0 | BN11: 0 | BO11: 0 | BP11: 0 | BQ11: 0 | BR11: 0 | BS11: 0 | BT11: 0 | BU11: 0 | BV11: 1 | BW11: 0 | BX11: 0 | BY11: 1 | BZ11: 0 | CA11: 0 | CB11: 0 | CC11: 0 | CD11: 0 | CE11: 0 | CF11: 0 | CG11: 0 | CH11: 0 | CI11: 0 | CJ11: 0 | CK11: 0 | CL11: 0 | CM11: 0 | CN11: 0
A12: 8 | B12: Marcelo Surerus | C12: 132 | E12: 0 | I12: 0 | L12: 4 | M12: 18 | P12: 9 | Q12: 12 | T12: 2 | U12: 22 | X12: 13 | Y12: 8 | AB12: 2 | AC12: 22 | AG12: 0 | AK12: 0 | AM12: -5 | AN12: 6 | AO12: 15 | AR12: 2 | AS12: 22 | AV12: 4 | AW12: 18 | AZ12: 0 | BA12: 3 | BB12: 0 | BC12: 2 | BD12: 0 | BE12: 1 | BF12: 0 | BG12: 0 | BH12: 1 | BI12: 0 | BJ12: 0 | BK12: 0 | BL12: 1 | BM12: 0 | BN12: 0 | BO12: 0 | BP12: 0 | BQ12: 0 | BR12: 0 | BS12: 0 | BT12: 0 | BU12: 0 | BV12: 0 | BW12: 0 | BX12: 0 | BY12: 0 | BZ12: 0 | CA12: 0 | CB12: 0 | CC12: 0 | CD12: 0 | CE12: 0 | CF12: 0 | CG12: 0 | CH12: 0 | CI12: 0 | CJ12: 0 | CK12: 0 | CL12: 0 | CM12: 0 | CN12: 0
A13: 9 | B13: Euclides Almeida | C13: 124 | E13: 0 | H13: 4 | I13: 18 | J13: 0 | L13: 11 | M13: 10 | Q13: 0 | T13: 10 | U13: 11 | X13: 7 | Y13: 14 | AB13: 6 | AC13: 15 | AF13: 7 | AG13: 14 | AJ13: 9 | AK13: 12 | AN13: 9 | AO13: 12 | AR13: 4 | AS13: 18 | AW13: 0 | AZ13: 0 | BA13: 0 | BB13: 0 | BC13: 2 | BD13: 0 | BE13: 1 | BF13: 2 | BG13: 0 | BH13: 2 | BI13: 1 | BJ13: 1 | BK13: 0 | BL13: 0 | BM13: 0 | BN13: 0 | BO13: 0 | BP13: 0 | BQ13: 0 | BR13: 0 | BS13: 0 | BT13: 0 | BU13: 0 | BV13: 0 | BW13: 0 | BX13: 0 | BY13: 0 | BZ13: 0 | CA13: 0 | CB13: 0 | CC13: 0 | CD13: 0 | CE13: 0 | CF13: 0 | CG13: 0 | CH13: 0 | CI13: 0 | CJ13: 0 | CK13: 0 | CL13: 0 | CM13: 0 | CN13: 0
A14: 10 | B14: Lucio Chequer | C14: 120 | D14: 9 | E14: 12 | F14: 0 | H14: 9 | I14: 12 | J14: 0 | L14: 13 | M14: 8 | P14: 10 | Q14: 11 | T14: 16 | U14: 5 | W14: SIM | X14: 9 | Y14: 12 | AC14: 0 | AF14: 10 | AG14: 11 | AJ14: 11 | AK14: 10 | AN14: 7 | AO14: 14 | AS14: 0 | AV14: 1 | AW14: 25 | AZ14: 1 | BA14: 0 | BB14: 0 | BC14: 0 | BD14: 0 | BE14: 0 | BF14: 1 | BG14: 0 | BH14: 3 | BI14: 2 | BJ14: 1 | BK14: 0 | BL14: 1 | BM14: 0 | BN14: 0 | BO14: 1 | BP14: 0 | BQ14: 0 | BR14: 0 | BS14: 0 | BT14: 0 | BU14: 0 | BV14: 0 | BW14: 0 | BX14: 0 | BY14: 0 | BZ14: 0 | CA14: 0 | CB14: 0 | CC14: 0 | CD14: 0 | CE14: 0 | CF14: 0 | CG14: 0 | CH14: 0 | CI14: 0 | CJ14: 0 | CK14: 0 | CL14: 0 | CM14: 0 | CN14: 0
A15: 11 | B15: Morvan | C15: 104 | D15: 10 | E15: 11 | F15: 0 | H15: 12 | I15: 9 | J15: 0 | L15: 10 | M15: 11 | P15: 12 | Q15: 9 | T15: 8 | U15: 13 | X15: 14 | Y15: 7 | AB15: 21 | AC15: 1 | AE15: SIM | AF15: 11 | AG15: 10 | AJ15: 30 | AK15: 0 | AM15: SIM | AN15: 10 | AO15: 11 | AR15: 9 | AS15: 12 | AV15: 11 | AW15: 10 | AZ15: 0 | BA15: 0 | BB15: 0 | BC15: 0 | BD15: 0 | BE15: 0 | BF15: 0 | BG15: 1 | BH15: 1 | BI15: 3 | BJ15: 2 | BK15: 2 | BL15: 0 | BM15: 1 | BN15: 0 | BO15: 0 | BP15: 0 | BQ15: 0 | BR15: 0 | BS15: 0 | BT15: 1 | BU15: 0 | BV15: 0 | BW15: 0 | BX15: 0 | BY15: 0 | BZ15: 0 | CA15: 0 | CB15: 0 | CC15: 1 | CD15: 0 | CE15: 0 | CF15: 0 | CG15: 0 | CH15: 0 | CI15: 0 | CJ15: 0 | CK15: 0 | CL15: 0 | CM15: 0 | CN15: 0
A16: 12 | B16: Gijo | C16: 96 | D16: 22 | E16: 1 | F16: 0 | G16: SIM | H16: 29 | I16: 0 | J16: 0 | K16: SIM | L16: 12 | M16: 9 | P16: 13 | Q16: 8 | U16: 0 | W16: -5 | X16: 12 | Y16: 9 | AA16: -5 | AB16: 5 | AC16: 16 | AF16: 5 | AG16: 16 | AJ16: 5 | AK16: 16 | AN16: 5 | AO16: 16 | AQ16: -5 | AR16: 6 | AS16: 15 | AU16: -5 | AV16: 6 | AW16: 15 | AY16: -5 | AZ16: 0 | BA16: 0 | BB16: 0 | BC16: 0 | BD16: 4 | BE16: 2 | BF16: 0 | BG16: 0 | BH16: 0 | BI16: 0 | BJ16: 0 | BK16: 2 | BL16: 1 | BM16: 0 | BN16: 0 | BO16: 0 | BP16: 0 | BQ16: 0 | BR16: 0 | BS16: 0 | BT16: 0 | BU16: 1 | BV16: 0 | BW16: 0 | BX16: 0 | BY16: 0 | BZ16: 0 | CA16: 0 | CB16: 1 | CC16: 0 | CD16: 0 | CE16: 0 | CF16: 0 | CG16: 0 | CH16: 0 | CI16: 0 | CJ16: 0 | CK16: 0 | CL16: 0 | CM16: 0 | CN16: 0
A17: 13 | B17: Claudio Junqueira | C17: 89 | D17: 3 | E17: 20 | F17: 0 | H17: 8 | I17: 13 | J17: 0 | L17: 1 | M17: 25 | N17: 1 | P17: 3 | Q17: 20 | T17: 11 | U17: 10 | W17: -5 | X17: 6 | Y17: 15 | AC17: 0 | AF17: 0 | AG17: 0 | AI17: SIM | AK17: 0 | AO17: 0 | AS17: 0 | AU17: -5 | AW17: 0 | AY17: -5 | AZ17: 1 | BA17: 0 | BB17: 2 | BC17: 0 | BD17: 0 | BE17: 1 | BF17: 0 | BG17: 1 | BH17: 0 | BI17: 0 | BJ17: 1 | BK17: 0 | BL17: 0 | BM17: 0 | BN17: 0 | BO17: 0 | BP17: 0 | BQ17: 0 | BR17: 0 | BS17: 0 | BT17: 0 | BU17: 0 | BV17: 0 | BW17: 0 | BX17: 0 | BY17: 0 | BZ17: 0 | CA17: 0 | CB17: 0 | CC17: 0 | CD17: 0 | CE17: 0 | CF17: 0 | CG17: 0 | CH17: 0 | CI17: 0 | CJ17: 0 | CK17: 0 | CL17: 0 | CM17: 0 | CN17: 0
A18: 14 | B18: Roberto Veloso | C18: 66 | E18: 0 | H18: 13 | I18: 8 | J18: 0 | L18: 14 | M18: 7 | Q18: 0 | U18: 0 | Y18: 0 | AC18: 0 | AE18: -5 | AF18: 12 | AG18: 9 | AJ18: 1 | AK18: 25 | AN18: 4 | AO18: 18 | AS18: 0 | AU18: -5 | AV18: 12 | AW18: 9 | AZ18: 1 | BA18: 0 | BB18: 0 | BC18: 1 | BD18: 0 | BE18: 0 | BF18: 0 | BG18: 0 | BH18: 0 | BI18: 0 | BJ18: 0 | BK18: 2 | BL18: 1 | BM18: 1 | BN18: 0 | BO18: 0 | BP18: 0 | BQ18: 0 | BR18: 0 | BS18: 0 | BT18: 0 | BU18: 0 | BV18: 0 | BW18: 0 | BX18: 0 | BY18: 0 | BZ18: 0 | CA18: 0 | CB18: 0 | CC18: 0 | CD18: 0 | CE18: 0 | CF18: 0 | CG18: 0 | CH18: 0 | CI18: 0 | CJ18: 0 | CK18: 0 | CL18: 0 | CM18: 0 | CN18: 0
A19: 15 | B19: Carlos Eduardo | C19: 53 | D19: 11 | E19: 10 | F19: 0 | H19: 6 | I19: 15 | J19: 0 | L19: 2 | M19: 22 | P19: 14 | Q19: 7 | T19: 9 | U19: 12 | X19: 10 | Y19: 11 | AB19: 22 | AC19: 1 | AE19: SIM | AG19: 0 | AI19: -5 | AK19: 0 | AM19: -5 | AO19: 0 | AQ19: -5 | AS19: 0 | AU19: -5 | AW19: 0 | AY19: -5 | AZ19: 0 | BA19: 1 | BB19: 0 | BC19: 0 | BD19: 0 | BE19: 1 | BF19: 0 | BG19: 0 | BH19: 1 | BI19: 1 | BJ19: 1 | BK19: 0 | BL19: 0 | BM19: 1 | BN19: 0 | BO19: 0 | BP19: 0 | BQ19: 0 | BR19: 0 | BS19: 0 | BT19: 0 | BU19: 1 | BV19: 0 | BW19: 0 | BX19: 0 | BY19: 0 | BZ19: 0 | CA19: 0 | CB19: 0 | CC19: 0 | CD19: 0 | CE19: 0 | CF19: 0 | CG19: 0 | CH19: 0 | CI19: 0 | CJ19: 0 | CK19: 0 | CL19: 0 | CM19: 0 | CN19: 0
A20: 16 | B20: Cláudio Dumont | C20: 16 | E20: 0 | H20: 2 | I20: 22 | J20: 1 | L20: 7 | M20: 14 | P20: 7 | Q20: 14 | U20: 0 | Y20: 0 | AA20: -5 | AC20: 0 | AE20: -5 | AG20: 0 | AI20: -5 | AK20: 0 | AM20: -5 | AO20: 0 | AQ20: -5 | AS20: 0 | AU20: -5 | AW20: 0 | AY20: -5 | AZ20: 0 | BA20: 1 | BB20: 0 | BC20: 0 | BD20: 0 | BE20: 0 | BF20: 2 | BG20: 0 | BH20: 0 | BI20: 0 | BJ20: 0 | BK20: 0 | BL20: 0 | BM20: 0 | BN20: 0 | BO20: 0 | BP20: 0 | BQ20: 0 | BR20: 0 | BS20: 0 | BT20: 0 | BU20: 0 | BV20: 0 | BW20: 0 | BX20: 0 | BY20: 0 | BZ20: 0 | CA20: 0 | CB20: 0 | CC20: 0 | CD20: 0 | CE20: 0 | CF20: 0 | CG20: 0 | CH20: 0 | CI20: 0 | CJ20: 0 | CK20: 0 | CL20: 0 | CM20: 0 | CN20: 0
A21: 17 | B21: Ivan Renault | C21: 12 | E21: 0 | I21: 0 | M21: 0 | Q21: 0 | U21: 0 | Y21: 0 | AC21: 0 | AE21: -5 | AG21: 0 | AJ21: 10 | AK21: 11 | AO21: 0 | AS21: 0 | AU21: -5 | AV21: 10 | AW21: 11 | AZ21: 0 | BA21: 0 | BB21: 0 | BC21: 0 | BD21: 0 | BE21: 0 | BF21: 0 | BG21: 0 | BH21: 0 | BI21: 2 | BJ21: 0 | BK21: 0 | BL21: 0 | BM21: 0 | BN21: 0 | BO21: 0 | BP21: 0 | BQ21: 0 | BR21: 0 | BS21: 0 | BT21: 0 | BU21: 0 | BV21: 0 | BW21: 0 | BX21: 0 | BY21: 0 | BZ21: 0 | CA21: 0 | CB21: 0 | CC21: 0 | CD21: 0 | CE21: 0 | CF21: 0 | CG21: 0 | CH21: 0 | CI21: 0 | CJ21: 0 | CK21: 0 | CL21: 0 | CM21: 0 | CN21: 0
A22: 18 | C22: 0 | E22: 0 | I22: 0 | M22: 0 | Q22: 0 | U22: 0 | Y22: 0 | AC22: 0 | AG22: 0 | AK22: 0 | AO22: 0 | AS22: 0 | AW22: 0 | AZ22: 0 | BA22: 0 | BB22: 0 | BC22: 0 | BD22: 0 | BE22: 0 | BF22: 0 | BG22: 0 | BH22: 0 | BI22: 0 | BJ22: 0 | BK22: 0 | BL22: 0 | BM22: 0 | BN22: 0 | BO22: 0 | BP22: 0 | BQ22: 0 | BR22: 0 | BS22: 0 | BT22: 0 | BU22: 0 | BV22: 0 | BW22: 0 | BX22: 0 | BY22: 0 | BZ22: 0 | CA22: 0 | CB22: 0 | CC22: 0 | CD22: 0 | CE22: 0 | CF22: 0 | CG22: 0 | CH22: 0 | CI22: 0 | CJ22: 0 | CK22: 0 | CL22: 0 | CM22: 0 | CN22: 0
A23: 19 | C23: 0 | E23: 0 | I23: 0 | M23: 0 | Q23: 0 | U23: 0 | Y23: 0 | AC23: 0 | AG23: 0 | AK23: 0 | AO23: 0 | AS23: 0 | AW23: 0 | AZ23: 0 | BA23: 0 | BB23: 0 | BC23: 0 | BD23: 0 | BE23: 0 | BF23: 0 | BG23: 0 | BH23: 0 | BI23: 0 | BJ23: 0 | BK23: 0 | BL23: 0 | BM23: 0 | BN23: 0 | BO23: 0 | BP23: 0 | BQ23: 0 | BR23: 0 | BS23: 0 | BT23: 0 | BU23: 0 | BV23: 0 | BW23: 0 | BX23: 0 | BY23: 0 | BZ23: 0 | CA23: 0 | CB23: 0 | CC23: 0 | CD23: 0 | CE23: 0 | CF23: 0 | CG23: 0 | CH23: 0 | CI23: 0 | CJ23: 0 | CK23: 0 | CL23: 0 | CM23: 0 | CN23: 0
A24: 20 | C24: 0 | E24: 0 | I24: 0 | M24: 0 | Q24: 0 | U24: 0 | Y24: 0 | AC24: 0 | AG24: 0 | AK24: 0 | AO24: 0 | AS24: 0 | AW24: 0 | AZ24: 0 | BA24: 0 | BB24: 0 | BC24: 0 | BD24: 0 | BE24: 0 | BF24: 0 | BG24: 0 | BH24: 0 | BI24: 0 | BJ24: 0 | BK24: 0 | BL24: 0 | BM24: 0 | BN24: 0 | BO24: 0 | BP24: 0 | BQ24: 0 | BR24: 0 | BS24: 0 | BT24: 0 | BU24: 0 | BV24: 0 | BW24: 0 | BX24: 0 | BY24: 0 | BZ24: 0 | CA24: 0 | CB24: 0 | CC24: 0 | CD24: 0 | CE24: 0 | CF24: 0 | CG24: 0 | CH24: 0 | CI24: 0 | CJ24: 0 | CK24: 0 | CL24: 0 | CM24: 0 | CN24: 0
A25: 21 | C25: 0 | E25: 0 | I25: 0 | M25: 0 | Q25: 0 | U25: 0 | Y25: 0 | AC25: 0 | AG25: 0 | AK25: 0 | AO25: 0 | AS25: 0 | AW25: 0 | AZ25: 0 | BA25: 0 | BB25: 0 | BC25: 0 | BD25: 0 | BE25: 0 | BF25: 0 | BG25: 0 | BH25: 0 | BI25: 0 | BJ25: 0 | BK25: 0 | BL25: 0 | BM25: 0 | BN25: 0 | BO25: 0 | BP25: 0 | BQ25: 0 | BR25: 0 | BS25: 0 | BT25: 0 | BU25: 0 | BV25: 0 | BW25: 0 | BX25: 0 | BY25: 0 | BZ25: 0 | CA25: 0 | CB25: 0 | CC25: 0 | CD25: 0 | CE25: 0 | CF25: 0 | CG25: 0 | CH25: 0 | CI25: 0 | CJ25: 0 | CK25: 0 | CL25: 0 | CM25: 0 | CN25: 0
A26: 22 | C26: 0 | E26: 0 | I26: 0 | M26: 0 | Q26: 0 | U26: 0 | Y26: 0 | AC26: 0 | AG26: 0 | AK26: 0 | AO26: 0 | AS26: 0 | AW26: 0 | AZ26: 0 | BA26: 0 | BB26: 0 | BC26: 0 | BD26: 0 | BE26: 0 | BF26: 0 | BG26: 0 | BH26: 0 | BI26: 0 | BJ26: 0 | BK26: 0 | BL26: 0 | BM26: 0 | BN26: 0 | BO26: 0 | BP26: 0 | BQ26: 0 | BR26: 0 | BS26: 0 | BT26: 0 | BU26: 0 | BV26: 0 | BW26: 0 | BX26: 0 | BY26: 0 | BZ26: 0 | CA26: 0 | CB26: 0 | CC26: 0 | CD26: 0 | CE26: 0 | CF26: 0 | CG26: 0 | CH26: 0 | CI26: 0 | CJ26: 0 | CK26: 0 | CL26: 0 | CM26: 0 | CN26: 0
A27: 23 | C27: 0 | E27: 0 | I27: 0 | M27: 0 | Q27: 0 | U27: 0 | Y27: 0 | AC27: 0 | AG27: 0 | AK27: 0 | AO27: 0 | AS27: 0 | AW27: 0 | AZ27: 0 | BA27: 0 | BB27: 0 | BC27: 0 | BD27: 0 | BE27: 0 | BF27: 0 | BG27: 0 | BH27: 0 | BI27: 0 | BJ27: 0 | BK27: 0 | BL27: 0 | BM27: 0 | BN27: 0 | BO27: 0 | BP27: 0 | BQ27: 0 | BR27: 0 | BS27: 0 | BT27: 0 | BU27: 0 | BV27: 0 | BW27: 0 | BX27: 0 | BY27: 0 | BZ27: 0 | CA27: 0 | CB27: 0 | CC27: 0 | CD27: 0 | CE27: 0 | CF27: 0 | CG27: 0 | CH27: 0 | CI27: 0 | CJ27: 0 | CK27: 0 | CL27: 0 | CM27: 0 | CN27: 0
A28: 24 | C28: 0 | E28: 0 | I28: 0 | M28: 0 | Q28: 0 | U28: 0 | Y28: 0 | AC28: 0 | AG28: 0 | AK28: 0 | AO28: 0 | AS28: 0 | AW28: 0 | AZ28: 0 | BA28: 0 | BB28: 0 | BC28: 0 | BD28: 0 | BE28: 0 | BF28: 0 | BG28: 0 | BH28: 0 | BI28: 0 | BJ28: 0 | BK28: 0 | BL28: 0 | BM28: 0 | BN28: 0 | BO28: 0 | BP28: 0 | BQ28: 0 | BR28: 0 | BS28: 0 | BT28: 0 | BU28: 0 | BV28: 0 | BW28: 0 | BX28: 0 | BY28: 0 | BZ28: 0 | CA28: 0 | CB28: 0 | CC28: 0 | CD28: 0 | CE28: 0 | CF28: 0 | CG28: 0 | CH28: 0 | CI28: 0 | CJ28: 0 | CK28: 0 | CL28: 0 | CM28: 0 | CN28: 0
A29: 25 | C29: 0 | E29: 0 | I29: 0 | M29: 0 | Q29: 0 | U29: 0 | Y29: 0 | AC29: 0 | AG29: 0 | AK29: 0 | AO29: 0 | AS29: 0 | AW29: 0 | AZ29: 0 | BA29: 0 | BB29: 0 | BC29: 0 | BD29: 0 | BE29: 0 | BF29: 0 | BG29: 0 | BH29: 0 | BI29: 0 | BJ29: 0 | BK29: 0 | BL29: 0 | BM29: 0 | BN29: 0 | BO29: 0 | BP29: 0 | BQ29: 0 | BR29: 0 | BS29: 0 | BT29: 0 | BU29: 0 | BV29: 0 | BW29: 0 | BX29: 0 | BY29: 0 | BZ29: 0 | CA29: 0 | CB29: 0 | CC29: 0 | CD29: 0 | CE29: 0 | CF29: 0 | CG29: 0 | CH29: 0 | CI29: 0 | CJ29: 0 | CK29: 0 | CL29: 0 | CM29: 0 | CN29: 0
A30: 26 | C30: 0 | E30: 0 | I30: 0 | M30: 0 | Q30: 0 | U30: 0 | Y30: 0 | AC30: 0 | AG30: 0 | AK30: 0 | AO30: 0 | AS30: 0 | AW30: 0 | AZ30: 0 | BA30: 0 | BB30: 0 | BC30: 0 | BD30: 0 | BE30: 0 | BF30: 0 | BG30: 0 | BH30: 0 | BI30: 0 | BJ30: 0 | BK30: 0 | BL30: 0 | BM30: 0 | BN30: 0 | BO30: 0 | BP30: 0 | BQ30: 0 | BR30: 0 | BS30: 0 | BT30: 0 | BU30: 0 | BV30: 0 | BW30: 0 | BX30: 0 | BY30: 0 | BZ30: 0 | CA30: 0 | CB30: 0 | CC30: 0 | CD30: 0 | CE30: 0 | CF30: 0 | CG30: 0 | CH30: 0 | CI30: 0 | CJ30: 0 | CK30: 0 | CL30: 0 | CM30: 0 | CN30: 0
A31: 27 | C31: 0 | E31: 0 | I31: 0 | M31: 0 | Q31: 0 | U31: 0 | Y31: 0 | AC31: 0 | AG31: 0 | AK31: 0 | AO31: 0 | AS31: 0 | AW31: 0 | AZ31: 0 | BA31: 0 | BB31: 0 | BC31: 0 | BD31: 0 | BE31: 0 | BF31: 0 | BG31: 0 | BH31: 0 | BI31: 0 | BJ31: 0 | BK31: 0 | BL31: 0 | BM31: 0 | BN31: 0 | BO31: 0 | BP31: 0 | BQ31: 0 | BR31: 0 | BS31: 0 | BT31: 0 | BU31: 0 | BV31: 0 | BW31: 0 | BX31: 0 | BY31: 0 | BZ31: 0 | CA31: 0 | CB31: 0 | CC31: 0 | CD31: 0 | CE31: 0 | CF31: 0 | CG31: 0 | CH31: 0 | CI31: 0 | CJ31: 0 | CK31: 0 | CL31: 0 | CM31: 0 | CN31: 0
A32: 28 | C32: 0 | E32: 0 | I32: 0 | M32: 0 | Q32: 0 | U32: 0 | Y32: 0 | AC32: 0 | AG32: 0 | AK32: 0 | AO32: 0 | AS32: 0 | AW32: 0 | AZ32: 0 | BA32: 0 | BB32: 0 | BC32: 0 | BD32: 0 | BE32: 0 | BF32: 0 | BG32: 0 | BH32: 0 | BI32: 0 | BJ32: 0 | BK32: 0 | BL32: 0 | BM32: 0 | BN32: 0 | BO32: 0 | BP32: 0 | BQ32: 0 | BR32: 0 | BS32: 0 | BT32: 0 | BU32: 0 | BV32: 0 | BW32: 0 | BX32: 0 | BY32: 0 | BZ32: 0 | CA32: 0 | CB32: 0 | CC32: 0 | CD32: 0 | CE32: 0 | CF32: 0 | CG32: 0 | CH32: 0 | CI32: 0 | CJ32: 0 | CK32: 0 | CL32: 0 | CM32: 0 | CN32: 0
A33: 29 | C33: 0 | E33: 0 | I33: 0 | M33: 0 | Q33: 0 | U33: 0 | Y33: 0 | AC33: 0 | AG33: 0 | AK33: 0 | AO33: 0 | AS33: 0 | AW33: 0 | AZ33: 0 | BA33: 0 | BB33: 0 | BC33: 0 | BD33: 0 | BE33: 0 | BF33: 0 | BG33: 0 | BH33: 0 | BI33: 0 | BJ33: 0 | BK33: 0 | BL33: 0 | BM33: 0 | BN33: 0 | BO33: 0 | BP33: 0 | BQ33: 0 | BR33: 0 | BS33: 0 | BT33: 0 | BU33: 0 | BV33: 0 | BW33: 0 | BX33: 0 | BY33: 0 | BZ33: 0 | CA33: 0 | CB33: 0 | CC33: 0 | CD33: 0 | CE33: 0 | CF33: 0 | CG33: 0 | CH33: 0 | CI33: 0 | CJ33: 0 | CK33: 0 | CL33: 0 | CM33: 0 | CN33: 0
A34: 30 | C34: 0 | E34: 0 | I34: 0 | M34: 0 | Q34: 0 | U34: 0 | Y34: 0 | AC34: 0 | AG34: 0 | AK34: 0 | AO34: 0 | AS34: 0 | AW34: 0 | AZ34: 0 | BA34: 0 | BB34: 0 | BC34: 0 | BD34: 0 | BE34: 0 | BF34: 0 | BG34: 0 | BH34: 0 | BI34: 0 | BJ34: 0 | BK34: 0 | BL34: 0 | BM34: 0 | BN34: 0 | BO34: 0 | BP34: 0 | BQ34: 0 | BR34: 0 | BS34: 0 | BT34: 0 | BU34: 0 | BV34: 0 | BW34: 0 | BX34: 0 | BY34: 0 | BZ34: 0 | CA34: 0 | CB34: 0 | CC34: 0 | CD34: 0 | CE34: 0 | CF34: 0 | CG34: 0 | CH34: 0 | CI34: 0 | CJ34: 0 | CK34: 0 | CL34: 0 | CM34: 0 | CN34: 0
A35: 31 | C35: 0 | E35: 0 | I35: 0 | M35: 0 | Q35: 0 | U35: 0 | Y35: 0 | AC35: 0 | AG35: 0 | AK35: 0 | AO35: 0 | AS35: 0 | AW35: 0 | AZ35: 0 | BA35: 0 | BB35: 0 | BC35: 0 | BD35: 0 | BE35: 0 | BF35: 0 | BG35: 0 | BH35: 0 | BI35: 0 | BJ35: 0 | BK35: 0 | BL35: 0 | BM35: 0 | BN35: 0 | BO35: 0 | BP35: 0 | BQ35: 0 | BR35: 0 | BS35: 0 | BT35: 0 | BU35: 0 | BV35: 0 | BW35: 0 | BX35: 0 | BY35: 0 | BZ35: 0 | CA35: 0 | CB35: 0 | CC35: 0 | CD35: 0 | CE35: 0 | CF35: 0 | CG35: 0 | CH35: 0 | CI35: 0 | CJ35: 0 | CK35: 0 | CL35: 0 | CM35: 0 | CN35: 0
A36: 32 | C36: 0 | E36: 0 | I36: 0 | M36: 0 | Q36: 0 | U36: 0 | Y36: 0 | AC36: 0 | AG36: 0 | AK36: 0 | AO36: 0 | AS36: 0 | AW36: 0 | AZ36: 0 | BA36: 0 | BB36: 0 | BC36: 0 | BD36: 0 | BE36: 0 | BF36: 0 | BG36: 0 | BH36: 0 | BI36: 0 | BJ36: 0 | BK36: 0 | BL36: 0 | BM36: 0 | BN36: 0 | BO36: 0 | BP36: 0 | BQ36: 0 | BR36: 0 | BS36: 0 | BT36: 0 | BU36: 0 | BV36: 0 | BW36: 0 | BX36: 0 | BY36: 0 | BZ36: 0 | CA36: 0 | CB36: 0 | CC36: 0 | CD36: 0 | CE36: 0 | CF36: 0 | CG36: 0 | CH36: 0 | CI36: 0 | CJ36: 0 | CK36: 0 | CL36: 0 | CM36: 0 | CN36: 0
A37: 33 | C37: 0 | E37: 0 | I37: 0 | M37: 0 | Q37: 0 | U37: 0 | Y37: 0 | AC37: 0 | AG37: 0 | AK37: 0 | AO37: 0 | AS37: 0 | AW37: 0 | AZ37: 0 | BA37: 0 | BB37: 0 | BC37: 0 | BD37: 0 | BE37: 0 | BF37: 0 | BG37: 0 | BH37: 0 | BI37: 0 | BJ37: 0 | BK37: 0 | BL37: 0 | BM37: 0 | BN37: 0 | BO37: 0 | BP37: 0 | BQ37: 0 | BR37: 0 | BS37: 0 | BT37: 0 | BU37: 0 | BV37: 0 | BW37: 0 | BX37: 0 | BY37: 0 | BZ37: 0 | CA37: 0 | CB37: 0 | CC37: 0 | CD37: 0 | CE37: 0 | CF37: 0 | CG37: 0 | CH37: 0 | CI37: 0 | CJ37: 0 | CK37: 0 | CL37: 0 | CM37: 0 | CN37: 0
A38: 34 | C38: 0 | E38: 0 | I38: 0 | M38: 0 | Q38: 0 | U38: 0 | Y38: 0 | AC38: 0 | AG38: 0 | AK38: 0 | AO38: 0 | AS38: 0 | AW38: 0 | AZ38: 0 | BA38: 0 | BB38: 0 | BC38: 0 | BD38: 0 | BE38: 0 | BF38: 0 | BG38: 0 | BH38: 0 | BI38: 0 | BJ38: 0 | BK38: 0 | BL38: 0 | BM38: 0 | BN38: 0 | BO38: 0 | BP38: 0 | BQ38: 0 | BR38: 0 | BS38: 0 | BT38: 0 | BU38: 0 | BV38: 0 | BW38: 0 | BX38: 0 | BY38: 0 | BZ38: 0 | CA38: 0 | CB38: 0 | CC38: 0 | CD38: 0 | CE38: 0 | CF38: 0 | CG38: 0 | CH38: 0 | CI38: 0 | CJ38: 0 | CK38: 0 | CL38: 0 | CM38: 0 | CN38: 0
A39: 35 | C39: 0 | E39: 0 | I39: 0 | M39: 0 | Q39: 0 | U39: 0 | Y39: 0 | AC39: 0 | AG39: 0 | AK39: 0 | AO39: 0 | AS39: 0 | AW39: 0 | AZ39: 0 | BA39: 0 | BB39: 0 | BC39: 0 | BD39: 0 | BE39: 0 | BF39: 0 | BG39: 0 | BH39: 0 | BI39: 0 | BJ39: 0 | BK39: 0 | BL39: 0 | BM39: 0 | BN39: 0 | BO39: 0 | BP39: 0 | BQ39: 0 | BR39: 0 | BS39: 0 | BT39: 0 | BU39: 0 | BV39: 0 | BW39: 0 | BX39: 0 | BY39: 0 | BZ39: 0 | CA39: 0 | CB39: 0 | CC39: 0 | CD39: 0 | CE39: 0 | CF39: 0 | CG39: 0 | CH39: 0 | CI39: 0 | CJ39: 0 | CK39: 0 | CL39: 0 | CM39: 0 | CN39: 0
A40: 36 | C40: 0 | E40: 0 | I40: 0 | M40: 0 | Q40: 0 | U40: 0 | Y40: 0 | AC40: 0 | AG40: 0 | AK40: 0 | AO40: 0 | AS40: 0 | AW40: 0 | AZ40: 0 | BA40: 0 | BB40: 0 | BC40: 0 | BD40: 0 | BE40: 0 | BF40: 0 | BG40: 0 | BH40: 0 | BI40: 0 | BJ40: 0 | BK40: 0 | BL40: 0 | BM40: 0 | BN40: 0 | BO40: 0 | BP40: 0 | BQ40: 0 | BR40: 0 | BS40: 0 | BT40: 0 | BU40: 0 | BV40: 0 | BW40: 0 | BX40: 0 | BY40: 0 | BZ40: 0 | CA40: 0 | CB40: 0 | CC40: 0 | CD40: 0 | CE40: 0 | CF40: 0 | CG40: 0 | CH40: 0 | CI40: 0 | CJ40: 0 | CK40: 0 | CL40: 0 | CM40: 0 | CN40: 0
A41: 37 | C41: 0 | E41: 0 | I41: 0 | M41: 0 | Q41: 0 | U41: 0 | Y41: 0 | AC41: 0 | AG41: 0 | AK41: 0 | AO41: 0 | AS41: 0 | AW41: 0 | AZ41: 0 | BA41: 0 | BB41: 0 | BC41: 0 | BD41: 0 | BE41: 0 | BF41: 0 | BG41: 0 | BH41: 0 | BI41: 0 | BJ41: 0 | BK41: 0 | BL41: 0 | BM41: 0 | BN41: 0 | BO41: 0 | BP41: 0 | BQ41: 0 | BR41: 0 | BS41: 0 | BT41: 0 | BU41: 0 | BV41: 0 | BW41: 0 | BX41: 0 | BY41: 0 | BZ41: 0 | CA41: 0 | CB41: 0 | CC41: 0 | CD41: 0 | CE41: 0 | CF41: 0 | CG41: 0 | CH41: 0 | CI41: 0 | CJ41: 0 | CK41: 0 | CL41: 0 | CM41: 0 | CN41: 0
A42: 38 | C42: 0 | E42: 0 | I42: 0 | M42: 0 | Q42: 0 | U42: 0 | Y42: 0 | AC42: 0 | AG42: 0 | AK42: 0 | AO42: 0 | AS42: 0 | AW42: 0 | AZ42: 0 | BA42: 0 | BB42: 0 | BC42: 0 | BD42: 0 | BE42: 0 | BF42: 0 | BG42: 0 | BH42: 0 | BI42: 0 | BJ42: 0 | BK42: 0 | BL42: 0 | BM42: 0 | BN42: 0 | BO42: 0 | BP42: 0 | BQ42: 0 | BR42: 0 | BS42: 0 | BT42: 0 | BU42: 0 | BV42: 0 | BW42: 0 | BX42: 0 | BY42: 0 | BZ42: 0 | CA42: 0 | CB42: 0 | CC42: 0 | CD42: 0 | CE42: 0 | CF42: 0 | CG42: 0 | CH42: 0 | CI42: 0 | CJ42: 0 | CK42: 0 | CL42: 0 | CM42: 0 | CN42: 0
A43: 39 | C43: 0 | E43: 0 | I43: 0 | M43: 0 | Q43: 0 | U43: 0 | Y43: 0 | AC43: 0 | AG43: 0 | AK43: 0 | AO43: 0 | AS43: 0 | AW43: 0 | AZ43: 0 | BA43: 0 | BB43: 0 | BC43: 0 | BD43: 0 | BE43: 0 | BF43: 0 | BG43: 0 | BH43: 0 | BI43: 0 | BJ43: 0 | BK43: 0 | BL43: 0 | BM43: 0 | BN43: 0 | BO43: 0 | BP43: 0 | BQ43: 0 | BR43: 0 | BS43: 0 | BT43: 0 | BU43: 0 | BV43: 0 | BW43: 0 | BX43: 0 | BY43: 0 | BZ43: 0 | CA43: 0 | CB43: 0 | CC43: 0 | CD43: 0 | CE43: 0 | CF43: 0 | CG43: 0 | CH43: 0 | CI43: 0 | CJ43: 0 | CK43: 0 | CL43: 0 | CM43: 0 | CN43: 0
A44: 40 | C44: 0 | E44: 0 | I44: 0 | M44: 0 | Q44: 0 | U44: 0 | Y44: 0 | AC44: 0 | AG44: 0 | AK44: 0 | AO44: 0 | AS44: 0 | AW44: 0 | AZ44: 0 | BA44: 0 | BB44: 0 | BC44: 0 | BD44: 0 | BE44: 0 | BF44: 0 | BG44: 0 | BH44: 0 | BI44: 0 | BJ44: 0 | BK44: 0 | BL44: 0 | BM44: 0 | BN44: 0 | BO44: 0 | BP44: 0 | BQ44: 0 | BR44: 0 | BS44: 0 | BT44: 0 | BU44: 0 | BV44: 0 | BW44: 0 | BX44: 0 | BY44: 0 | BZ44: 0 | CA44: 0 | CB44: 0 | CC44: 0 | CD44: 0 | CE44: 0 | CF44: 0 | CG44: 0 | CH44: 0 | CI44: 0 | CJ44: 0 | CK44: 0 | CL44: 0 | CM44: 0 | CN44: 0
A45: 41 | C45: 0 | E45: 0 | I45: 0 | M45: 0 | Q45: 0 | U45: 0 | Y45: 0 | AC45: 0 | AG45: 0 | AK45: 0 | AO45: 0 | AS45: 0 | AW45: 0 | AZ45: 0 | BA45: 0 | BB45: 0 | BC45: 0 | BD45: 0 | BE45: 0 | BF45: 0 | BG45: 0 | BH45: 0 | BI45: 0 | BJ45: 0 | BK45: 0 | BL45: 0 | BM45: 0 | BN45: 0 | BO45: 0 | BP45: 0 | BQ45: 0 | BR45: 0 | BS45: 0 | BT45: 0 | BU45: 0 | BV45: 0 | BW45: 0 | BX45: 0 | BY45: 0 | BZ45: 0 | CA45: 0 | CB45: 0 | CC45: 0 | CD45: 0 | CE45: 0 | CF45: 0 | CG45: 0 | CH45: 0 | CI45: 0 | CJ45: 0 | CK45: 0 | CL45: 0 | CM45: 0 | CN45: 0
A46: 42 | C46: 0 | E46: 0 | I46: 0 | M46: 0 | Q46: 0 | U46: 0 | Y46: 0 | AC46: 0 | AG46: 0 | AK46: 0 | AO46: 0 | AS46: 0 | AW46: 0 | AZ46: 0 | BA46: 0 | BB46: 0 | BC46: 0 | BD46: 0 | BE46: 0 | BF46: 0 | BG46: 0 | BH46: 0 | BI46: 0 | BJ46: 0 | BK46: 0 | BL46: 0 | BM46: 0 | BN46: 0 | BO46: 0 | BP46: 0 | BQ46: 0 | BR46: 0 | BS46: 0 | BT46: 0 | BU46: 0 | BV46: 0 | BW46: 0 | BX46: 0 | BY46: 0 | BZ46: 0 | CA46: 0 | CB46: 0 | CC46: 0 | CD46: 0 | CE46: 0 | CF46: 0 | CG46: 0 | CH46: 0 | CI46: 0 | CJ46: 0 | CK46: 0 | CL46: 0 | CM46: 0 | CN46: 0
A47: 43 | C47: 0 | E47: 0 | I47: 0 | M47: 0 | Q47: 0 | U47: 0 | Y47: 0 | AC47: 0 | AG47: 0 | AK47: 0 | AO47: 0 | AS47: 0 | AW47: 0 | AZ47: 0 | BA47: 0 | BB47: 0 | BC47: 0 | BD47: 0 | BE47: 0 | BF47: 0 | BG47: 0 | BH47: 0 | BI47: 0 | BJ47: 0 | BK47: 0 | BL47: 0 | BM47: 0 | BN47: 0 | BO47: 0 | BP47: 0 | BQ47: 0 | BR47: 0 | BS47: 0 | BT47: 0 | BU47: 0 | BV47: 0 | BW47: 0 | BX47: 0 | BY47: 0 | BZ47: 0 | CA47: 0 | CB47: 0 | CC47: 0 | CD47: 0 | CE47: 0 | CF47: 0 | CG47: 0 | CH47: 0 | CI47: 0 | CJ47: 0 | CK47: 0 | CL47: 0 | CM47: 0 | CN47: 0
A48: 44 | C48: 0 | E48: 0 | I48: 0 | M48: 0 | Q48: 0 | U48: 0 | Y48: 0 | AC48: 0 | AG48: 0 | AK48: 0 | AO48: 0 | AS48: 0 | AW48: 0 | AZ48: 0 | BA48: 0 | BB48: 0 | BC48: 0 | BD48: 0 | BE48: 0 | BF48: 0 | BG48: 0 | BH48: 0 | BI48: 0 | BJ48: 0 | BK48: 0 | BL48: 0 | BM48: 0 | BN48: 0 | BO48: 0 | BP48: 0 | BQ48: 0 | BR48: 0 | BS48: 0 | BT48: 0 | BU48: 0 | BV48: 0 | BW48: 0 | BX48: 0 | BY48: 0 | BZ48: 0 | CA48: 0 | CB48: 0 | CC48: 0 | CD48: 0 | CE48: 0 | CF48: 0 | CG48: 0 | CH48: 0 | CI48: 0 | CJ48: 0 | CK48: 0 | CL48: 0 | CM48: 0 | CN48: 0
A49: 45 | C49: 0 | E49: 0 | I49: 0 | M49: 0 | Q49: 0 | U49: 0 | Y49: 0 | AC49: 0 | AG49: 0 | AK49: 0 | AO49: 0 | AS49: 0 | AW49: 0 | AZ49: 0 | BA49: 0 | BB49: 0 | BC49: 0 | BD49: 0 | BE49: 0 | BF49: 0 | BG49: 0 | BH49: 0 | BI49: 0 | BJ49: 0 | BK49: 0 | BL49: 0 | BM49: 0 | BN49: 0 | BO49: 0 | BP49: 0 | BQ49: 0 | BR49: 0 | BS49: 0 | BT49: 0 | BU49: 0 | BV49: 0 | BW49: 0 | BX49: 0 | BY49: 0 | BZ49: 0 | CA49: 0 | CB49: 0 | CC49: 0 | CD49: 0 | CE49: 0 | CF49: 0 | CG49: 0 | CH49: 0 | CI49: 0 | CJ49: 0 | CK49: 0 | CL49: 0 | CM49: 0 | CN49: 0

Sheet Class. elimin. 2 piores res
A1: 2023 | E1: OK | I1: OK | M1: OK | Q1: OK | U1: OK | Y1: OK | AC1: OK | AG1: OK | AK1: OK | AO1: OK | AS1: OK | AW1: OK
D2: 1ª etapa | H2: 2ª etapa | L2: 3ª etapa | P2: 4ª etapa | T2: 5ª etapa | X2: 6ª etapa | AB2: 7ª etapa | AF2: 8ª etapa | AJ2: 9ª etapa | AN2: 10ª etapa | AR2: 11ª etapa | AV2: 12ª etapa
B4: Nome do (a) Piloto (a) | C4: Pontuação Geral | D4: Posição | E4: Pontos | F4: Bônus | G4: Penalidade | H4: Posição | I4: Pontos | J4: Bônus | K4: Penalidade | L4: Posição | M4: Pontos | N4: Bônus | O4: Penalidade | P4: Posição | Q4: Pontos | R4: Bônus | S4: Penalidade | T4: Posição | U4: Pontos | V4: Bônus | W4: Penalidade | X4: Posição | Y4: Pontos | Z4: Bônus | AA4: Penalidade | AB4: Posição | AC4: Pontos | AD4: Bônus | AE4: Penalidade | AF4: Posição | AG4: Pontos | AH4: Bônus | AI4: Penalidade | AJ4: Posição | AK4: Pontos | AL4: Bônus | AM4: Penalidade | AN4: Posição | AO4: Pontos | AP4: Bônus | AQ4: Penalidade | AR4: Posição | AS4: Pontos | AT4: Bônus | AU4: Penalidade | AV4: Posição | AW4: Pontos | AX4: Bônus | AY4: Penalidade | AZ4: 1º LUGAR | BA4: 2º LUGAR | BB4: 3º LUGAR | BC4: 4º LUGAR | BD4: 5º LUGAR | BE4: 6º LUGAR | BF4: 7º LUGAR | BG4: 8º LUGAR | BH4: 9º LUGAR | BI4: 10º LUGAR | BJ4: 11º LUGAR | BK4: 12º LUGAR | BL4: 13º LUGAR | BM4: 14º LUGAR | BN4: 15º LUGAR | BO4: 16º LUGAR | BP4: 17º LUGAR | BQ4: 18º LUGAR | BR4: 19º LUGAR | BS4: 20º LUGAR | BT4: 21º LUGAR | BU4: 22º LUGAR | BV4: 23º LUGAR | BW4: 24º LUGAR | BX4: 25º LUGAR | BY4: 26º LUGAR | BZ4: 27º LUGAR | CA4: 28º LUGAR | CB4: 29º LUGAR | CC4: 30º LUGAR | CD4: 31º LUGAR | CE4: 32º LUGAR | CF4: 33º LUGAR | CG4: 34º LUGAR | CH4: 35º LUGAR | CI4: 36º LUGAR | CJ4: 37º LUGAR | CK4: 38º LUGAR | CL4: 39º LUGAR | CM4: 40º LUGAR | CN4: 41º LUGAR
A5: 1 | B5: Marcelo Clemente | C5: 182 | D5: 6 | E5: 15* | F5: 0 | H5: 10 | I5: 11* | J5: 0 | L5: 6 | M5: 15 | P5: 1 | Q5: 25 | T5: 6 | U5: 15 | X5: 1 | Y5: 25 | AB5: 11 | AC5: 10 | AD5: 1 | AE5: SIM | AF5: 1 | AG5: 25 | AH5: 1 | AJ5: 2 | AK5: 22 | AL5: 1 | AN5: 31 | AO5: 0 | AQ5: SIM | AR5: 3 | AS5: 20 | AV5: 2 | AW5: 22 | AZ5: 3 | BA5: 2 | BB5: 1 | BC5: 0 | BD5: 0 | BE5: 3 | BF5: 0 | BG5: 0 | BH5: 0 | BI5: 1 | BJ5: 1 | BK5: 0 | BL5: 0 | BM5: 0 | BN5: 0 | BO5: 0 | BP5: 0 | BQ5: 0 | BR5: 0 | BS5: 0 | BT5: 0 | BU5: 0 | BV5: 0 | BW5: 0 | BX5: 0 | BY5: 0 | BZ5: 0 | CA5: 0 | CB5: 0 | CC5: 0 | CD5: 1 | CE5: 0 | CF5: 0 | CG5: 0 | CH5: 0 | CI5: 0 | CJ5: 0 | CK5: 0 | CL5: 0 | CM5: 0 | CN5: 0
A6: 2 | B6: Marcelo Sant'anna | C6: 177 | D6: 8 | E6: 13 | F6: 0 | H6: 1 | I6: 25 | J6: 0 | M6: 0* | P6: 5 | Q6: 16 | T6: 4 | U6: 18 | X6: 4 | Y6: 18 | AB6: 3 | AC6: 20 | AF6: 9 | AG6: 12* | AJ6: 3 | AK6: 20 | AN6: 3 | AO6: 20 | AR6: 7 | AS6: 14 | AV6: 8 | AW6: 13 | AZ6: 1 | BA6: 0 | BB6: 3 | BC6: 2 | BD6: 1 | BE6: 0 | BF6: 1 | BG6: 2 | BH6: 1 | BI6: 0 | BJ6: 0 | BK6: 0 | BL6: 0 | BM6: 0 | BN6: 0 | BO6: 0 | BP6: 0 | BQ6: 0 | BR6: 0 | BS6: 0 | BT6: 0 | BU6: 0 | BV6: 0 | BW6: 0 | BX6: 0 | BY6: 0 | BZ6: 0 | CA6: 0 | CB6: 0 | CC6: 0 | CD6: 0 | CE6: 0 | CF6: 0 | CG6: 0 | CH6: 0 | CI6: 0 | CJ6: 0 | CK6: 0 | CL6: 0 | CM6: 0 | CN6: 0
A7: 3 | B7: Alexandre Melillo | C7: 176 | D7: 2 | E7: 22 | F7: 1 | H7: 5 | I7: 16 | J7: 0 | L7: 17 | M7: 4 | O7: SIM | P7: 4 | Q7: 18 | T7: 1 | U7: 25 | V7: 1 | X7: 2 | Y7: 22 | AB7: 4 | AC7: 18 | AF7: 8 | AG7: 13* | AJ7: 8 | AK7: 13 | AN7: 2 | AO7: 22 | AS7: 0* | AV7: 7 | AW7: 14 | AZ7: 1 | BA7: 3 | BB7: 0 | BC7: 2 | BD7: 1 | BE7: 0 | BF7: 1 | BG7: 2 | BH7: 0 | BI7: 0 | BJ7: 0 | BK7: 0 | BL7: 0 | BM7: 0 | BN7: 0 | BO7: 0 | BP7: 1 | BQ7: 0 | BR7: 0 | BS7: 0 | BT7: 0 | BU7: 0 | BV7: 0 | BW7: 0 | BX7: 0 | BY7: 0 | BZ7: 0 | CA7: 0 | CB7: 0 | CC7: 0 | CD7: 0 | CE7: 0 | CF7: 0 | CG7: 0 | CH7: 0 | CI7: 0 | CJ7: 0 | CK7: 0 | CL7: 0 | CM7: 0 | CN7: 0
A8: 4 | B8: Rodrigo Mercadante | C8: 166 | D8: 7 | E8: 14 | F8: 0 | I8: 0* | L8: 8 | M8: 13 | P8: 11 | Q8: 10* | T8: 3 | U8: 20 | X8: 3 | Y8: 20 | AB8: 8 | AC8: 13 | AF8: 4 | AG8: 18 | AJ8: 6 | AK8: 15 | AN8: 1 | AO8: 25 | AR8: 5 | AS8: 16 | AV8: 9 | AW8: 12 | AZ8: 1 | BA8: 0 | BB8: 2 | BC8: 1 | BD8: 1 | BE8: 1 | BF8: 1 | BG8: 2 | BH8: 1 | BI8: 0 | BJ8: 1 | BK8: 0 | BL8: 0 | BM8: 0 | BN8: 0 | BO8: 0 | BP8: 0 | BQ8: 0 | BR8: 0 | BS8: 0 | BT8: 0 | BU8: 0 | BV8: 0 | BW8: 0 | BX8: 0 | BY8: 0 | BZ8: 0 | CA8: 0 | CB8: 0 | CC8: 0 | CD8: 0 | CE8: 0 | CF8: 0 | CG8: 0 | CH8: 0 | CI8: 0 | CJ8: 0 | CK8: 0 | CL8: 0 | CM8: 0 | CN8: 0
A9: 5 | B9: Marcelo Mizrahy | C9: 164 | D9: 4 | E9: 18 | F9: 0 | H9: 3 | I9: 20 | J9: 0 | L9: 9 | M9: 12* | P9: 2 | Q9: 22 | U9: 0* | X9: 5 | Y9: 16 | Z9: 1 | AB9: 20 | AC9: 1 | AE9: SIM | AF9: 3 | AG9: 20 | AJ9: 4 | AK9: 18 | AN9: 8 | AO9: 13 | AP9: 1 | AR9: 8 | AS9: 13 | AV9: 3 | AW9: 20 | AX9: 1 | AZ9: 0 | BA9: 1 | BB9: 3 | BC9: 2 | BD9: 1 | BE9: 0 | BF9: 0 | BG9: 2 | BH9: 1 | BI9: 0 | BJ9: 0 | BK9: 0 | BL9: 0 | BM9: 0 | BN9: 0 | BO9: 0 | BP9: 0 | BQ9: 0 | BR9: 0 | BS9: 1 | BT9: 0 | BU9: 0 | BV9: 0 | BW9: 0 | BX9: 0 | BY9: 0 | BZ9: 0 | CA9: 0 | CB9: 0 | CC9: 0 | CD9: 0 | CE9: 0 | CF9: 0 | CG9: 0 | CH9: 0 | CI9: 0 | CJ9: 0 | CK9: 0 | CL9: 0 | CM9: 0 | CN9: 0
A10: 6 | B10: Jarbas Reis | C10: 160 | D10: 5 | E10: 16 | F10: 0 | H10: 7 | I10: 14 | J10: 0 | L10: 5 | M10: 16 | P10: 8 | Q10: 13* | T10: 5 | U10: 16 | X10: 8 | Y10: 13 | AB10: 7 | AC10: 14 | AF10: 6 | AG10: 15 | AJ10: 7 | AK10: 14 | AO10: 0* | AR10: 1 | AS10: 25 | AT10: 1 | AV10: 5 | AW10: 16 | AZ10: 1 | BA10: 0 | BB10: 0 | BC10: 0 | BD10: 4 | BE10: 1 | BF10: 3 | BG10: 2 | BH10: 0 | BI10: 0 | BJ10: 0 | BK10: 0 | BL10: 0 | BM10: 0 | BN10: 0 | BO10: 0 | BP10: 0 | BQ10: 0 | BR10: 0 | BS10: 0 | BT10: 0 | BU10: 0 | BV10: 0 | BW10: 0 | BX10: 0 | BY10: 0 | BZ10: 0 | CA10: 0 | CB10: 0 | CC10: 0 | CD10: 0 | CE10: 0 | CF10: 0 | CG10: 0 | CH10: 0 | CI10: 0 | CJ10: 0 | CK10: 0 | CL10: 0 | CM10: 0 | CN10: 0
A11: 7 | B11: Marcelo Surerus | C11: 132 | E11: 0* | I11: 0* | L11: 4 | M11: 18 | P11: 9 | Q11: 12 | T11: 2 | U11: 22 | X11: 13 | Y11: 8 | AB11: 2 | AC11: 22 | AG11: 0 | AK11: 0 | AM11: -5 | AN11: 6 | AO11: 15 | AR11: 2 | AS11: 22 | AV11: 4 | AW11: 18 | AZ11: 0 | BA11: 3 | BB11: 0 | BC11: 2 | BD11: 0 | BE11: 1 | BF11: 0 | BG11: 0 | BH11: 1 | BI11: 0 | BJ11: 0 | BK11: 0 | BL11: 1 | BM11: 0 | BN11: 0 | BO11: 0 | BP11: 0 | BQ11: 0 | BR11: 0 | BS11: 0 | BT11: 0 | BU11: 0 | BV11: 0 | BW11: 0 | BX11: 0 | BY11: 0 | BZ11: 0 | CA11: 0 | CB11: 0 | CC11: 0 | CD11: 0 | CE11: 0 | CF11: 0 | CG11: 0 | CH11: 0 | CI11: 0 | CJ11: 0 | CK11: 0 | CL11: 0 | CM11: 0 | CN11: 0
A12: 8 | B12: Guilherme Janot | C12: 128 | D12: 1 | E12: 25 | F12: 0 | H12: 11 | I12: 10 | J12: 0 | K12: SIM | L12: 3 | M12: 20 | P12: 6 | Q12: 15 | R12: 1 | T12: 7 | U12: 14 | X12: 11 | Y12: 10* | AB12: 1 | AC12: 25 | AF12: 2 | AG12: 22 | AJ12: 26 | AK12: 0 | AM12: SIM | AN12: 0 | AO12: 0 | AQ12: SIM | AR12: 23 | AS12: 1 | AU12: SIM | AW12: 0* | AY12: -5 | AZ12: 2 | BA12: 1 | BB12: 1 | BC12: 0 | BD12: 0 | BE12: 1 | BF12: 1 | BG12: 0 | BH12: 0 | BI12: 0 | BJ12: 2 | BK12: 0 | BL12: 0 | BM12: 0 | BN12: 0 | BO12: 0 | BP12: 0 | BQ12: 0 | BR12: 0 | BS12: 0 | BT12: 0 | BU12: 0 | BV12: 1 | BW12: 0 | BX12: 0 | BY12: 1 | BZ12: 0 | CA12: 0 | CB12: 0 | CC12: 0 | CD12: 0 | CE12: 0 | CF12: 0 | CG12: 0 | CH12: 0 | CI12: 0 | CJ12: 0 | CK12: 0 | CL12: 0 | CM12: 0 | CN12: 0
A13: 9 | B13: Euclides Almeida | C13: 124 | E13: 0* | H13: 4 | I13: 18 | J13: 0 | L13: 11 | M13: 10 | Q13: 0* | T13: 10 | U13: 11 | X13: 7 | Y13: 14 | AB13: 6 | AC13: 15 | AF13: 7 | AG13: 14 | AJ13: 9 | AK13: 12 | AN13: 9 | AO13: 12 | AR13: 4 | AS13: 18 | AW13: 0 | AZ13: 0 | BA13: 0 | BB13: 0 | BC13: 2 | BD13: 0 | BE13: 1 | BF13: 2 | BG13: 0 | BH13: 2 | BI13: 1 | BJ13: 1 | BK13: 0 | BL13: 0 | BM13: 0 | BN13: 0 | BO13: 0 | BP13: 0 | BQ13: 0 | BR13: 0 | BS13: 0 | BT13: 0 | BU13: 0 | BV13: 0 | BW13: 0 | BX13: 0 | BY13: 0 | BZ13: 0 | CA13: 0 | CB13: 0 | CC13: 0 | CD13: 0 | CE13: 0 | CF13: 0 | CG13: 0 | CH13: 0 | CI13: 0 | CJ13: 0 | CK13: 0 | CL13: 0 | CM13: 0 | CN13: 0
A14: 10 | B14: Lucio Chequer | C14: 120 | D14: 9 | E14: 12 | F14: 0 | H14: 9 | I14: 12 | J14: 0 | L14: 13 | M14: 8 | P14: 10 | Q14: 11 | T14: 16 | U14: 5 | W14: SIM | X14: 9 | Y14: 12 | AC14: 0* | AF14: 10 | AG14: 11 | AJ14: 11 | AK14: 10 | AN14: 7 | AO14: 14 | AS14: 0* | AV14: 1 | AW14: 25 | AZ14: 1 | BA14: 0 | BB14: 0 | BC14: 0 | BD14: 0 | BE14: 0 | BF14: 1 | BG14: 0 | BH14: 3 | BI14: 2 | BJ14: 1 | BK14: 0 | BL14: 1 | BM14: 0 | BN14: 0 | BO14: 1 | BP14: 0 | BQ14: 0 | BR14: 0 | BS14: 0 | BT14: 0 | BU14: 0 | BV14: 0 | BW14: 0 | BX14: 0 | BY14: 0 | BZ14: 0 | CA14: 0 | CB14: 0 | CC14: 0 | CD14: 0 | CE14: 0 | CF14: 0 | CG14: 0 | CH14: 0 | CI14: 0 | CJ14: 0 | CK14: 0 | CL14: 0 | CM14: 0 | CN14: 0
A15: 11 | B15: Claudio Junqueira | C15: 89 | D15: 3 | E15: 20 | F15: 0 | H15: 8 | I15: 13 | J15: 0 | L15: 1 | M15: 25 | N15: 1 | P15: 3 | Q15: 20 | T15: 11 | U15: 10 | W15: -5 | X15: 6 | Y15: 15 | AC15: 0* | AF15: 0 | AG15: 0 | AI15: SIM | AK15: 0* | AO15: 0 | AS15: 0 | AU15: -5 | AW15: 0 | AY15: -5 | AZ15: 1 | BA15: 0 | BB15: 2 | BC15: 0 | BD15: 0 | BE15: 1 | BF15: 0 | BG15: 1 | BH15: 0 | BI15: 0 | BJ15: 1 | BK15: 0 | BL15: 0 | BM15: 0 | BN15: 0 | BO15: 0 | BP15: 0 | BQ15: 0 | BR15: 0 | BS15: 0 | BT15: 0 | BU15: 0 | BV15: 0 | BW15: 0 | BX15: 0 | BY15: 0 | BZ15: 0 | CA15: 0 | CB15: 0 | CC15: 0 | CD15: 0 | CE15: 0 | CF15: 0 | CG15: 0 | CH15: 0 | CI15: 0 | CJ15: 0 | CK15: 0 | CL15: 0 | CM15: 0 | CN15: 0
A16: 12 | B16: Gijo | C16: 88 | D16: 22 | E16: 1 | F16: 0 | G16: SIM | H16: 29 | I16: 0 | J16: 0 | K16: SIM | L16: 12 | M16: 9 | P16: 13 | Q16: 8* | U16: 0* | W16: -5 | X16: 12 | Y16: 9 | AA16: -5 | AB16: 5 | AC16: 16 | AF16: 5 | AG16: 16 | AJ16: 5 | AK16: 16 | AN16: 5 | AO16: 16 | AQ16: -5 | AR16: 6 | AS16: 15 | AU16: -5 | AV16: 6 | AW16: 15 | AY16: -5 | AZ16: 0 | BA16: 0 | BB16: 0 | BC16: 0 | BD16: 4 | BE16: 2 | BF16: 0 | BG16: 0 | BH16: 0 | BI16: 0 | BJ16: 0 | BK16: 2 | BL16: 1 | BM16: 0 | BN16: 0 | BO16: 0 | BP16: 0 | BQ16: 0 | BR16: 0 | BS16: 0 | BT16: 0 | BU16: 1 | BV16: 0 | BW16: 0 | BX16: 0 | BY16: 0 | BZ16: 0 | CA16: 0 | CB16: 1 | CC16: 0 | CD16: 0 | CE16: 0 | CF16: 0 | CG16: 0 | CH16: 0 | CI16: 0 | CJ16: 0 | CK16: 0 | CL16: 0 | CM16: 0 | CN16: 0
A17: 13 | B17: Morvan | C17: 88 | D17: 10 | E17: 11 | F17: 0 | H17: 12 | I17: 9* | J17: 0 | L17: 10 | M17: 11 | P17: 12 | Q17: 9 | T17: 8 | U17: 13 | X17: 14 | Y17: 7* | AB17: 21 | AC17: 1 | AE17: SIM | AF17: 11 | AG17: 10 | AJ17: 30 | AK17: 0 | AM17: SIM | AN17: 10 | AO17: 11 | AR17: 9 | AS17: 12 | AV17: 11 | AW17: 10 | AZ17: 0 | BA17: 0 | BB17: 0 | BC17: 0 | BD17: 0 | BE17: 0 | BF17: 0 | BG17: 1 | BH17: 1 | BI17: 3 | BJ17: 2 | BK17: 2 | BL17: 0 | BM17: 1 | BN17: 0 | BO17: 0 | BP17: 0 | BQ17: 0 | BR17: 0 | BS17: 0 | BT17: 1 | BU17: 0 | BV17: 0 | BW17: 0 | BX17: 0 | BY17: 0 | BZ17: 0 | CA17: 0 | CB17: 0 | CC17: 1 | CD17: 0 | CE17: 0 | CF17: 0 | CG17: 0 | CH17: 0 | CI17: 0 | CJ17: 0 | CK17: 0 | CL17: 0 | CM17: 0 | CN17: 0
A18: 14 | B18: Roberto Veloso | C18: 66 | E18: 0* | H18: 13 | I18: 8 | J18: 0 | L18: 14 | M18: 7 | Q18: 0* | U18: 0 | Y18: 0 | AC18: 0 | AE18: -5 | AF18: 12 | AG18: 9 | AJ18: 1 | AK18: 25 | AN18: 4 | AO18: 18 | AS18: 0 | AU18: -5 | AV18: 12 | AW18: 9 | AZ18: 1 | BA18: 0 | BB18: 0 | BC18: 1 | BD18: 0 | BE18: 0 | BF18: 0 | BG18: 0 | BH18: 0 | BI18: 0 | BJ18: 0 | BK18: 2 | BL18: 1 | BM18: 1 | BN18: 0 | BO18: 0 | BP18: 0 | BQ18: 0 | BR18: 0 | BS18: 0 | BT18: 0 | BU18: 0 | BV18: 0 | BW18: 0 | BX18: 0 | BY18: 0 | BZ18: 0 | CA18: 0 | CB18: 0 | CC18: 0 | CD18: 0 | CE18: 0 | CF18: 0 | CG18: 0 | CH18: 0 | CI18: 0 | CJ18: 0 | CK18: 0 | CL18: 0 | CM18: 0 | CN18: 0
A19: 15 | B19: Carlos Eduardo | C19: 53 | D19: 11 | E19: 10 | F19: 0 | H19: 6 | I19: 15 | J19: 0 | L19: 2 | M19: 22 | P19: 14 | Q19: 7 | T19: 9 | U19: 12 | X19: 10 | Y19: 11 | AB19: 22 | AC19: 1 | AE19: SIM | AG19: 0* | AI19: -5 | AK19: 0* | AM19: -5 | AO19: 0 | AQ19: -5 | AS19: 0 | AU19: -5 | AW19: 0 | AY19: -5 | AZ19: 0 | BA19: 1 | BB19: 0 | BC19: 0 | BD19: 0 | BE19: 1 | BF19: 0 | BG19: 0 | BH19: 1 | BI19: 1 | BJ19: 1 | BK19: 0 | BL19: 0 | BM19: 1 | BN19: 0 | BO19: 0 | BP19: 0 | BQ19: 0 | BR19: 0 | BS19: 0 | BT19: 0 | BU19: 1 | BV19: 0 | BW19: 0 | BX19: 0 | BY19: 0 | BZ19: 0 | CA19: 0 | CB19: 0 | CC19: 0 | CD19: 0 | CE19: 0 | CF19: 0 | CG19: 0 | CH19: 0 | CI19: 0 | CJ19: 0 | CK19: 0 | CL19: 0 | CM19: 0 | CN19: 0
A20: 16 | B20: Cláudio Dumont | C20: 16 | E20: 0* | H20: 2 | I20: 22 | J20: 1 | L20: 7 | M20: 14 | P20: 7 | Q20: 14 | U20: 0* | Y20: 0 | AA20: -5 | AC20: 0 | AE20: -5 | AG20: 0 | AI20: -5 | AK20: 0 | AM20: -5 | AO20: 0 | AQ20: -5 | AS20: 0 | AU20: -5 | AW20: 0 | AY20: -5 | AZ20: 0 | BA20: 1 | BB20: 0 | BC20: 0 | BD20: 0 | BE20: 0 | BF20: 2 | BG20: 0 | BH20: 0 | BI20: 0 | BJ20: 0 | BK20: 0 | BL20: 0 | BM20: 0 | BN20: 0 | BO20: 0 | BP20: 0 | BQ20: 0 | BR20: 0 | BS20: 0 | BT20: 0 | BU20: 0 | BV20: 0 | BW20: 0 | BX20: 0 | BY20: 0 | BZ20: 0 | CA20: 0 | CB20: 0 | CC20: 0 | CD20: 0 | CE20: 0 | CF20: 0 | CG20: 0 | CH20: 0 | CI20: 0 | CJ20: 0 | CK20: 0 | CL20: 0 | CM20: 0 | CN20: 0
A21: 17 | B21: Ivan Renault | C21: 12 | E21: 0* | I21: 0* | M21: 0 | Q21: 0 | U21: 0 | Y21: 0 | AC21: 0 | AE21: -5 | AG21: 0 | AJ21: 10 | AK21: 11 | AO21: 0 | AS21: 0 | AU21: -5 | AV21: 10 | AW21: 11 | AZ21: 0 | BA21: 0 | BB21: 0 | BC21: 0 | BD21: 0 | BE21: 0 | BF21: 0 | BG21: 0 | BH21: 0 | BI21: 2 | BJ21: 0 | BK21: 0 | BL21: 0 | BM21: 0 | BN21: 0 | BO21: 0 | BP21: 0 | BQ21: 0 | BR21: 0 | BS21: 0 | BT21: 0 | BU21: 0 | BV21: 0 | BW21: 0 | BX21: 0 | BY21: 0 | BZ21: 0 | CA21: 0 | CB21: 0 | CC21: 0 | CD21: 0 | CE21: 0 | CF21: 0 | CG21: 0 | CH21: 0 | CI21: 0 | CJ21: 0 | CK21: 0 | CL21: 0 | CM21: 0 | CN21: 0
A22: 18 | C22: 0 | E22: 0 | I22: 0 | M22: 0 | Q22: 0 | U22: 0 | Y22: 0 | AC22: 0 | AG22: 0 | AK22: 0 | AO22: 0 | AS22: 0 | AW22: 0 | AZ22: 0 | BA22: 0 | BB22: 0 | BC22: 0 | BD22: 0 | BE22: 0 | BF22: 0 | BG22: 0 | BH22: 0 | BI22: 0 | BJ22: 0 | BK22: 0 | BL22: 0 | BM22: 0 | BN22: 0 | BO22: 0 | BP22: 0 | BQ22: 0 | BR22: 0 | BS22: 0 | BT22: 0 | BU22: 0 | BV22: 0 | BW22: 0 | BX22: 0 | BY22: 0 | BZ22: 0 | CA22: 0 | CB22: 0 | CC22: 0 | CD22: 0 | CE22: 0 | CF22: 0 | CG22: 0 | CH22: 0 | CI22: 0 | CJ22: 0 | CK22: 0 | CL22: 0 | CM22: 0 | CN22: 0
A23: 19 | C23: 0 | E23: 0 | I23: 0 | M23: 0 | Q23: 0 | U23: 0 | Y23: 0 | AC23: 0 | AG23: 0 | AK23: 0 | AO23: 0 | AS23: 0 | AW23: 0 | AZ23: 0 | BA23: 0 | BB23: 0 | BC23: 0 | BD23: 0 | BE23: 0 | BF23: 0 | BG23: 0 | BH23: 0 | BI23: 0 | BJ23: 0 | BK23: 0 | BL23: 0 | BM23: 0 | BN23: 0 | BO23: 0 | BP23: 0 | BQ23: 0 | BR23: 0 | BS23: 0 | BT23: 0 | BU23: 0 | BV23: 0 | BW23: 0 | BX23: 0 | BY23: 0 | BZ23: 0 | CA23: 0 | CB23: 0 | CC23: 0 | CD23: 0 | CE23: 0 | CF23: 0 | CG23: 0 | CH23: 0 | CI23: 0 | CJ23: 0 | CK23: 0 | CL23: 0 | CM23: 0 | CN23: 0
A24: 20 | C24: 0 | E24: 0 | I24: 0 | M24: 0 | Q24: 0 | U24: 0 | Y24: 0 | AC24: 0 | AG24: 0 | AK24: 0 | AO24: 0 | AS24: 0 | AW24: 0 | AZ24: 0 | BA24: 0 | BB24: 0 | BC24: 0 | BD24: 0 | BE24: 0 | BF24: 0 | BG24: 0 | BH24: 0 | BI24: 0 | BJ24: 0 | BK24: 0 | BL24: 0 | BM24: 0 | BN24: 0 | BO24: 0 | BP24: 0 | BQ24: 0 | BR24: 0 | BS24: 0 | BT24: 0 | BU24: 0 | BV24: 0 | BW24: 0 | BX24: 0 | BY24: 0 | BZ24: 0 | CA24: 0 | CB24: 0 | CC24: 0 | CD24: 0 | CE24: 0 | CF24: 0 | CG24: 0 | CH24: 0 | CI24: 0 | CJ24: 0 | CK24: 0 | CL24: 0 | CM24: 0 | CN24: 0
A25: 21 | C25: 0 | E25: 0 | I25: 0 | M25: 0 | Q25: 0 | U25: 0 | Y25: 0 | AC25: 0 | AG25: 0 | AK25: 0 | AO25: 0 | AS25: 0 | AW25: 0 | AZ25: 0 | BA25: 0 | BB25: 0 | BC25: 0 | BD25: 0 | BE25: 0 | BF25: 0 | BG25: 0 | BH25: 0 | BI25: 0 | BJ25: 0 | BK25: 0 | BL25: 0 | BM25: 0 | BN25: 0 | BO25: 0 | BP25: 0 | BQ25: 0 | BR25: 0 | BS25: 0 | BT25: 0 | BU25: 0 | BV25: 0 | BW25: 0 | BX25: 0 | BY25: 0 | BZ25: 0 | CA25: 0 | CB25: 0 | CC25: 0 | CD25: 0 | CE25: 0 | CF25: 0 | CG25: 0 | CH25: 0 | CI25: 0 | CJ25: 0 | CK25: 0 | CL25: 0 | CM25: 0 | CN25: 0
A26: 22 | C26: 0 | E26: 0 | I26: 0 | M26: 0 | Q26: 0 | U26: 0 | Y26: 0 | AC26: 0 | AG26: 0 | AK26: 0 | AO26: 0 | AS26: 0 | AW26: 0 | AZ26: 0 | BA26: 0 | BB26: 0 | BC26: 0 | BD26: 0 | BE26: 0 | BF26: 0 | BG26: 0 | BH26: 0 | BI26: 0 | BJ26: 0 | BK26: 0 | BL26: 0 | BM26: 0 | BN26: 0 | BO26: 0 | BP26: 0 | BQ26: 0 | BR26: 0 | BS26: 0 | BT26: 0 | BU26: 0 | BV26: 0 | BW26: 0 | BX26: 0 | BY26: 0 | BZ26: 0 | CA26: 0 | CB26: 0 | CC26: 0 | CD26: 0 | CE26: 0 | CF26: 0 | CG26: 0 | CH26: 0 | CI26: 0 | CJ26: 0 | CK26: 0 | CL26: 0 | CM26: 0 | CN26: 0
A27: 23 | C27: 0 | E27: 0 | I27: 0 | M27: 0 | Q27: 0 | U27: 0 | Y27: 0 | AC27: 0 | AG27: 0 | AK27: 0 | AO27: 0 | AS27: 0 | AW27: 0 | AZ27: 0 | BA27: 0 | BB27: 0 | BC27: 0 | BD27: 0 | BE27: 0 | BF27: 0 | BG27: 0 | BH27: 0 | BI27: 0 | BJ27: 0 | BK27: 0 | BL27: 0 | BM27: 0 | BN27: 0 | BO27: 0 | BP27: 0 | BQ27: 0 | BR27: 0 | BS27: 0 | BT27: 0 | BU27: 0 | BV27: 0 | BW27: 0 | BX27: 0 | BY27: 0 | BZ27: 0 | CA27: 0 | CB27: 0 | CC27: 0 | CD27: 0 | CE27: 0 | CF27: 0 | CG27: 0 | CH27: 0 | CI27: 0 | CJ27: 0 | CK27: 0 | CL27: 0 | CM27: 0 | CN27: 0
A28: 24 | C28: 0 | E28: 0 | I28: 0 | M28: 0 | Q28: 0 | U28: 0 | Y28: 0 | AC28: 0 | AG28: 0 | AK28: 0 | AO28: 0 | AS28: 0 | AW28: 0 | AZ28: 0 | BA28: 0 | BB28: 0 | BC28: 0 | BD28: 0 | BE28: 0 | BF28: 0 | BG28: 0 | BH28: 0 | BI28: 0 | BJ28: 0 | BK28: 0 | BL28: 0 | BM28: 0 | BN28: 0 | BO28: 0 | BP28: 0 | BQ28: 0 | BR28: 0 | BS28: 0 | BT28: 0 | BU28: 0 | BV28: 0 | BW28: 0 | BX28: 0 | BY28: 0 | BZ28: 0 | CA28: 0 | CB28: 0 | CC28: 0 | CD28: 0 | CE28: 0 | CF28: 0 | CG28: 0 | CH28: 0 | CI28: 0 | CJ28: 0 | CK28: 0 | CL28: 0 | CM28: 0 | CN28: 0
A29: 25 | C29: 0 | E29: 0 | I29: 0 | M29: 0 | Q29: 0 | U29: 0 | Y29: 0 | AC29: 0 | AG29: 0 | AK29: 0 | AO29: 0 | AS29: 0 | AW29: 0 | AZ29: 0 | BA29: 0 | BB29: 0 | BC29: 0 | BD29: 0 | BE29: 0 | BF29: 0 | BG29: 0 | BH29: 0 | BI29: 0 | BJ29: 0 | BK29: 0 | BL29: 0 | BM29: 0 | BN29: 0 | BO29: 0 | BP29: 0 | BQ29: 0 | BR29: 0 | BS29: 0 | BT29: 0 | BU29: 0 | BV29: 0 | BW29: 0 | BX29: 0 | BY29: 0 | BZ29: 0 | CA29: 0 | CB29: 0 | CC29: 0 | CD29: 0 | CE29: 0 | CF29: 0 | CG29: 0 | CH29: 0 | CI29: 0 | CJ29: 0 | CK29: 0 | CL29: 0 | CM29: 0 | CN29: 0
A30: 26 | C30: 0 | E30: 0 | I30: 0 | M30: 0 | Q30: 0 | U30: 0 | Y30: 0 | AC30: 0 | AG30: 0 | AK30: 0 | AO30: 0 | AS30: 0 | AW30: 0 | AZ30: 0 | BA30: 0 | BB30: 0 | BC30: 0 | BD30: 0 | BE30: 0 | BF30: 0 | BG30: 0 | BH30: 0 | BI30: 0 | BJ30: 0 | BK30: 0 | BL30: 0 | BM30: 0 | BN30: 0 | BO30: 0 | BP30: 0 | BQ30: 0 | BR30: 0 | BS30: 0 | BT30: 0 | BU30: 0 | BV30: 0 | BW30: 0 | BX30: 0 | BY30: 0 | BZ30: 0 | CA30: 0 | CB30: 0 | CC30: 0 | CD30: 0 | CE30: 0 | CF30: 0 | CG30: 0 | CH30: 0 | CI30: 0 | CJ30: 0 | CK30: 0 | CL30: 0 | CM30: 0 | CN30: 0
A31: 27 | C31: 0 | E31: 0 | I31: 0 | M31: 0 | Q31: 0 | U31: 0 | Y31: 0 | AC31: 0 | AG31: 0 | AK31: 0 | AO31: 0 | AS31: 0 | AW31: 0 | AZ31: 0 | BA31: 0 | BB31: 0 | BC31: 0 | BD31: 0 | BE31: 0 | BF31: 0 | BG31: 0 | BH31: 0 | BI31: 0 | BJ31: 0 | BK31: 0 | BL31: 0 | BM31: 0 | BN31: 0 | BO31: 0 | BP31: 0 | BQ31: 0 | BR31: 0 | BS31: 0 | BT31: 0 | BU31: 0 | BV31: 0 | BW31: 0 | BX31: 0 | BY31: 0 | BZ31: 0 | CA31: 0 | CB31: 0 | CC31: 0 | CD31: 0 | CE31: 0 | CF31: 0 | CG31: 0 | CH31: 0 | CI31: 0 | CJ31: 0 | CK31: 0 | CL31: 0 | CM31: 0 | CN31: 0
A32: 28 | C32: 0 | E32: 0 | I32: 0 | M32: 0 | Q32: 0 | U32: 0 | Y32: 0 | AC32: 0 | AG32: 0 | AK32: 0 | AO32: 0 | AS32: 0 | AW32: 0 | AZ32: 0 | BA32: 0 | BB32: 0 | BC32: 0 | BD32: 0 | BE32: 0 | BF32: 0 | BG32: 0 | BH32: 0 | BI32: 0 | BJ32: 0 | BK32: 0 | BL32: 0 | BM32: 0 | BN32: 0 | BO32: 0 | BP32: 0 | BQ32: 0 | BR32: 0 | BS32: 0 | BT32: 0 | BU32: 0 | BV32: 0 | BW32: 0 | BX32: 0 | BY32: 0 | BZ32: 0 | CA32: 0 | CB32: 0 | CC32: 0 | CD32: 0 | CE32: 0 | CF32: 0 | CG32: 0 | CH32: 0 | CI32: 0 | CJ32: 0 | CK32: 0 | CL32: 0 | CM32: 0 | CN32: 0
A33: 29 | C33: 0 | E33: 0 | I33: 0 | M33: 0 | Q33: 0 | U33: 0 | Y33: 0 | AC33: 0 | AG33: 0 | AK33: 0 | AO33: 0 | AS33: 0 | AW33: 0 | AZ33: 0 | BA33: 0 | BB33: 0 | BC33: 0 | BD33: 0 | BE33: 0 | BF33: 0 | BG33: 0 | BH33: 0 | BI33: 0 | BJ33: 0 | BK33: 0 | BL33: 0 | BM33: 0 | BN33: 0 | BO33: 0 | BP33: 0 | BQ33: 0 | BR33: 0 | BS33: 0 | BT33: 0 | BU33: 0 | BV33: 0 | BW33: 0 | BX33: 0 | BY33: 0 | BZ33: 0 | CA33: 0 | CB33: 0 | CC33: 0 | CD33: 0 | CE33: 0 | CF33: 0 | CG33: 0 | CH33: 0 | CI33: 0 | CJ33: 0 | CK33: 0 | CL33: 0 | CM33: 0 | CN33: 0
A34: 30 | C34: 0 | E34: 0 | I34: 0 | M34: 0 | Q34: 0 | U34: 0 | Y34: 0 | AC34: 0 | AG34: 0 | AK34: 0 | AO34: 0 | AS34: 0 | AW34: 0 | AZ34: 0 | BA34: 0 | BB34: 0 | BC34: 0 | BD34: 0 | BE34: 0 | BF34: 0 | BG34: 0 | BH34: 0 | BI34: 0 | BJ34: 0 | BK34: 0 | BL34: 0 | BM34: 0 | BN34: 0 | BO34: 0 | BP34: 0 | BQ34: 0 | BR34: 0 | BS34: 0 | BT34: 0 | BU34: 0 | BV34: 0 | BW34: 0 | BX34: 0 | BY34: 0 | BZ34: 0 | CA34: 0 | CB34: 0 | CC34: 0 | CD34: 0 | CE34: 0 | CF34: 0 | CG34: 0 | CH34: 0 | CI34: 0 | CJ34: 0 | CK34: 0 | CL34: 0 | CM34: 0 | CN34: 0
A35: 31 | C35: 0 | E35: 0 | I35: 0 | M35: 0 | Q35: 0 | U35: 0 | Y35: 0 | AC35: 0 | AG35: 0 | AK35: 0 | AO35: 0 | AS35: 0 | AW35: 0 | AZ35: 0 | BA35: 0 | BB35: 0 | BC35: 0 | BD35: 0 | BE35: 0 | BF35: 0 | BG35: 0 | BH35: 0 | BI35: 0 | BJ35: 0 | BK35: 0 | BL35: 0 | BM35: 0 | BN35: 0 | BO35: 0 | BP35: 0 | BQ35: 0 | BR35: 0 | BS35: 0 | BT35: 0 | BU35: 0 | BV35: 0 | BW35: 0 | BX35: 0 | BY35: 0 | BZ35: 0 | CA35: 0 | CB35: 0 | CC35: 0 | CD35: 0 | CE35: 0 | CF35: 0 | CG35: 0 | CH35: 0 | CI35: 0 | CJ35: 0 | CK35: 0 | CL35: 0 | CM35: 0 | CN35: 0
A36: 32 | C36: 0 | E36: 0 | I36: 0 | M36: 0 | Q36: 0 | U36: 0 | Y36: 0 | AC36: 0 | AG36: 0 | AK36: 0 | AO36: 0 | AS36: 0 | AW36: 0 | AZ36: 0 | BA36: 0 | BB36: 0 | BC36: 0 | BD36: 0 | BE36: 0 | BF36: 0 | BG36: 0 | BH36: 0 | BI36: 0 | BJ36: 0 | BK36: 0 | BL36: 0 | BM36: 0 | BN36: 0 | BO36: 0 | BP36: 0 | BQ36: 0 | BR36: 0 | BS36: 0 | BT36: 0 | BU36: 0 | BV36: 0 | BW36: 0 | BX36: 0 | BY36: 0 | BZ36: 0 | CA36: 0 | CB36: 0 | CC36: 0 | CD36: 0 | CE36: 0 | CF36: 0 | CG36: 0 | CH36: 0 | CI36: 0 | CJ36: 0 | CK36: 0 | CL36: 0 | CM36: 0 | CN36: 0
A37: 33 | C37: 0 | E37: 0 | I37: 0 | M37: 0 | Q37: 0 | U37: 0 | Y37: 0 | AC37: 0 | AG37: 0 | AK37: 0 | AO37: 0 | AS37: 0 | AW37: 0 | AZ37: 0 | BA37: 0 | BB37: 0 | BC37: 0 | BD37: 0 | BE37: 0 | BF37: 0 | BG37: 0 | BH37: 0 | BI37: 0 | BJ37: 0 | BK37: 0 | BL37: 0 | BM37: 0 | BN37: 0 | BO37: 0 | BP37: 0 | BQ37: 0 | BR37: 0 | BS37: 0 | BT37: 0 | BU37: 0 | BV37: 0 | BW37: 0 | BX37: 0 | BY37: 0 | BZ37: 0 | CA37: 0 | CB37: 0 | CC37: 0 | CD37: 0 | CE37: 0 | CF37: 0 | CG37: 0 | CH37: 0 | CI37: 0 | CJ37: 0 | CK37: 0 | CL37: 0 | CM37: 0 | CN37: 0
A38: 34 | C38: 0 | E38: 0 | I38: 0 | M38: 0 | Q38: 0 | U38: 0 | Y38: 0 | AC38: 0 | AG38: 0 | AK38: 0 | AO38: 0 | AS38: 0 | AW38: 0 | AZ38: 0 | BA38: 0 | BB38: 0 | BC38: 0 | BD38: 0 | BE38: 0 | BF38: 0 | BG38: 0 | BH38: 0 | BI38: 0 | BJ38: 0 | BK38: 0 | BL38: 0 | BM38: 0 | BN38: 0 | BO38: 0 | BP38: 0 | BQ38: 0 | BR38: 0 | BS38: 0 | BT38: 0 | BU38: 0 | BV38: 0 | BW38: 0 | BX38: 0 | BY38: 0 | BZ38: 0 | CA38: 0 | CB38: 0 | CC38: 0 | CD38: 0 | CE38: 0 | CF38: 0 | CG38: 0 | CH38: 0 | CI38: 0 | CJ38: 0 | CK38: 0 | CL38: 0 | CM38: 0 | CN38: 0
A39: 35 | C39: 0 | E39: 0 | I39: 0 | M39: 0 | Q39: 0 | U39: 0 | Y39: 0 | AC39: 0 | AG39: 0 | AK39: 0 | AO39: 0 | AS39: 0 | AW39: 0 | AZ39: 0 | BA39: 0 | BB39: 0 | BC39: 0 | BD39: 0 | BE39: 0 | BF39: 0 | BG39: 0 | BH39: 0 | BI39: 0 | BJ39: 0 | BK39: 0 | BL39: 0 | BM39: 0 | BN39: 0 | BO39: 0 | BP39: 0 | BQ39: 0 | BR39: 0 | BS39: 0 | BT39: 0 | BU39: 0 | BV39: 0 | BW39: 0 | BX39: 0 | BY39: 0 | BZ39: 0 | CA39: 0 | CB39: 0 | CC39: 0 | CD39: 0 | CE39: 0 | CF39: 0 | CG39: 0 | CH39: 0 | CI39: 0 | CJ39: 0 | CK39: 0 | CL39: 0 | CM39: 0 | CN39: 0
A40: 36 | C40: 0 | E40: 0 | I40: 0 | M40: 0 | Q40: 0 | U40: 0 | Y40: 0 | AC40: 0 | AG40: 0 | AK40: 0 | AO40: 0 | AS40: 0 | AW40: 0 | AZ40: 0 | BA40: 0 | BB40: 0 | BC40: 0 | BD40: 0 | BE40: 0 | BF40: 0 | BG40: 0 | BH40: 0 | BI40: 0 | BJ40: 0 | BK40: 0 | BL40: 0 | BM40: 0 | BN40: 0 | BO40: 0 | BP40: 0 | BQ40: 0 | BR40: 0 | BS40: 0 | BT40: 0 | BU40: 0 | BV40: 0 | BW40: 0 | BX40: 0 | BY40: 0 | BZ40: 0 | CA40: 0 | CB40: 0 | CC40: 0 | CD40: 0 | CE40: 0 | CF40: 0 | CG40: 0 | CH40: 0 | CI40: 0 | CJ40: 0 | CK40: 0 | CL40: 0 | CM40: 0 | CN40: 0
A41: 37 | C41: 0 | E41: 0 | I41: 0 | M41: 0 | Q41: 0 | U41: 0 | Y41: 0 | AC41: 0 | AG41: 0 | AK41: 0 | AO41: 0 | AS41: 0 | AW41: 0 | AZ41: 0 | BA41: 0 | BB41: 0 | BC41: 0 | BD41: 0 | BE41: 0 | BF41: 0 | BG41: 0 | BH41: 0 | BI41: 0 | BJ41: 0 | BK41: 0 | BL41: 0 | BM41: 0 | BN41: 0 | BO41: 0 | BP41: 0 | BQ41: 0 | BR41: 0 | BS41: 0 | BT41: 0 | BU41: 0 | BV41: 0 | BW41: 0 | BX41: 0 | BY41: 0 | BZ41: 0 | CA41: 0 | CB41: 0 | CC41: 0 | CD41: 0 | CE41: 0 | CF41: 0 | CG41: 0 | CH41: 0 | CI41: 0 | CJ41: 0 | CK41: 0 | CL41: 0 | CM41: 0 | CN41: 0
A42: 38 | C42: 0 | E42: 0 | I42: 0 | M42: 0 | Q42: 0 | U42: 0 | Y42: 0 | AC42: 0 | AG42: 0 | AK42: 0 | AO42: 0 | AS42: 0 | AW42: 0 | AZ42: 0 | BA42: 0 | BB42: 0 | BC42: 0 | BD42: 0 | BE42: 0 | BF42: 0 | BG42: 0 | BH42: 0 | BI42: 0 | BJ42: 0 | BK42: 0 | BL42: 0 | BM42: 0 | BN42: 0 | BO42: 0 | BP42: 0 | BQ42: 0 | BR42: 0 | BS42: 0 | BT42: 0 | BU42: 0 | BV42: 0 | BW42: 0 | BX42: 0 | BY42: 0 | BZ42: 0 | CA42: 0 | CB42: 0 | CC42: 0 | CD42: 0 | CE42: 0 | CF42: 0 | CG42: 0 | CH42: 0 | CI42: 0 | CJ42: 0 | CK42: 0 | CL42: 0 | CM42: 0 | CN42: 0
A43: 39 | C43: 0 | E43: 0 | I43: 0 | M43: 0 | Q43: 0 | U43: 0 | Y43: 0 | AC43: 0 | AG43: 0 | AK43: 0 | AO43: 0 | AS43: 0 | AW43: 0 | AZ43: 0 | BA43: 0 | BB43: 0 | BC43: 0 | BD43: 0 | BE43: 0 | BF43: 0 | BG43: 0 | BH43: 0 | BI43: 0 | BJ43: 0 | BK43: 0 | BL43: 0 | BM43: 0 | BN43: 0 | BO43: 0 | BP43: 0 | BQ43: 0 | BR43: 0 | BS43: 0 | BT43: 0 | BU43: 0 | BV43: 0 | BW43: 0 | BX43: 0 | BY43: 0 | BZ43: 0 | CA43: 0 | CB43: 0 | CC43: 0 | CD43: 0 | CE43: 0 | CF43: 0 | CG43: 0 | CH43: 0 | CI43: 0 | CJ43: 0 | CK43: 0 | CL43: 0 | CM43: 0 | CN43: 0
A44: 40 | C44: 0 | E44: 0 | I44: 0 | M44: 0 | Q44: 0 | U44: 0 | Y44: 0 | AC44: 0 | AG44: 0 | AK44: 0 | AO44: 0 | AS44: 0 | AW44: 0 | AZ44: 0 | BA44: 0 | BB44: 0 | BC44: 0 | BD44: 0 | BE44: 0 | BF44: 0 | BG44: 0 | BH44: 0 | BI44: 0 | BJ44: 0 | BK44: 0 | BL44: 0 | BM44: 0 | BN44: 0 | BO44: 0 | BP44: 0 | BQ44: 0 | BR44: 0 | BS44: 0 | BT44: 0 | BU44: 0 | BV44: 0 | BW44: 0 | BX44: 0 | BY44: 0 | BZ44: 0 | CA44: 0 | CB44: 0 | CC44: 0 | CD44: 0 | CE44: 0 | CF44: 0 | CG44: 0 | CH44: 0 | CI44: 0 | CJ44: 0 | CK44: 0 | CL44: 0 | CM44: 0 | CN44: 0
A45: 41 | C45: 0 | E45: 0 | I45: 0 | M45: 0 | Q45: 0 | U45: 0 | Y45: 0 | AC45: 0 | AG45: 0 | AK45: 0 | AO45: 0 | AS45: 0 | AW45: 0 | AZ45: 0 | BA45: 0 | BB45: 0 | BC45: 0 | BD45: 0 | BE45: 0 | BF45: 0 | BG45: 0 | BH45: 0 | BI45: 0 | BJ45: 0 | BK45: 0 | BL45: 0 | BM45: 0 | BN45: 0 | BO45: 0 | BP45: 0 | BQ45: 0 | BR45: 0 | BS45: 0 | BT45: 0 | BU45: 0 | BV45: 0 | BW45: 0 | BX45: 0 | BY45: 0 | BZ45: 0 | CA45: 0 | CB45: 0 | CC45: 0 | CD45: 0 | CE45: 0 | CF45: 0 | CG45: 0 | CH45: 0 | CI45: 0 | CJ45: 0 | CK45: 0 | CL45: 0 | CM45: 0 | CN45: 0
A46: 42 | C46: 0 | E46: 0 | I46: 0 | M46: 0 | Q46: 0 | U46: 0 | Y46: 0 | AC46: 0 | AG46: 0 | AK46: 0 | AO46: 0 | AS46: 0 | AW46: 0 | AZ46: 0 | BA46: 0 | BB46: 0 | BC46: 0 | BD46: 0 | BE46: 0 | BF46: 0 | BG46: 0 | BH46: 0 | BI46: 0 | BJ46: 0 | BK46: 0 | BL46: 0 | BM46: 0 | BN46: 0 | BO46: 0 | BP46: 0 | BQ46: 0 | BR46: 0 | BS46: 0 | BT46: 0 | BU46: 0 | BV46: 0 | BW46: 0 | BX46: 0 | BY46: 0 | BZ46: 0 | CA46: 0 | CB46: 0 | CC46: 0 | CD46: 0 | CE46: 0 | CF46: 0 | CG46: 0 | CH46: 0 | CI46: 0 | CJ46: 0 | CK46: 0 | CL46: 0 | CM46: 0 | CN46: 0
A47: 43 | C47: 0 | E47: 0 | I47: 0 | M47: 0 | Q47: 0 | U47: 0 | Y47: 0 | AC47: 0 | AG47: 0 | AK47: 0 | AO47: 0 | AS47: 0 | AW47: 0 | AZ47: 0 | BA47: 0 | BB47: 0 | BC47: 0 | BD47: 0 | BE47: 0 | BF47: 0 | BG47: 0 | BH47: 0 | BI47: 0 | BJ47: 0 | BK47: 0 | BL47: 0 | BM47: 0 | BN47: 0 | BO47: 0 | BP47: 0 | BQ47: 0 | BR47: 0 | BS47: 0 | BT47: 0 | BU47: 0 | BV47: 0 | BW47: 0 | BX47: 0 | BY47: 0 | BZ47: 0 | CA47: 0 | CB47: 0 | CC47: 0 | CD47: 0 | CE47: 0 | CF47: 0 | CG47: 0 | CH47: 0 | CI47: 0 | CJ47: 0 | CK47: 0 | CL47: 0 | CM47: 0 | CN47: 0
A48: 44 | C48: 0 | E48: 0 | I48: 0 | M48: 0 | Q48: 0 | U48: 0 | Y48: 0 | AC48: 0 | AG48: 0 | AK48: 0 | AO48: 0 | AS48: 0 | AW48: 0 | AZ48: 0 | BA48: 0 | BB48: 0 | BC48: 0 | BD48: 0 | BE48: 0 | BF48: 0 | BG48: 0 | BH48: 0 | BI48: 0 | BJ48: 0 | BK48: 0 | BL48: 0 | BM48: 0 | BN48: 0 | BO48: 0 | BP48: 0 | BQ48: 0 | BR48: 0 | BS48: 0 | BT48: 0 | BU48: 0 | BV48: 0 | BW48: 0 | BX48: 0 | BY48: 0 | BZ48: 0 | CA48: 0 | CB48: 0 | CC48: 0 | CD48: 0 | CE48: 0 | CF48: 0 | CG48: 0 | CH48: 0 | CI48: 0 | CJ48: 0 | CK48: 0 | CL48: 0 | CM48: 0 | CN48: 0
A49: 45 | C49: 0 | E49: 0 | I49: 0 | M49: 0 | Q49: 0 | U49: 0 | Y49: 0 | AC49: 0 | AG49: 0 | AK49: 0 | AO49: 0 | AS49: 0 | AW49: 0 | AZ49: 0 | BA49: 0 | BB49: 0 | BC49: 0 | BD49: 0 | BE49: 0 | BF49: 0 | BG49: 0 | BH49: 0 | BI49: 0 | BJ49: 0 | BK49: 0 | BL49: 0 | BM49: 0 | BN49: 0 | BO49: 0 | BP49: 0 | BQ49: 0 | BR49: 0 | BS49: 0 | BT49: 0 | BU49: 0 | BV49: 0 | BW49: 0 | BX49: 0 | BY49: 0 | BZ49: 0 | CA49: 0 | CB49: 0 | CC49: 0 | CD49: 0 | CE49: 0 | CF49: 0 | CG49: 0 | CH49: 0 | CI49: 0 | CJ49: 0 | CK49: 0 | CL49: 0 | CM49: 0 | CN49: 0

Sheet Vazia
